DepartmentFamily,Entity,Date,ExpenseType,ExpenseArea,Supplier,Transaction Number,Amount,VATRegistrationNumber
BEIS,The Insolvency Service,03/06/2019,Investigation & Enforcement,Official Receiver Services,Womble Bond Dickinson,300009453,91971.19,123392627
BEIS,The Insolvency Service,03/06/2019,I&T,Information & Technology,Trustmarque Solutions Ltd,300009401,2222.57,727348615
BEIS,The Insolvency Service,03/06/2019,I&T,Strategy & Change,Trustmarque Solutions Ltd,300009403,2850.30,727348615
BEIS,The Insolvency Service,03/06/2019,I&T,Information & Technology,Trustmarque Solutions Ltd,300009404,497.46,727348615
BEIS,The Insolvency Service,03/06/2019,Legal - Live Investigations,Investigations & Enforcement Services,Shepherd & Wedderburn,300010269,1170.00,890559386
BEIS,The Insolvency Service,03/06/2019,Legal - Live Investigations,Investigations & Enforcement Services,Shepherd & Wedderburn,300010269,14301.23,890559386
BEIS,The Insolvency Service,03/06/2019,Legal - Live Investigations,Legal Services Division,SUNDRY SUPPLIER,300009733,90.00,
BEIS,The Insolvency Service,03/06/2019,I&T,Information & Technology,SmartSourcing,300009484,4320.00,788507869
BEIS,The Insolvency Service,03/06/2019,I&T,Information & Technology,SmartSourcing,300009493,3180.00,788507869
BEIS,The Insolvency Service,03/06/2019,I&T,Information & Technology,SmartSourcing,300009494,3696.00,788507869
BEIS,The Insolvency Service,03/06/2019,I&T,Information & Technology,SmartSourcing,300009495,1908.00,788507869
BEIS,The Insolvency Service,03/06/2019,I&T,Information & Technology,SmartSourcing,300009496,2956.80,788507869
BEIS,The Insolvency Service,03/06/2019,Legal - Live Investigations,Legal Services Division,9 Bedford Row Chambers,300009566,308.04,802832844
BEIS,The Insolvency Service,03/06/2019,Travel & Subsistence,Official Receiver Services,Staff Payment,900007711,171.60,
BEIS,The Insolvency Service,03/06/2019,Travel & Subsistence,Official Receiver Services,Staff Payment,900007711,141.75,
BEIS,The Insolvency Service,03/06/2019,Travel & Subsistence,Official Receiver Services,Staff Payment,900007711,59.00,
BEIS,The Insolvency Service,03/06/2019,Travel & Subsistence,Official Receiver Services,Staff Payment,900007711,4.09,
BEIS,The Insolvency Service,03/06/2019,Travel & Subsistence,Official Receiver Services,Staff Payment,900007711,93.90,
BEIS,The Insolvency Service,03/06/2019,Travel & Subsistence,Official Receiver Services,Staff Payment,900007711,4.39,
BEIS,The Insolvency Service,03/06/2019,Travel & Subsistence,Official Receiver Services,Staff Payment,900007711,5.23,
BEIS,The Insolvency Service,03/06/2019,Travel & Subsistence,Official Receiver Services,Staff Payment,900007711,7.30,
BEIS,The Insolvency Service,03/06/2019,Travel & Subsistence,Official Receiver Services,Staff Payment,900007711,2.40,
BEIS,The Insolvency Service,03/06/2019,Travel & Subsistence,Official Receiver Services,Staff Payment,900007711,4.60,
BEIS,The Insolvency Service,03/06/2019,Travel & Subsistence,Official Receiver Services,Staff Payment,900007711,4.60,
BEIS,The Insolvency Service,03/06/2019,Travel & Subsistence,Official Receiver Services,Staff Payment,900007711,2.40,
BEIS,The Insolvency Service,03/06/2019,Travel & Subsistence,Official Receiver Services,Staff Payment,900007711,2.40,
BEIS,The Insolvency Service,03/06/2019,Travel & Subsistence,Official Receiver Services,Staff Payment,900008832,2.40,
BEIS,The Insolvency Service,03/06/2019,Travel & Subsistence,Official Receiver Services,Staff Payment,900008832,74.00,
BEIS,The Insolvency Service,03/06/2019,Travel & Subsistence,Official Receiver Services,Staff Payment,900008832,15.00,
BEIS,The Insolvency Service,03/06/2019,Travel & Subsistence,Official Receiver Services,Staff Payment,900008832,4.60,
BEIS,The Insolvency Service,03/06/2019,Travel & Subsistence,Official Receiver Services,Staff Payment,900008832,4.60,
BEIS,The Insolvency Service,03/06/2019,Travel & Subsistence,Official Receiver Services,Staff Payment,900008832,2.40,
BEIS,The Insolvency Service,03/06/2019,Travel & Subsistence,Business Service Division,Staff Payment,900008852,4.00,
BEIS,The Insolvency Service,03/06/2019,Travel & Subsistence,Business Service Division,Staff Payment,900008852,121.50,
BEIS,The Insolvency Service,03/06/2019,Travel & Subsistence,Business Service Division,Staff Payment,900008852,20.00,
BEIS,The Insolvency Service,03/06/2019,Travel & Subsistence,Business Service Division,Staff Payment,900008852,5.00,
BEIS,The Insolvency Service,03/06/2019,Travel & Subsistence,Business Service Division,Staff Payment,900008852,4.75,
BEIS,The Insolvency Service,03/06/2019,Travel & Subsistence,Business Service Division,Staff Payment,900008852,4.77,
BEIS,The Insolvency Service,03/06/2019,Travel & Subsistence,Business Service Division,Staff Payment,900008852,15.00,
BEIS,The Insolvency Service,03/06/2019,Travel & Subsistence,People & Capability,Staff Payment,900008914,18.00,
BEIS,The Insolvency Service,03/06/2019,Travel & Subsistence,People & Capability,Staff Payment,900008914,18.00,
BEIS,The Insolvency Service,03/06/2019,Travel & Subsistence,People & Capability,Staff Payment,900008914,9.50,
BEIS,The Insolvency Service,03/06/2019,Travel & Subsistence,People & Capability,Staff Payment,900008914,5.00,
BEIS,The Insolvency Service,03/06/2019,Travel & Subsistence,Official Receiver Services,Staff Payment,900008977,3.80,
BEIS,The Insolvency Service,03/06/2019,Travel & Subsistence,Official Receiver Services,Staff Payment,900008979,15.30,
BEIS,The Insolvency Service,03/06/2019,Travel & Subsistence,Official Receiver Services,Staff Payment,900008979,3.60,
BEIS,The Insolvency Service,03/06/2019,Travel & Subsistence,Official Receiver Services,Staff Payment,900008980,3.60,
BEIS,The Insolvency Service,03/06/2019,Travel & Subsistence,Official Receiver Services,Staff Payment,900008980,15.30,
BEIS,The Insolvency Service,03/06/2019,Travel & Subsistence,Official Receiver Services,Staff Payment,900008714,5.00,
BEIS,The Insolvency Service,03/06/2019,Travel & Subsistence,Official Receiver Services,Staff Payment,900008714,10.00,
BEIS,The Insolvency Service,03/06/2019,Travel & Subsistence,Official Receiver Services,Staff Payment,900008714,28.95,
BEIS,The Insolvency Service,03/06/2019,Travel & Subsistence,Official Receiver Services,Staff Payment,900008987,3.15,
BEIS,The Insolvency Service,03/06/2019,Travel & Subsistence,Official Receiver Services,Staff Payment,900008987,10.00,
BEIS,The Insolvency Service,03/06/2019,Travel & Subsistence,Official Receiver Services,Staff Payment,900008987,15.00,
BEIS,The Insolvency Service,03/06/2019,Travel & Subsistence,Official Receiver Services,Staff Payment,900008987,5.00,
BEIS,The Insolvency Service,03/06/2019,Travel & Subsistence,Official Receiver Services,Staff Payment,900008736,5.00,
BEIS,The Insolvency Service,03/06/2019,Travel & Subsistence,Official Receiver Services,Staff Payment,900008736,5.00,
BEIS,The Insolvency Service,03/06/2019,Travel & Subsistence,Official Receiver Services,Staff Payment,900008736,5.00,
BEIS,The Insolvency Service,03/06/2019,Travel & Subsistence,Official Receiver Services,Staff Payment,900008736,10.00,
BEIS,The Insolvency Service,03/06/2019,Travel & Subsistence,Official Receiver Services,Staff Payment,900008736,15.00,
BEIS,The Insolvency Service,03/06/2019,Travel & Subsistence,Official Receiver Services,Staff Payment,900008737,13.90,
BEIS,The Insolvency Service,03/06/2019,Travel & Subsistence,Official Receiver Services,Staff Payment,900008737,10.00,
BEIS,The Insolvency Service,03/06/2019,Travel & Subsistence,Official Receiver Services,Staff Payment,900008737,5.00,
BEIS,The Insolvency Service,03/06/2019,Travel & Subsistence,Official Receiver Services,Staff Payment,900008869,5.00,
BEIS,The Insolvency Service,03/06/2019,Travel & Subsistence,Official Receiver Services,Staff Payment,900008810,10.50,
BEIS,The Insolvency Service,03/06/2019,Travel & Subsistence,Official Receiver Services,Staff Payment,900008810,8.69,
BEIS,The Insolvency Service,03/06/2019,Travel & Subsistence,Official Receiver Services,Staff Payment,900008810,5.00,
BEIS,The Insolvency Service,03/06/2019,Travel & Subsistence,Official Receiver Services,Staff Payment,900008810,12.05,
BEIS,The Insolvency Service,03/06/2019,Travel & Subsistence,Official Receiver Services,Staff Payment,900008810,4.60,
BEIS,The Insolvency Service,03/06/2019,Travel & Subsistence,Official Receiver Services,Staff Payment,900008810,5.00,
BEIS,The Insolvency Service,03/06/2019,Travel & Subsistence,Official Receiver Services,Staff Payment,900008810,11.80,
BEIS,The Insolvency Service,03/06/2019,Travel & Subsistence,Official Receiver Services,Staff Payment,900008811,5.00,
BEIS,The Insolvency Service,03/06/2019,Travel & Subsistence,Official Receiver Services,Staff Payment,900008811,8.80,
BEIS,The Insolvency Service,03/06/2019,Travel & Subsistence,Official Receiver Services,Staff Payment,900008811,8.80,
BEIS,The Insolvency Service,03/06/2019,Travel & Subsistence,Official Receiver Services,Staff Payment,900008811,4.65,
BEIS,The Insolvency Service,03/06/2019,Travel & Subsistence,Official Receiver Services,Staff Payment,900008811,5.00,
BEIS,The Insolvency Service,03/06/2019,Travel & Subsistence,Official Receiver Services,Staff Payment,900008811,4.30,
BEIS,The Insolvency Service,03/06/2019,Travel & Subsistence,Chief Executive Office,Staff Payment,900008985,10.00,
BEIS,The Insolvency Service,03/06/2019,Travel & Subsistence,Chief Executive Office,Staff Payment,900008985,5.00,
BEIS,The Insolvency Service,03/06/2019,Travel & Subsistence,Chief Executive Office,Staff Payment,900008985,15.00,
BEIS,The Insolvency Service,03/06/2019,Travel & Subsistence,Chief Executive Office,Staff Payment,900008985,2.40,
BEIS,The Insolvency Service,03/06/2019,Travel & Subsistence,Chief Executive Office,Staff Payment,900008985,15.00,
BEIS,The Insolvency Service,03/06/2019,Travel & Subsistence,Official Receiver Services,Staff Payment,900008804,4.50,
BEIS,The Insolvency Service,03/06/2019,Travel & Subsistence,Official Receiver Services,Staff Payment,900008804,65.50,
BEIS,The Insolvency Service,03/06/2019,Travel & Subsistence,Business Service Division,Staff Payment,900008909,10.00,
BEIS,The Insolvency Service,03/06/2019,Travel & Subsistence,Business Service Division,Staff Payment,900008909,5.00,
BEIS,The Insolvency Service,03/06/2019,Travel & Subsistence,Business Service Division,Staff Payment,900008909,13.40,
BEIS,The Insolvency Service,03/06/2019,Travel & Subsistence,Business Service Division,Staff Payment,900008909,30.00,
BEIS,The Insolvency Service,03/06/2019,Travel & Subsistence,Legal Services Division,Staff Payment,900008982,6.00,
BEIS,The Insolvency Service,03/06/2019,Travel & Subsistence,Legal Services Division,Staff Payment,900008982,26.78,
BEIS,The Insolvency Service,03/06/2019,Travel & Subsistence,Legal Services Division,Staff Payment,900008982,10.00,
BEIS,The Insolvency Service,03/06/2019,Travel & Subsistence,Legal Services Division,Staff Payment,900008982,10.00,
BEIS,The Insolvency Service,03/06/2019,Travel & Subsistence,Legal Services Division,Staff Payment,900008983,3.00,
BEIS,The Insolvency Service,03/06/2019,Travel & Subsistence,Legal Services Division,Staff Payment,900008983,8.20,
BEIS,The Insolvency Service,03/06/2019,Travel & Subsistence,Legal Services Division,Staff Payment,900008983,5.00,
BEIS,The Insolvency Service,03/06/2019,Travel & Subsistence,Legal Services Division,Staff Payment,900008983,5.00,
BEIS,The Insolvency Service,03/06/2019,Travel & Subsistence,Investigations & Enforcement Services,Staff Payment,900008986,15.00,
BEIS,The Insolvency Service,03/06/2019,Travel & Subsistence,Investigations & Enforcement Services,Staff Payment,900008986,5.00,
BEIS,The Insolvency Service,03/06/2019,Travel & Subsistence,Investigations & Enforcement Services,Staff Payment,900008986,5.00,
BEIS,The Insolvency Service,03/06/2019,Travel & Subsistence,Investigations & Enforcement Services,Staff Payment,900008986,84.60,
BEIS,The Insolvency Service,03/06/2019,Travel & Subsistence,Investigations & Enforcement Services,Staff Payment,900008986,12.00,
BEIS,The Insolvency Service,03/06/2019,Travel & Subsistence,Investigations & Enforcement Services,Staff Payment,900008986,6.00,
BEIS,The Insolvency Service,03/06/2019,Travel & Subsistence,Investigations & Enforcement Services,Staff Payment,900008986,83.70,
BEIS,The Insolvency Service,03/06/2019,Travel & Subsistence,Investigations & Enforcement Services,Staff Payment,900008986,4.70,
BEIS,The Insolvency Service,03/06/2019,Travel & Subsistence,Investigations & Enforcement Services,Staff Payment,900008986,79.20,
BEIS,The Insolvency Service,03/06/2019,Travel & Subsistence,Investigations & Enforcement Services,Staff Payment,900009006,5.00,
BEIS,The Insolvency Service,03/06/2019,Travel & Subsistence,Investigations & Enforcement Services,Staff Payment,900009006,5.00,
BEIS,The Insolvency Service,03/06/2019,Travel & Subsistence,Investigations & Enforcement Services,Staff Payment,900009006,49.60,
BEIS,The Insolvency Service,03/06/2019,Travel & Subsistence,Investigations & Enforcement Services,Staff Payment,900009006,4.20,
BEIS,The Insolvency Service,03/06/2019,Travel & Subsistence,Investigations & Enforcement Services,Staff Payment,900009006,4.50,
BEIS,The Insolvency Service,03/06/2019,Travel & Subsistence,Investigations & Enforcement Services,Staff Payment,900009006,2.80,
BEIS,The Insolvency Service,03/06/2019,Travel & Subsistence,Legal Services Division,Staff Payment,900008846,2.88,
BEIS,The Insolvency Service,03/06/2019,Travel & Subsistence,Legal Services Division,Staff Payment,900008846,9.90,
BEIS,The Insolvency Service,03/06/2019,Travel & Subsistence,Legal Services Division,Staff Payment,900008846,2.75,
BEIS,The Insolvency Service,03/06/2019,Travel & Subsistence,Legal Services Division,Staff Payment,900008846,4.44,
BEIS,The Insolvency Service,03/06/2019,Travel & Subsistence,Legal Services Division,Staff Payment,900008846,7.00,
BEIS,The Insolvency Service,03/06/2019,Travel & Subsistence,Investigations & Enforcement Services,Staff Payment,900008843,10.00,
BEIS,The Insolvency Service,03/06/2019,Travel & Subsistence,Investigations & Enforcement Services,Staff Payment,900008843,4.50,
BEIS,The Insolvency Service,03/06/2019,Travel & Subsistence,Investigations & Enforcement Services,Staff Payment,900008843,3.85,
BEIS,The Insolvency Service,03/06/2019,Travel & Subsistence,Investigations & Enforcement Services,Staff Payment,900008843,5.00,
BEIS,The Insolvency Service,03/06/2019,Travel & Subsistence,Investigations & Enforcement Services,Staff Payment,900008853,9.00,
BEIS,The Insolvency Service,03/06/2019,Travel & Subsistence,Investigations & Enforcement Services,Staff Payment,900008853,5.00,
BEIS,The Insolvency Service,03/06/2019,Travel & Subsistence,Investigations & Enforcement Services,Staff Payment,900008853,126.90,
BEIS,The Insolvency Service,03/06/2019,Travel & Subsistence,Investigations & Enforcement Services,Staff Payment,900008853,5.00,
BEIS,The Insolvency Service,03/06/2019,Travel & Subsistence,Investigations & Enforcement Services,Staff Payment,900008853,5.00,
BEIS,The Insolvency Service,03/06/2019,Travel & Subsistence,Investigations & Enforcement Services,Staff Payment,900008853,23.50,
BEIS,The Insolvency Service,03/06/2019,Travel & Subsistence,Investigations & Enforcement Services,Staff Payment,900008959,3.00,
BEIS,The Insolvency Service,03/06/2019,Travel & Subsistence,Investigations & Enforcement Services,Staff Payment,900008959,63.00,
BEIS,The Insolvency Service,03/06/2019,Travel & Subsistence,Investigations & Enforcement Services,Staff Payment,900008959,4.00,
BEIS,The Insolvency Service,03/06/2019,Travel & Subsistence,Investigations & Enforcement Services,Staff Payment,900008959,6.00,
BEIS,The Insolvency Service,03/06/2019,Travel & Subsistence,Investigations & Enforcement Services,Staff Payment,900008959,3.80,
BEIS,The Insolvency Service,03/06/2019,Travel & Subsistence,Investigations & Enforcement Services,Staff Payment,900008959,2.40,
BEIS,The Insolvency Service,03/06/2019,Travel & Subsistence,Legal Services Division,Staff Payment,900009002,15.00,
BEIS,The Insolvency Service,03/06/2019,Travel & Subsistence,Legal Services Division,Staff Payment,900009003,4.70,
BEIS,The Insolvency Service,03/06/2019,Travel & Subsistence,Legal Services Division,Staff Payment,900009003,9.00,
BEIS,The Insolvency Service,03/06/2019,Travel & Subsistence,Legal Services Division,Staff Payment,900009003,15.00,
BEIS,The Insolvency Service,03/06/2019,Travel & Subsistence,Investigations & Enforcement Services,Staff Payment,900008994,31.95,
BEIS,The Insolvency Service,03/06/2019,Travel & Subsistence,Investigations & Enforcement Services,Staff Payment,900008994,37.80,
BEIS,The Insolvency Service,03/06/2019,Travel & Subsistence,Investigations & Enforcement Services,Staff Payment,900008632,4.00,
BEIS,The Insolvency Service,03/06/2019,Travel & Subsistence,Investigations & Enforcement Services,Staff Payment,900008632,3.50,
BEIS,The Insolvency Service,03/06/2019,Travel & Subsistence,Investigations & Enforcement Services,Staff Payment,900008632,3.50,
BEIS,The Insolvency Service,03/06/2019,Travel & Subsistence,Investigations & Enforcement Services,Staff Payment,900008632,6.50,
BEIS,The Insolvency Service,03/06/2019,Travel & Subsistence,Investigations & Enforcement Services,Staff Payment,900008632,5.00,
BEIS,The Insolvency Service,03/06/2019,Travel & Subsistence,Investigations & Enforcement Services,Staff Payment,900008632,1.80,
BEIS,The Insolvency Service,03/06/2019,Travel & Subsistence,Investigations & Enforcement Services,Staff Payment,900008632,1.80,
BEIS,The Insolvency Service,03/06/2019,Travel & Subsistence,Investigations & Enforcement Services,Staff Payment,900008632,72.90,
BEIS,The Insolvency Service,03/06/2019,Travel & Subsistence,Investigations & Enforcement Services,Staff Payment,900008632,7.50,
BEIS,The Insolvency Service,03/06/2019,Travel & Subsistence,Investigations & Enforcement Services,Staff Payment,900008632,15.30,
BEIS,The Insolvency Service,03/06/2019,Travel & Subsistence,Investigations & Enforcement Services,Staff Payment,900008632,8.55,
BEIS,The Insolvency Service,03/06/2019,Travel & Subsistence,Investigations & Enforcement Services,Staff Payment,900008632,25.20,
BEIS,The Insolvency Service,03/06/2019,Travel & Subsistence,Investigations & Enforcement Services,Staff Payment,900008632,7.20,
BEIS,The Insolvency Service,03/06/2019,Travel & Subsistence,Investigations & Enforcement Services,Staff Payment,900008632,1.80,
BEIS,The Insolvency Service,03/06/2019,Travel & Subsistence,Investigations & Enforcement Services,Staff Payment,900008632,44.10,
BEIS,The Insolvency Service,03/06/2019,Travel & Subsistence,Investigations & Enforcement Services,Staff Payment,900008632,5.00,
BEIS,The Insolvency Service,03/06/2019,Travel & Subsistence,Investigations & Enforcement Services,Staff Payment,900008632,5.00,
BEIS,The Insolvency Service,03/06/2019,Travel & Subsistence,Investigations & Enforcement Services,Staff Payment,900008632,5.00,
BEIS,The Insolvency Service,03/06/2019,Travel & Subsistence,Investigations & Enforcement Services,Staff Payment,900008632,5.00,
BEIS,The Insolvency Service,03/06/2019,Travel & Subsistence,Investigations & Enforcement Services,Staff Payment,900008632,5.00,
BEIS,The Insolvency Service,03/06/2019,Travel & Subsistence,Investigations & Enforcement Services,Staff Payment,900008632,11.98,
BEIS,The Insolvency Service,03/06/2019,Travel & Subsistence,Investigations & Enforcement Services,Staff Payment,900008632,5.00,
BEIS,The Insolvency Service,03/06/2019,Travel & Subsistence,Investigations & Enforcement Services,Staff Payment,900008632,4.65,
BEIS,The Insolvency Service,03/06/2019,Travel & Subsistence,Investigations & Enforcement Services,Staff Payment,900008632,5.00,
BEIS,The Insolvency Service,03/06/2019,Travel & Subsistence,Investigations & Enforcement Services,Staff Payment,900008632,5.00,
BEIS,The Insolvency Service,03/06/2019,Travel & Subsistence,Investigations & Enforcement Services,Staff Payment,900008632,15.00,
BEIS,The Insolvency Service,03/06/2019,Travel & Subsistence,Investigations & Enforcement Services,Staff Payment,900008632,5.00,
BEIS,The Insolvency Service,03/06/2019,Travel & Subsistence,Investigations & Enforcement Services,Staff Payment,900008632,5.00,
BEIS,The Insolvency Service,03/06/2019,Travel & Subsistence,Investigations & Enforcement Services,Staff Payment,900008937,5.40,
BEIS,The Insolvency Service,03/06/2019,Travel & Subsistence,Investigations & Enforcement Services,Staff Payment,900008937,7.00,
BEIS,The Insolvency Service,03/06/2019,Travel & Subsistence,Investigations & Enforcement Services,Staff Payment,900008937,5.00,
BEIS,The Insolvency Service,03/06/2019,Travel & Subsistence,Investigations & Enforcement Services,Staff Payment,900008937,1.95,
BEIS,The Insolvency Service,03/06/2019,Travel & Subsistence,Investigations & Enforcement Services,Staff Payment,900008937,1.70,
BEIS,The Insolvency Service,03/06/2019,Travel & Subsistence,Investigations & Enforcement Services,Staff Payment,900009011,2.70,
BEIS,The Insolvency Service,03/06/2019,Travel & Subsistence,Investigations & Enforcement Services,Staff Payment,900009011,4.50,
BEIS,The Insolvency Service,03/06/2019,Travel & Subsistence,Investigations & Enforcement Services,Staff Payment,900009011,94.50,
BEIS,The Insolvency Service,03/06/2019,Travel & Subsistence,Investigations & Enforcement Services,Staff Payment,900009011,5.00,
BEIS,The Insolvency Service,03/06/2019,Travel & Subsistence,Investigations & Enforcement Services,Staff Payment,900009011,5.00,
BEIS,The Insolvency Service,03/06/2019,Travel & Subsistence,Investigations & Enforcement Services,Staff Payment,900008921,117.00,
BEIS,The Insolvency Service,03/06/2019,Travel & Subsistence,Investigations & Enforcement Services,Staff Payment,900008921,28.80,
BEIS,The Insolvency Service,03/06/2019,Travel & Subsistence,Investigations & Enforcement Services,Staff Payment,900008921,11.00,
BEIS,The Insolvency Service,03/06/2019,Travel & Subsistence,Investigations & Enforcement Services,Staff Payment,900008921,15.00,
BEIS,The Insolvency Service,03/06/2019,Travel & Subsistence,Investigations & Enforcement Services,Staff Payment,900008921,5.00,
BEIS,The Insolvency Service,03/06/2019,Travel & Subsistence,Investigations & Enforcement Services,Staff Payment,900008921,5.00,
BEIS,The Insolvency Service,03/06/2019,Travel & Subsistence,Investigations & Enforcement Services,Staff Payment,900008923,4.89,
BEIS,The Insolvency Service,03/06/2019,Travel & Subsistence,Investigations & Enforcement Services,Staff Payment,900008923,5.00,
BEIS,The Insolvency Service,03/06/2019,Travel & Subsistence,Investigations & Enforcement Services,Staff Payment,900008923,15.00,
BEIS,The Insolvency Service,03/06/2019,Travel & Subsistence,Investigations & Enforcement Services,Staff Payment,900008923,52.20,
BEIS,The Insolvency Service,03/06/2019,Travel & Subsistence,Investigations & Enforcement Services,Staff Payment,900008923,16.00,
BEIS,The Insolvency Service,03/06/2019,Travel & Subsistence,Investigations & Enforcement Services,Staff Payment,900008923,52.20,
BEIS,The Insolvency Service,03/06/2019,Travel & Subsistence,Investigations & Enforcement Services,Staff Payment,900008989,61.20,
BEIS,The Insolvency Service,03/06/2019,Travel & Subsistence,Investigations & Enforcement Services,Staff Payment,900008989,4.54,
BEIS,The Insolvency Service,03/06/2019,Travel & Subsistence,Strategy & Change,Staff Payment,900008616,5.00,
BEIS,The Insolvency Service,03/06/2019,Travel & Subsistence,Strategy & Change,Staff Payment,900008616,3.70,
BEIS,The Insolvency Service,03/06/2019,Travel & Subsistence,Strategy & Change,Staff Payment,900008616,5.40,
BEIS,The Insolvency Service,03/06/2019,Travel & Subsistence,Investigations & Enforcement Services,Staff Payment,900009000,15.30,
BEIS,The Insolvency Service,03/06/2019,Travel & Subsistence,Official Receiver Services,Staff Payment,900008941,35.30,
BEIS,The Insolvency Service,03/06/2019,Travel & Subsistence,Official Receiver Services,Staff Payment,900008941,35.30,
BEIS,The Insolvency Service,03/06/2019,Travel & Subsistence,Official Receiver Services,Staff Payment,900008941,5.00,
BEIS,The Insolvency Service,03/06/2019,Travel & Subsistence,Official Receiver Services,Staff Payment,900008961,30.30,
BEIS,The Insolvency Service,03/06/2019,Travel & Subsistence,Chief Executive Office,Staff Payment,900008957,3.39,
BEIS,The Insolvency Service,03/06/2019,Travel & Subsistence,Chief Executive Office,Staff Payment,900008958,4.50,
BEIS,The Insolvency Service,03/06/2019,Travel & Subsistence,Chief Executive Office,Staff Payment,900008958,15.00,
BEIS,The Insolvency Service,03/06/2019,Travel & Subsistence,Chief Executive Office,Staff Payment,900008958,5.00,
BEIS,The Insolvency Service,03/06/2019,Travel & Subsistence,Chief Executive Office,Staff Payment,900008958,5.00,
BEIS,The Insolvency Service,03/06/2019,Travel & Subsistence,Chief Executive Office,Staff Payment,900008953,17.00,
BEIS,The Insolvency Service,03/06/2019,Travel & Subsistence,Chief Executive Office,Staff Payment,900008953,5.00,
BEIS,The Insolvency Service,03/06/2019,Travel & Subsistence,Chief Executive Office,Staff Payment,900008953,5.00,
BEIS,The Insolvency Service,03/06/2019,Travel & Subsistence,Chief Executive Office,Staff Payment,900008953,15.00,
BEIS,The Insolvency Service,03/06/2019,Travel & Subsistence,Chief Executive Office,Staff Payment,900008953,5.00,
BEIS,The Insolvency Service,03/06/2019,Travel & Subsistence,Chief Executive Office,Staff Payment,900008956,3.00,
BEIS,The Insolvency Service,03/06/2019,Travel & Subsistence,Chief Executive Office,Staff Payment,900008956,9.50,
BEIS,The Insolvency Service,03/06/2019,Travel & Subsistence,Chief Executive Office,Staff Payment,900008956,15.00,
BEIS,The Insolvency Service,03/06/2019,Travel & Subsistence,Chief Executive Office,Staff Payment,900008956,5.00,
BEIS,The Insolvency Service,03/06/2019,Travel & Subsistence,Legal Services Division,Staff Payment,900008746,133.20,
BEIS,The Insolvency Service,03/06/2019,Travel & Subsistence,Legal Services Division,Staff Payment,900008988,133.20,
BEIS,The Insolvency Service,03/06/2019,Travel & Subsistence,Finance & Commercial,Staff Payment,900008934,2.30,
BEIS,The Insolvency Service,03/06/2019,Travel & Subsistence,Finance & Commercial,Staff Payment,900008934,2.85,
BEIS,The Insolvency Service,03/06/2019,Travel & Subsistence,Finance & Commercial,Staff Payment,900008935,2.20,
BEIS,The Insolvency Service,03/06/2019,Travel & Subsistence,Finance & Commercial,Staff Payment,900008935,2.30,
BEIS,The Insolvency Service,03/06/2019,Travel & Subsistence,Finance & Commercial,Staff Payment,900008935,4.45,
BEIS,The Insolvency Service,03/06/2019,Travel & Subsistence,Investigations & Enforcement Services,Staff Payment,900008978,15.00,
BEIS,The Insolvency Service,03/06/2019,Travel & Subsistence,Investigations & Enforcement Services,Staff Payment,900008978,6.00,
BEIS,The Insolvency Service,03/06/2019,Travel & Subsistence,Investigations & Enforcement Services,Staff Payment,900008978,18.45,
BEIS,The Insolvency Service,03/06/2019,Travel & Subsistence,Investigations & Enforcement Services,Staff Payment,900008510,6.39,
BEIS,The Insolvency Service,03/06/2019,Travel & Subsistence,Investigations & Enforcement Services,Staff Payment,900008510,6.00,
BEIS,The Insolvency Service,03/06/2019,Travel & Subsistence,Investigations & Enforcement Services,Staff Payment,900008510,26.10,
BEIS,The Insolvency Service,03/06/2019,Travel & Subsistence,Investigations & Enforcement Services,Staff Payment,900008510,12.50,
BEIS,The Insolvency Service,03/06/2019,Travel & Subsistence,Investigations & Enforcement Services,Staff Payment,900008510,15.00,
BEIS,The Insolvency Service,03/06/2019,Travel & Subsistence,Investigations & Enforcement Services,Staff Payment,900008510,2.10,
BEIS,The Insolvency Service,03/06/2019,Travel & Subsistence,Investigations & Enforcement Services,Staff Payment,900008510,2.50,
BEIS,The Insolvency Service,04/06/2019,Compensation/Disbursements,Official Receiver Services,Insolvency Service,300009533,50.00,
BEIS,The Insolvency Service,04/06/2019,Estates - Property,Finance & Commercial,HMCTS,300009535,4300.00,888818055
BEIS,The Insolvency Service,04/06/2019,Telephone & Postage,Business Service Division,Tnt Uk Ltd,300009487,46.95,354715057
BEIS,The Insolvency Service,04/06/2019,Telephone & Postage,Business Service Division,Tnt Uk Ltd,300009489,19.06,354715057
BEIS,The Insolvency Service,04/06/2019,Telephone & Postage,Business Service Division,Tnt Uk Ltd,300009490,8.99,354715057
BEIS,The Insolvency Service,04/06/2019,Investigation & Enforcement,Investigations & Enforcement Services,Shepherd & Wedderburn,300009438,1875.66,890559386
BEIS,The Insolvency Service,04/06/2019,Investigation & Enforcement,Investigations & Enforcement Services,Shepherd & Wedderburn,300009438,162.00,890559386
BEIS,The Insolvency Service,04/06/2019,Legal - Disqualifications,Investigations & Enforcement Services,Shepherd & Wedderburn,300009438,15262.35,890559386
BEIS,The Insolvency Service,04/06/2019,Legal - Disqualifications,Investigations & Enforcement Services,Shepherd & Wedderburn,300009438,2903.00,890559386
BEIS,The Insolvency Service,04/06/2019,Legal - Live Investigations,Investigations & Enforcement Services,Shepherd & Wedderburn,300009438,3869.07,890559386
BEIS,The Insolvency Service,04/06/2019,Legal - Other,Official Receiver Services,Actica Consulting Limited,300009452,22312.50,3396854
BEIS,The Insolvency Service,04/06/2019,Legal - Disqualifications,Legal Services Division,South Square,300010294,1814.40,994806956
BEIS,The Insolvency Service,04/06/2019,Travel & Subsistence,Investigations & Enforcement Services,Staff Payment,900008862,11.70,
BEIS,The Insolvency Service,06/06/2019,Estates - Property,Finance & Commercial,Croydon Council,300009587,1470.00,218591255
BEIS,The Insolvency Service,06/06/2019,Investigation & Enforcement,Official Receiver Services,Womble Bond Dickinson,300009454,36495.35,123392627
BEIS,The Insolvency Service,06/06/2019,Investigation & Enforcement,Official Receiver Services,Womble Bond Dickinson,300009455,20561.07,123392627
BEIS,The Insolvency Service,06/06/2019,Compensation/Disbursements,Official Receiver Services,The Stationery Office Ltd,300009188,77.10,662774703
BEIS,The Insolvency Service,06/06/2019,Compensation/Disbursements,Official Receiver Services,The Stationery Office Ltd,300009189,77.10,662774703
BEIS,The Insolvency Service,06/06/2019,Telephone & Postage,Business Service Division,Tnt Uk Ltd,300009591,70.67,354715057
BEIS,The Insolvency Service,06/06/2019,Legal - Disqualifications,Investigations & Enforcement Services,Burness Paull & Williamsons Solicitors,300009459,11431.41,216218532
BEIS,The Insolvency Service,06/06/2019,Legal - Disqualifications,Investigations & Enforcement Services,Burness Paull & Williamsons Solicitors,300009459,153.00,216218532
BEIS,The Insolvency Service,06/06/2019,Legal - Outsourced Investigation,Investigations & Enforcement Services,Burness Paull & Williamsons Solicitors,300009459,6436.89,216218532
BEIS,The Insolvency Service,06/06/2019,Investigation & Enforcement,Investigations & Enforcement Services,Burness Paull & Williamsons Solicitors,300009459,1932.36,216218532
BEIS,The Insolvency Service,06/06/2019,Investigation & Enforcement,Investigations & Enforcement Services,Burness Paull & Williamsons Solicitors,300009459,161.00,216218532
BEIS,The Insolvency Service,06/06/2019,Estates - Property,Finance & Commercial,Prydis Support Ltd,300009573,654.82,974841283
BEIS,The Insolvency Service,06/06/2019,I&T,Information & Technology,Kofax Northern Ireland Limited,300009555,240946.30,681590219
BEIS,The Insolvency Service,06/06/2019,Telephone & Postage,Business Service Division,City Sprint Uk Ltd,300009492,359.72,997327364
BEIS,The Insolvency Service,06/06/2019,HR,People & Capability,Right Corecare Ltd,300009511,577.88,
BEIS,The Insolvency Service,06/06/2019,Legal - Live Investigations,Legal Services Division,18 Red Lion Court Chambers,300009562,513.00,766793665
BEIS,The Insolvency Service,06/06/2019,Legal - Live Investigations,Legal Services Division,Citadel Chambers,300009578,3420.00,241217250
BEIS,The Insolvency Service,06/06/2019,Legal - Live Investigations,Investigations & Enforcement Services,National Crime Agency,300009575,650.00,888849824
BEIS,The Insolvency Service,06/06/2019,Legal - Outsourced Investigation,Official Receiver Services,Pricewaterhouse Coopers LLP,300009510,740432.00,243823957
BEIS,The Insolvency Service,06/06/2019,I&T,Strategy & Change,Insight Direct (UK) Ltd,300009546,1907.36,746075129
BEIS,The Insolvency Service,06/06/2019,Staff Costs - Non-Perms,Finance & Commercial,ALEXANDER MANN SOLUTIONS,300009512,52127.77,7444926120
BEIS,The Insolvency Service,06/06/2019,Legal - Live Investigations,Legal Services Division,Old Court Chambers,300009568,162.12,229424309
BEIS,The Insolvency Service,06/06/2019,Legal - Live Investigations,Legal Services Division,Old Court Chambers,300009569,630.24,229424309
BEIS,The Insolvency Service,06/06/2019,Legal - Live Investigations,Legal Services Division,Old Court Chambers,300009570,192.12,229424309
BEIS,The Insolvency Service,06/06/2019,Legal - Live Investigations,Legal Services Division,Old Court Chambers,300009571,324.24,229424309
BEIS,The Insolvency Service,06/06/2019,I&T,Information & Technology,SmartSourcing,300009485,3750.00,788507869
BEIS,The Insolvency Service,06/06/2019,I&T,Information & Technology,SmartSourcing,300009497,2295.00,788507869
BEIS,The Insolvency Service,06/06/2019,I&T,Information & Technology,SmartSourcing,300009500,3630.00,788507869
BEIS,The Insolvency Service,06/06/2019,I&T,Information & Technology,SmartSourcing,300009503,3000.00,788507869
BEIS,The Insolvency Service,06/06/2019,I&T,Information & Technology,SmartSourcing,300009505,3720.00,788507869
BEIS,The Insolvency Service,06/06/2019,I&T,Information & Technology,SmartSourcing,300009506,3600.00,788507869
BEIS,The Insolvency Service,06/06/2019,Legal - Live Investigations,Legal Services Division,9 Bedford Row Chambers,300009554,312.00,802832844
BEIS,The Insolvency Service,06/06/2019,Travel & Subsistence,Official Receiver Services,Staff Payment,900009013,309.15,
BEIS,The Insolvency Service,06/06/2019,Travel & Subsistence,Information & Technology,Staff Payment,900008881,10.00,
BEIS,The Insolvency Service,06/06/2019,Travel & Subsistence,Information & Technology,Staff Payment,900008881,15.00,
BEIS,The Insolvency Service,06/06/2019,Travel & Subsistence,Information & Technology,Staff Payment,900008881,4.50,
BEIS,The Insolvency Service,06/06/2019,Travel & Subsistence,Information & Technology,Staff Payment,900008881,13.10,
BEIS,The Insolvency Service,06/06/2019,Travel & Subsistence,Information & Technology,Staff Payment,900008881,4.75,
BEIS,The Insolvency Service,06/06/2019,Travel & Subsistence,Official Receiver Services,Staff Payment,900009047,24.12,
BEIS,The Insolvency Service,06/06/2019,Travel & Subsistence,Official Receiver Services,Staff Payment,900009047,14.38,
BEIS,The Insolvency Service,06/06/2019,Travel & Subsistence,Official Receiver Services,Staff Payment,900009047,24.03,
BEIS,The Insolvency Service,06/06/2019,Travel & Subsistence,Official Receiver Services,Staff Payment,900008837,59.85,
BEIS,The Insolvency Service,06/06/2019,Travel & Subsistence,Official Receiver Services,Staff Payment,900008837,59.85,
BEIS,The Insolvency Service,06/06/2019,Travel & Subsistence,Official Receiver Services,Staff Payment,900008837,12.50,
BEIS,The Insolvency Service,06/06/2019,Travel & Subsistence,Official Receiver Services,Staff Payment,900008837,15.00,
BEIS,The Insolvency Service,06/06/2019,Travel & Subsistence,Official Receiver Services,Staff Payment,900008837,5.00,
BEIS,The Insolvency Service,06/06/2019,Travel & Subsistence,Official Receiver Services,Staff Payment,900009005,114.75,
BEIS,The Insolvency Service,06/06/2019,Travel & Subsistence,Chief Executive Office,Staff Payment,900009022,4.80,
BEIS,The Insolvency Service,06/06/2019,Travel & Subsistence,Chief Executive Office,Staff Payment,900009022,2.90,
BEIS,The Insolvency Service,06/06/2019,Travel & Subsistence,Chief Executive Office,Staff Payment,900009022,2.40,
BEIS,The Insolvency Service,06/06/2019,Travel & Subsistence,Official Receiver Services,Staff Payment,900009040,5.00,
BEIS,The Insolvency Service,06/06/2019,Travel & Subsistence,Official Receiver Services,Staff Payment,900008792,35.10,
BEIS,The Insolvency Service,06/06/2019,Travel & Subsistence,Business Service Division,Staff Payment,900008867,3.85,
BEIS,The Insolvency Service,06/06/2019,Travel & Subsistence,Business Service Division,Staff Payment,900008867,15.00,
BEIS,The Insolvency Service,06/06/2019,Travel & Subsistence,Business Service Division,Staff Payment,900008867,4.99,
BEIS,The Insolvency Service,06/06/2019,Travel & Subsistence,Business Service Division,Staff Payment,900008867,8.10,
BEIS,The Insolvency Service,06/06/2019,Travel & Subsistence,Business Service Division,Staff Payment,900008867,8.50,
BEIS,The Insolvency Service,06/06/2019,Travel & Subsistence,Business Service Division,Staff Payment,900008867,11.25,
BEIS,The Insolvency Service,06/06/2019,Travel & Subsistence,Business Service Division,Staff Payment,900008867,20.00,
BEIS,The Insolvency Service,06/06/2019,Travel & Subsistence,Business Service Division,Staff Payment,900008867,3.15,
BEIS,The Insolvency Service,06/06/2019,Travel & Subsistence,Business Service Division,Staff Payment,900008867,15.00,
BEIS,The Insolvency Service,06/06/2019,Travel & Subsistence,Business Service Division,Staff Payment,900008867,5.00,
BEIS,The Insolvency Service,06/06/2019,Travel & Subsistence,Business Service Division,Staff Payment,900008867,8.99,
BEIS,The Insolvency Service,06/06/2019,Travel & Subsistence,Business Service Division,Staff Payment,900008867,3.39,
BEIS,The Insolvency Service,06/06/2019,Travel & Subsistence,People & Capability,Staff Payment,900009032,9.40,
BEIS,The Insolvency Service,06/06/2019,Travel & Subsistence,People & Capability,Staff Payment,900009032,5.00,
BEIS,The Insolvency Service,06/06/2019,Travel & Subsistence,People & Capability,Staff Payment,900009032,15.00,
BEIS,The Insolvency Service,06/06/2019,Travel & Subsistence,People & Capability,Staff Payment,900009032,5.00,
BEIS,The Insolvency Service,06/06/2019,Travel & Subsistence,People & Capability,Staff Payment,900009032,2.40,
BEIS,The Insolvency Service,06/06/2019,Travel & Subsistence,People & Capability,Staff Payment,900009032,2.40,
BEIS,The Insolvency Service,06/06/2019,Travel & Subsistence,People & Capability,Staff Payment,900009032,2.40,
BEIS,The Insolvency Service,06/06/2019,Travel & Subsistence,People & Capability,Staff Payment,900009032,8.55,
BEIS,The Insolvency Service,06/06/2019,Travel & Subsistence,People & Capability,Staff Payment,900009032,15.00,
BEIS,The Insolvency Service,06/06/2019,Travel & Subsistence,Investigations & Enforcement Services,Staff Payment,900008917,3.60,
BEIS,The Insolvency Service,06/06/2019,Travel & Subsistence,Investigations & Enforcement Services,Staff Payment,900008917,12.00,
BEIS,The Insolvency Service,06/06/2019,Travel & Subsistence,Investigations & Enforcement Services,Staff Payment,900008917,22.50,
BEIS,The Insolvency Service,06/06/2019,Travel & Subsistence,Investigations & Enforcement Services,Staff Payment,900008917,4.99,
BEIS,The Insolvency Service,06/06/2019,Travel & Subsistence,Business Service Division,Staff Payment,900009034,229.50,
BEIS,The Insolvency Service,06/06/2019,Travel & Subsistence,Business Service Division,Staff Payment,900009034,101.70,
BEIS,The Insolvency Service,06/06/2019,Travel & Subsistence,Business Service Division,Staff Payment,900009034,12.00,
BEIS,The Insolvency Service,06/06/2019,Travel & Subsistence,Business Service Division,Staff Payment,900009034,20.19,
BEIS,The Insolvency Service,06/06/2019,Travel & Subsistence,Business Service Division,Staff Payment,900009034,5.24,
BEIS,The Insolvency Service,06/06/2019,Travel & Subsistence,Business Service Division,Staff Payment,900009034,79.28,
BEIS,The Insolvency Service,06/06/2019,Travel & Subsistence,Business Service Division,Staff Payment,900009064,76.00,
BEIS,The Insolvency Service,06/06/2019,Travel & Subsistence,Business Service Division,Staff Payment,900009064,71.50,
BEIS,The Insolvency Service,06/06/2019,Travel & Subsistence,Chief Executive Office,Staff Payment,900009065,6.00,
BEIS,The Insolvency Service,06/06/2019,Travel & Subsistence,Chief Executive Office,Staff Payment,900009065,21.15,
BEIS,The Insolvency Service,06/06/2019,Travel & Subsistence,Chief Executive Office,Staff Payment,900009065,10.00,
BEIS,The Insolvency Service,06/06/2019,Travel & Subsistence,Chief Executive Office,Staff Payment,900009065,5.00,
BEIS,The Insolvency Service,06/06/2019,Travel & Subsistence,Chief Executive Office,Staff Payment,900009065,15.00,
BEIS,The Insolvency Service,06/06/2019,Travel & Subsistence,Chief Executive Office,Staff Payment,900009065,5.00,
BEIS,The Insolvency Service,06/06/2019,Travel & Subsistence,Chief Executive Office,Staff Payment,900009065,4.79,
BEIS,The Insolvency Service,06/06/2019,Travel & Subsistence,Chief Executive Office,Staff Payment,900009065,5.00,
BEIS,The Insolvency Service,06/06/2019,Travel & Subsistence,Chief Executive Office,Staff Payment,900009065,14.85,
BEIS,The Insolvency Service,06/06/2019,Travel & Subsistence,Chief Executive Office,Staff Payment,900009065,5.00,
BEIS,The Insolvency Service,06/06/2019,Travel & Subsistence,Chief Executive Office,Staff Payment,900009065,15.00,
BEIS,The Insolvency Service,06/06/2019,Travel & Subsistence,Business Service Division,Staff Payment,900008995,6.62,
BEIS,The Insolvency Service,06/06/2019,Travel & Subsistence,Business Service Division,Staff Payment,900008995,60.75,
BEIS,The Insolvency Service,06/06/2019,Travel & Subsistence,Business Service Division,Staff Payment,900008995,60.75,
BEIS,The Insolvency Service,06/06/2019,Travel & Subsistence,Business Service Division,Staff Payment,900008995,10.00,
BEIS,The Insolvency Service,06/06/2019,Travel & Subsistence,Business Service Division,Staff Payment,900008995,4.99,
BEIS,The Insolvency Service,06/06/2019,Travel & Subsistence,Business Service Division,Staff Payment,900008995,15.00,
BEIS,The Insolvency Service,06/06/2019,Travel & Subsistence,Official Receiver Services,Staff Payment,900008743,5.00,
BEIS,The Insolvency Service,06/06/2019,Travel & Subsistence,Official Receiver Services,Staff Payment,900009044,5.00,
BEIS,The Insolvency Service,06/06/2019,Travel & Subsistence,Investigations & Enforcement Services,Staff Payment,900008859,5.00,
BEIS,The Insolvency Service,06/06/2019,Travel & Subsistence,Investigations & Enforcement Services,Staff Payment,900008860,15.00,
BEIS,The Insolvency Service,06/06/2019,Travel & Subsistence,Chief Executive Office,Staff Payment,900009045,2.40,
BEIS,The Insolvency Service,06/06/2019,Travel & Subsistence,Chief Executive Office,Staff Payment,900009045,1.50,
BEIS,The Insolvency Service,06/06/2019,Travel & Subsistence,Chief Executive Office,Staff Payment,900009045,5.00,
BEIS,The Insolvency Service,06/06/2019,Travel & Subsistence,Investigations & Enforcement Services,Staff Payment,900009063,7.60,
BEIS,The Insolvency Service,06/06/2019,Travel & Subsistence,Investigations & Enforcement Services,Staff Payment,900009063,4.65,
BEIS,The Insolvency Service,06/06/2019,Travel & Subsistence,Strategy & Change,Staff Payment,900009031,81.26,
BEIS,The Insolvency Service,06/06/2019,Travel & Subsistence,Strategy & Change,Staff Payment,900009031,60.57,
BEIS,The Insolvency Service,06/06/2019,Travel & Subsistence,Strategy & Change,Staff Payment,900009031,60.34,
BEIS,The Insolvency Service,06/06/2019,Travel & Subsistence,Strategy & Change,Staff Payment,900009031,80.94,
BEIS,The Insolvency Service,06/06/2019,Travel & Subsistence,Strategy & Change,Staff Payment,900009031,81.24,
BEIS,The Insolvency Service,06/06/2019,Travel & Subsistence,Official Receiver Services,Staff Payment,900008918,3.39,
BEIS,The Insolvency Service,06/06/2019,Travel & Subsistence,Official Receiver Services,Staff Payment,900008918,3.35,
BEIS,The Insolvency Service,06/06/2019,Travel & Subsistence,Official Receiver Services,Staff Payment,900008997,2.00,
BEIS,The Insolvency Service,06/06/2019,Travel & Subsistence,Official Receiver Services,Staff Payment,900008997,19.80,
BEIS,The Insolvency Service,06/06/2019,Travel & Subsistence,Strategy & Change,Staff Payment,900008992,12.00,
BEIS,The Insolvency Service,06/06/2019,Travel & Subsistence,Strategy & Change,Staff Payment,900008992,4.99,
BEIS,The Insolvency Service,06/06/2019,Travel & Subsistence,Strategy & Change,Staff Payment,900008993,12.00,
BEIS,The Insolvency Service,06/06/2019,Travel & Subsistence,Strategy & Change,Staff Payment,900008993,5.00,
BEIS,The Insolvency Service,06/06/2019,Travel & Subsistence,Investigations & Enforcement Services,Staff Payment,900008960,2.75,
BEIS,The Insolvency Service,06/06/2019,Travel & Subsistence,Investigations & Enforcement Services,Staff Payment,900008960,4.59,
BEIS,The Insolvency Service,06/06/2019,Travel & Subsistence,Investigations & Enforcement Services,Staff Payment,900008960,12.00,
BEIS,The Insolvency Service,06/06/2019,Travel & Subsistence,Investigations & Enforcement Services,Staff Payment,900008960,9.00,
BEIS,The Insolvency Service,06/06/2019,Travel & Subsistence,Chief Executive Office,Staff Payment,900009043,13.98,
BEIS,The Insolvency Service,06/06/2019,Travel & Subsistence,Chief Executive Office,Staff Payment,900009043,10.00,
BEIS,The Insolvency Service,06/06/2019,Travel & Subsistence,Chief Executive Office,Staff Payment,900009043,15.00,
BEIS,The Insolvency Service,06/06/2019,Travel & Subsistence,Investigations & Enforcement Services,Staff Payment,900008533,0.70,
BEIS,The Insolvency Service,06/06/2019,Travel & Subsistence,Investigations & Enforcement Services,Staff Payment,900008533,2.26,
BEIS,The Insolvency Service,06/06/2019,Travel & Subsistence,Investigations & Enforcement Services,Staff Payment,900008533,5.00,
BEIS,The Insolvency Service,06/06/2019,Travel & Subsistence,Investigations & Enforcement Services,Staff Payment,900008533,30.60,
BEIS,The Insolvency Service,06/06/2019,Travel & Subsistence,Investigations & Enforcement Services,Staff Payment,900008533,95.40,
BEIS,The Insolvency Service,06/06/2019,Travel & Subsistence,Investigations & Enforcement Services,Staff Payment,900008533,4.00,
BEIS,The Insolvency Service,06/06/2019,Travel & Subsistence,Investigations & Enforcement Services,Staff Payment,900008533,62.10,
BEIS,The Insolvency Service,06/06/2019,Travel & Subsistence,Investigations & Enforcement Services,Staff Payment,900008533,11.00,
BEIS,The Insolvency Service,06/06/2019,Travel & Subsistence,Investigations & Enforcement Services,Staff Payment,900008533,62.10,
BEIS,The Insolvency Service,06/06/2019,Travel & Subsistence,Investigations & Enforcement Services,Staff Payment,900008533,124.20,
BEIS,The Insolvency Service,06/06/2019,Travel & Subsistence,Investigations & Enforcement Services,Staff Payment,900008533,66.60,
BEIS,The Insolvency Service,06/06/2019,Travel & Subsistence,Investigations & Enforcement Services,Staff Payment,900008533,3.89,
BEIS,The Insolvency Service,06/06/2019,Travel & Subsistence,Investigations & Enforcement Services,Staff Payment,900008533,15.00,
BEIS,The Insolvency Service,06/06/2019,Travel & Subsistence,Investigations & Enforcement Services,Staff Payment,900008533,5.00,
BEIS,The Insolvency Service,06/06/2019,Travel & Subsistence,Investigations & Enforcement Services,Staff Payment,900008533,4.70,
BEIS,The Insolvency Service,06/06/2019,Travel & Subsistence,Investigations & Enforcement Services,Staff Payment,900008533,9.40,
BEIS,The Insolvency Service,06/06/2019,Travel & Subsistence,Investigations & Enforcement Services,Staff Payment,900008533,4.45,
BEIS,The Insolvency Service,06/06/2019,Travel & Subsistence,Investigations & Enforcement Services,Staff Payment,900008943,1.40,
BEIS,The Insolvency Service,06/06/2019,Travel & Subsistence,Investigations & Enforcement Services,Staff Payment,900008943,25.00,
BEIS,The Insolvency Service,06/06/2019,Travel & Subsistence,Investigations & Enforcement Services,Staff Payment,900008943,25.00,
BEIS,The Insolvency Service,06/06/2019,Travel & Subsistence,Investigations & Enforcement Services,Staff Payment,900008943,25.00,
BEIS,The Insolvency Service,06/06/2019,Travel & Subsistence,Investigations & Enforcement Services,Staff Payment,900008943,25.00,
BEIS,The Insolvency Service,06/06/2019,Travel & Subsistence,Investigations & Enforcement Services,Staff Payment,900008943,25.00,
BEIS,The Insolvency Service,06/06/2019,Travel & Subsistence,Investigations & Enforcement Services,Staff Payment,900008943,4.85,
BEIS,The Insolvency Service,06/06/2019,Travel & Subsistence,Investigations & Enforcement Services,Staff Payment,900008943,5.00,
BEIS,The Insolvency Service,06/06/2019,Travel & Subsistence,Investigations & Enforcement Services,Staff Payment,900008943,3.10,
BEIS,The Insolvency Service,06/06/2019,Travel & Subsistence,Investigations & Enforcement Services,Staff Payment,900008943,5.00,
BEIS,The Insolvency Service,06/06/2019,Travel & Subsistence,Investigations & Enforcement Services,Staff Payment,900008943,1.40,
BEIS,The Insolvency Service,06/06/2019,Travel & Subsistence,Investigations & Enforcement Services,Staff Payment,900009042,25.00,
BEIS,The Insolvency Service,06/06/2019,Travel & Subsistence,Investigations & Enforcement Services,Staff Payment,900009042,25.00,
BEIS,The Insolvency Service,06/06/2019,Travel & Subsistence,Investigations & Enforcement Services,Staff Payment,900009042,25.00,
BEIS,The Insolvency Service,06/06/2019,Travel & Subsistence,Investigations & Enforcement Services,Staff Payment,900009042,3.10,
BEIS,The Insolvency Service,06/06/2019,Travel & Subsistence,Investigations & Enforcement Services,Staff Payment,900009042,4.85,
BEIS,The Insolvency Service,06/06/2019,Travel & Subsistence,Investigations & Enforcement Services,Staff Payment,900009042,5.00,
BEIS,The Insolvency Service,06/06/2019,Travel & Subsistence,Investigations & Enforcement Services,Staff Payment,900009042,1.40,
BEIS,The Insolvency Service,06/06/2019,Travel & Subsistence,Investigations & Enforcement Services,Staff Payment,900009042,1.40,
BEIS,The Insolvency Service,06/06/2019,Travel & Subsistence,Investigations & Enforcement Services,Staff Payment,900009042,25.00,
BEIS,The Insolvency Service,06/06/2019,Travel & Subsistence,Investigations & Enforcement Services,Staff Payment,900009042,25.00,
BEIS,The Insolvency Service,06/06/2019,Travel & Subsistence,Investigations & Enforcement Services,Staff Payment,900009042,25.00,
BEIS,The Insolvency Service,06/06/2019,Travel & Subsistence,Investigations & Enforcement Services,Staff Payment,900009024,5.00,
BEIS,The Insolvency Service,06/06/2019,Travel & Subsistence,Investigations & Enforcement Services,Staff Payment,900009024,4.85,
BEIS,The Insolvency Service,06/06/2019,Travel & Subsistence,Investigations & Enforcement Services,Staff Payment,900009024,4.70,
BEIS,The Insolvency Service,06/06/2019,Travel & Subsistence,Investigations & Enforcement Services,Staff Payment,900009024,4.05,
BEIS,The Insolvency Service,06/06/2019,Travel & Subsistence,Investigations & Enforcement Services,Staff Payment,900009024,76.05,
BEIS,The Insolvency Service,06/06/2019,Travel & Subsistence,Investigations & Enforcement Services,Staff Payment,900009024,24.00,
BEIS,The Insolvency Service,06/06/2019,Travel & Subsistence,Investigations & Enforcement Services,Staff Payment,900009024,9.00,
BEIS,The Insolvency Service,06/06/2019,Travel & Subsistence,Investigations & Enforcement Services,Staff Payment,900009024,4.32,
BEIS,The Insolvency Service,06/06/2019,Travel & Subsistence,Investigations & Enforcement Services,Staff Payment,900009024,8.55,
BEIS,The Insolvency Service,06/06/2019,Travel & Subsistence,Investigations & Enforcement Services,Staff Payment,900009024,4.05,
BEIS,The Insolvency Service,06/06/2019,Travel & Subsistence,Investigations & Enforcement Services,Staff Payment,900009024,5.00,
BEIS,The Insolvency Service,06/06/2019,Travel & Subsistence,Investigations & Enforcement Services,Staff Payment,900009024,5.00,
BEIS,The Insolvency Service,06/06/2019,Travel & Subsistence,Investigations & Enforcement Services,Staff Payment,900009024,5.00,
BEIS,The Insolvency Service,06/06/2019,Travel & Subsistence,Investigations & Enforcement Services,Staff Payment,900009024,15.00,
BEIS,The Insolvency Service,06/06/2019,Travel & Subsistence,Investigations & Enforcement Services,Staff Payment,900009027,38.70,
BEIS,The Insolvency Service,06/06/2019,Travel & Subsistence,Investigations & Enforcement Services,Staff Payment,900009015,25.00,
BEIS,The Insolvency Service,06/06/2019,Travel & Subsistence,Investigations & Enforcement Services,Staff Payment,900009015,13.50,
BEIS,The Insolvency Service,06/06/2019,Travel & Subsistence,Investigations & Enforcement Services,Staff Payment,900009015,17.00,
BEIS,The Insolvency Service,06/06/2019,Travel & Subsistence,Investigations & Enforcement Services,Staff Payment,900009015,12.65,
BEIS,The Insolvency Service,06/06/2019,Travel & Subsistence,Investigations & Enforcement Services,Staff Payment,900009015,15.00,
BEIS,The Insolvency Service,06/06/2019,Travel & Subsistence,Investigations & Enforcement Services,Staff Payment,900009061,12.00,
BEIS,The Insolvency Service,06/06/2019,Travel & Subsistence,Investigations & Enforcement Services,Staff Payment,900009061,18.00,
BEIS,The Insolvency Service,06/06/2019,Travel & Subsistence,Investigations & Enforcement Services,Staff Payment,900009061,104.40,
BEIS,The Insolvency Service,06/06/2019,Travel & Subsistence,Investigations & Enforcement Services,Staff Payment,900009061,5.00,
BEIS,The Insolvency Service,06/06/2019,Travel & Subsistence,Investigations & Enforcement Services,Staff Payment,900008999,53.10,
BEIS,The Insolvency Service,06/06/2019,Travel & Subsistence,Investigations & Enforcement Services,Staff Payment,900008999,5.00,
BEIS,The Insolvency Service,06/06/2019,Travel & Subsistence,Investigations & Enforcement Services,Staff Payment,900008999,53.10,
BEIS,The Insolvency Service,06/06/2019,Travel & Subsistence,Investigations & Enforcement Services,Staff Payment,900008999,4.00,
BEIS,The Insolvency Service,06/06/2019,Travel & Subsistence,Investigations & Enforcement Services,Staff Payment,900008999,4.00,
BEIS,The Insolvency Service,06/06/2019,Travel & Subsistence,Investigations & Enforcement Services,Staff Payment,900009021,12.00,
BEIS,The Insolvency Service,06/06/2019,Travel & Subsistence,Investigations & Enforcement Services,Staff Payment,900009021,126.00,
BEIS,The Insolvency Service,06/06/2019,Travel & Subsistence,Investigations & Enforcement Services,Staff Payment,900009021,45.90,
BEIS,The Insolvency Service,06/06/2019,Travel & Subsistence,Investigations & Enforcement Services,Staff Payment,900009021,12.00,
BEIS,The Insolvency Service,06/06/2019,Travel & Subsistence,Legal Services Division,Staff Payment,900009028,5.00,
BEIS,The Insolvency Service,06/06/2019,Travel & Subsistence,Legal Services Division,Staff Payment,900009028,15.00,
BEIS,The Insolvency Service,06/06/2019,Travel & Subsistence,Legal Services Division,Staff Payment,900009028,5.00,
BEIS,The Insolvency Service,06/06/2019,Travel & Subsistence,Legal Services Division,Staff Payment,900009028,3.80,
BEIS,The Insolvency Service,06/06/2019,Travel & Subsistence,Legal Services Division,Staff Payment,900009028,6.60,
BEIS,The Insolvency Service,06/06/2019,Travel & Subsistence,Legal Services Division,Staff Payment,900009028,7.70,
BEIS,The Insolvency Service,06/06/2019,Travel & Subsistence,Official Receiver Services,Staff Payment,900009004,4.40,
BEIS,The Insolvency Service,06/06/2019,Travel & Subsistence,Official Receiver Services,Staff Payment,900009004,4.57,
BEIS,The Insolvency Service,06/06/2019,Travel & Subsistence,Official Receiver Services,Staff Payment,900009004,2.20,
BEIS,The Insolvency Service,06/06/2019,Travel & Subsistence,Finance & Commercial,Staff Payment,900008996,33.40,
BEIS,The Insolvency Service,06/06/2019,Travel & Subsistence,Finance & Commercial,Staff Payment,900008996,5.40,
BEIS,The Insolvency Service,06/06/2019,Travel & Subsistence,Finance & Commercial,Staff Payment,900008996,5.10,
BEIS,The Insolvency Service,06/06/2019,Travel & Subsistence,Finance & Commercial,Staff Payment,900008998,5.40,
BEIS,The Insolvency Service,06/06/2019,Travel & Subsistence,Finance & Commercial,Staff Payment,900008998,5.10,
BEIS,The Insolvency Service,06/06/2019,Travel & Subsistence,Finance & Commercial,Staff Payment,900008998,39.50,
BEIS,The Insolvency Service,06/06/2019,Travel & Subsistence,Investigations & Enforcement Services,Staff Payment,900008991,29.50,
BEIS,The Insolvency Service,06/06/2019,Travel & Subsistence,Finance & Commercial,Staff Payment,900008644,10.20,
BEIS,The Insolvency Service,06/06/2019,Travel & Subsistence,Finance & Commercial,Staff Payment,900008913,2.99,
BEIS,The Insolvency Service,06/06/2019,Travel & Subsistence,Finance & Commercial,Staff Payment,900008913,10.00,
BEIS,The Insolvency Service,06/06/2019,Travel & Subsistence,Finance & Commercial,Staff Payment,900009053,5.50,
BEIS,The Insolvency Service,06/06/2019,Travel & Subsistence,Finance & Commercial,Staff Payment,900008916,5.00,
BEIS,The Insolvency Service,06/06/2019,Travel & Subsistence,Legal Services Division,Staff Payment,900009051,66.60,
BEIS,The Insolvency Service,06/06/2019,Travel & Subsistence,Finance & Commercial,Staff Payment,900008929,5.00,
BEIS,The Insolvency Service,06/06/2019,Travel & Subsistence,Finance & Commercial,Staff Payment,900008929,4.90,
BEIS,The Insolvency Service,06/06/2019,Travel & Subsistence,Finance & Commercial,Staff Payment,900008929,30.00,
BEIS,The Insolvency Service,06/06/2019,Travel & Subsistence,Finance & Commercial,Staff Payment,900008929,15.00,
BEIS,The Insolvency Service,06/06/2019,Travel & Subsistence,Finance & Commercial,Staff Payment,900008929,3.65,
BEIS,The Insolvency Service,06/06/2019,Travel & Subsistence,Finance & Commercial,Staff Payment,900008929,5.00,
BEIS,The Insolvency Service,06/06/2019,Travel & Subsistence,Finance & Commercial,Staff Payment,900008929,5.00,
BEIS,The Insolvency Service,06/06/2019,Travel & Subsistence,Finance & Commercial,Staff Payment,900008929,15.00,
BEIS,The Insolvency Service,06/06/2019,Travel & Subsistence,Finance & Commercial,Staff Payment,900008929,5.00,
BEIS,The Insolvency Service,06/06/2019,Travel & Subsistence,Finance & Commercial,Staff Payment,900008929,3.65,
BEIS,The Insolvency Service,06/06/2019,Travel & Subsistence,Finance & Commercial,Staff Payment,900008929,3.25,
BEIS,The Insolvency Service,06/06/2019,Travel & Subsistence,Finance & Commercial,Staff Payment,900008908,5.00,
BEIS,The Insolvency Service,06/06/2019,Travel & Subsistence,Finance & Commercial,Staff Payment,900008908,3.45,
BEIS,The Insolvency Service,06/06/2019,Travel & Subsistence,Finance & Commercial,Staff Payment,900008908,11.00,
BEIS,The Insolvency Service,06/06/2019,Travel & Subsistence,People & Capability,Staff Payment,900009049,3.20,
BEIS,The Insolvency Service,06/06/2019,Travel & Subsistence,People & Capability,Staff Payment,900009049,5.00,
BEIS,The Insolvency Service,06/06/2019,Travel & Subsistence,People & Capability,Staff Payment,900009049,8.05,
BEIS,The Insolvency Service,06/06/2019,Travel & Subsistence,People & Capability,Staff Payment,900009049,15.00,
BEIS,The Insolvency Service,06/06/2019,Travel & Subsistence,People & Capability,Staff Payment,900009050,3.90,
BEIS,The Insolvency Service,06/06/2019,Travel & Subsistence,People & Capability,Staff Payment,900009050,3.20,
BEIS,The Insolvency Service,10/06/2019,Estates - Property,Finance & Commercial,Middlesbrough Council,300009632,413.64,734213854
BEIS,The Insolvency Service,10/06/2019,I&T,Strategy & Change,Nettitude Ltd,300009586,63.84,184517196
BEIS,The Insolvency Service,10/06/2019,Legal - Outsourced Investigation,Official Receiver Services,Pricewaterhouse Coopers LLP,300008788,475488.00,243823957
BEIS,The Insolvency Service,10/06/2019,Estates - Storage,Official Receiver Services,Purdie Worldwide,300009631,930.69,208569880
BEIS,The Insolvency Service,10/06/2019,Estates - Storage,Official Receiver Services,Crown Records Management,300009628,35.62,902181658
BEIS,The Insolvency Service,10/06/2019,Estates - Storage,Official Receiver Services,Crown Records Management,300009629,898.14,902181658
BEIS,The Insolvency Service,10/06/2019,Travel & Subsistence,Investigations & Enforcement Services,Staff Payment,900009079,5.00,
BEIS,The Insolvency Service,10/06/2019,Travel & Subsistence,Investigations & Enforcement Services,Staff Payment,900009077,5.00,
BEIS,The Insolvency Service,10/06/2019,Travel & Subsistence,Finance & Commercial,Staff Payment,900008336,4.40,
BEIS,The Insolvency Service,10/06/2019,Travel & Subsistence,Finance & Commercial,Staff Payment,900008336,99.90,
BEIS,The Insolvency Service,10/06/2019,Travel & Subsistence,Business Service Division,Staff Payment,900009087,9.80,
BEIS,The Insolvency Service,10/06/2019,Travel & Subsistence,Business Service Division,Staff Payment,900009088,1.60,
BEIS,The Insolvency Service,10/06/2019,Travel & Subsistence,Business Service Division,Staff Payment,900009088,1.70,
BEIS,The Insolvency Service,10/06/2019,Travel & Subsistence,Business Service Division,Staff Payment,900009088,14.89,
BEIS,The Insolvency Service,10/06/2019,Travel & Subsistence,Business Service Division,Staff Payment,900009088,3.89,
BEIS,The Insolvency Service,10/06/2019,Travel & Subsistence,Business Service Division,Staff Payment,900009088,5.00,
BEIS,The Insolvency Service,10/06/2019,Travel & Subsistence,Business Service Division,Staff Payment,900009088,13.95,
BEIS,The Insolvency Service,10/06/2019,Travel & Subsistence,Business Service Division,Staff Payment,900009088,10.00,
BEIS,The Insolvency Service,10/06/2019,Travel & Subsistence,Business Service Division,Staff Payment,900009093,5.00,
BEIS,The Insolvency Service,10/06/2019,Travel & Subsistence,Business Service Division,Staff Payment,900009093,5.00,
BEIS,The Insolvency Service,10/06/2019,Travel & Subsistence,Business Service Division,Staff Payment,900009095,5.00,
BEIS,The Insolvency Service,10/06/2019,Travel & Subsistence,Business Service Division,Staff Payment,900009095,5.00,
BEIS,The Insolvency Service,10/06/2019,Travel & Subsistence,Business Service Division,Staff Payment,900009095,15.00,
BEIS,The Insolvency Service,10/06/2019,Travel & Subsistence,Business Service Division,Staff Payment,900009095,5.00,
BEIS,The Insolvency Service,10/06/2019,Travel & Subsistence,Business Service Division,Staff Payment,900009095,4.20,
BEIS,The Insolvency Service,10/06/2019,Travel & Subsistence,Business Service Division,Staff Payment,900009095,16.60,
BEIS,The Insolvency Service,10/06/2019,Travel & Subsistence,Business Service Division,Staff Payment,900009095,15.90,
BEIS,The Insolvency Service,10/06/2019,Travel & Subsistence,Strategy & Change,Staff Payment,900008990,5.00,
BEIS,The Insolvency Service,10/06/2019,Travel & Subsistence,Strategy & Change,Staff Payment,900008990,9.40,
BEIS,The Insolvency Service,10/06/2019,Travel & Subsistence,Strategy & Change,Staff Payment,900008990,2.30,
BEIS,The Insolvency Service,10/06/2019,Travel & Subsistence,Strategy & Change,Staff Payment,900008990,62.99,
BEIS,The Insolvency Service,10/06/2019,Travel & Subsistence,Strategy & Change,Staff Payment,900008990,16.65,
BEIS,The Insolvency Service,10/06/2019,Travel & Subsistence,Strategy & Change,Staff Payment,900008990,16.65,
BEIS,The Insolvency Service,10/06/2019,Travel & Subsistence,Strategy & Change,Staff Payment,900008990,16.00,
BEIS,The Insolvency Service,10/06/2019,Travel & Subsistence,Investigations & Enforcement Services,Staff Payment,900009075,18.60,
BEIS,The Insolvency Service,10/06/2019,Travel & Subsistence,Investigations & Enforcement Services,Staff Payment,900009075,13.10,
BEIS,The Insolvency Service,10/06/2019,Travel & Subsistence,Investigations & Enforcement Services,Staff Payment,900009075,5.00,
BEIS,The Insolvency Service,10/06/2019,Travel & Subsistence,Investigations & Enforcement Services,Staff Payment,900009075,15.00,
BEIS,The Insolvency Service,10/06/2019,Travel & Subsistence,Investigations & Enforcement Services,Staff Payment,900009075,5.00,
BEIS,The Insolvency Service,11/06/2019,Legal - Live Investigations,Legal Services Division,Government Legal Department,300009577,75.12,888823066
BEIS,The Insolvency Service,11/06/2019,Telephone & Postage,Information & Technology,Vodafone - Cable & Wireless Communications,300009590,807.90,569953277
BEIS,The Insolvency Service,11/06/2019,I&T,Information & Technology,Ibm Uk Ltd,300009589,483024.24,107328000
BEIS,The Insolvency Service,11/06/2019,Telephone & Postage,Business Service Division,Neopost Ltd,300009557,39350.00,
BEIS,The Insolvency Service,11/06/2019,Compensation/Disbursements,Official Receiver Services,The Stationery Office Ltd,300009480,77.10,662774703
BEIS,The Insolvency Service,11/06/2019,Compensation/Disbursements,Official Receiver Services,The Stationery Office Ltd,300009481,77.10,662774703
BEIS,The Insolvency Service,11/06/2019,Compensation/Disbursements,Official Receiver Services,The Stationery Office Ltd,300009482,154.20,662774703
BEIS,The Insolvency Service,11/06/2019,Compensation/Disbursements,Official Receiver Services,The Stationery Office Ltd,300009483,77.10,662774703
BEIS,The Insolvency Service,11/06/2019,Telephone & Postage,Business Service Division,Tnt Uk Ltd,300009574,11.07,354715057
BEIS,The Insolvency Service,11/06/2019,I&T,Information & Technology,Agilisys Ltd,300009618,7920.00,791711713
BEIS,The Insolvency Service,11/06/2019,Legal - Other,Strategy & Change,Agilisys Ltd,300009678,24619.20,791711713
BEIS,The Insolvency Service,11/06/2019,Estates - Property,Finance & Commercial,Prydis Support Ltd,300009619,36.63,974841283
BEIS,The Insolvency Service,11/06/2019,Legal - Live Investigations,Legal Services Division,23 Essex Street,300009582,6725.00,524199244
BEIS,The Insolvency Service,11/06/2019,Staff Costs - Non-Perms,Finance & Commercial,Allen Lane Limited,300009627,19320.00,835970985
BEIS,The Insolvency Service,11/06/2019,Estates - Property,Finance & Commercial,Kingston (Senate) Ltd,300009620,239.25,140357635
BEIS,The Insolvency Service,11/06/2019,Training,Finance & Commercial,Capita Business Services Ltd,300009556,159.37,618184140
BEIS,The Insolvency Service,11/06/2019,Legal - Disqualifications,Investigations & Enforcement Services,K International Plc,300008486,330.00,600413800
BEIS,The Insolvency Service,11/06/2019,Legal - Disqualifications,Investigations & Enforcement Services,K International Plc,300008487,360.00,600413800
BEIS,The Insolvency Service,11/06/2019,Telephone & Postage,Information & Technology,Ee Ltd,300009677,360.00,771592016
BEIS,The Insolvency Service,11/06/2019,Estates - Property,Finance & Commercial,Middlesbrough Council,300009673,344.70,734213854
BEIS,The Insolvency Service,11/06/2019,Training,Official Receiver Services,KPMG LLP,300009190,358.80,791788859
BEIS,The Insolvency Service,11/06/2019,Legal - Live Investigations,Legal Services Division,18 Red Lion Court Chambers,300009580,1200.00,766793665
BEIS,The Insolvency Service,11/06/2019,Legal - Live Investigations,Legal Services Division,18 Red Lion Court Chambers,300009583,213.60,766793665
BEIS,The Insolvency Service,11/06/2019,Legal - Live Investigations,Legal Services Division,Albion Chambers,300009584,816.00,822187438
BEIS,The Insolvency Service,11/06/2019,Legal - Live Investigations,Legal Services Division,Kch Garden Square Barristers,300009579,180.00,143297900
BEIS,The Insolvency Service,11/06/2019,Estates - Property,Finance & Commercial,Plymouth City Council,300009602,15281.24,
BEIS,The Insolvency Service,11/06/2019,Estates - Property,Finance & Commercial,Plymouth City Council,300009604,7243.75,
BEIS,The Insolvency Service,11/06/2019,Estates - Property,Finance & Commercial,Plymouth City Council,300009606,1200.00,
BEIS,The Insolvency Service,11/06/2019,Estates - Property,Finance & Commercial,Plymouth City Council,300009609,600.00,
BEIS,The Insolvency Service,11/06/2019,Staff Costs - Non-Perms,Finance & Commercial,ALEXANDER MANN SOLUTIONS,300009656,31534.07,7444926120
BEIS,The Insolvency Service,11/06/2019,Investigation & Enforcement,Official Receiver Services,SUNDRY SUPPLIER,300009434,280.00,
BEIS,The Insolvency Service,11/06/2019,Investigation & Enforcement,Official Receiver Services,SUNDRY SUPPLIER,300009435,300.00,
BEIS,The Insolvency Service,11/06/2019,Compensation/Disbursements,Business Service Division,SUNDRY SUPPLIER,300009436,150.00,
BEIS,The Insolvency Service,11/06/2019,Compensation/Disbursements,Business Service Division,SUNDRY SUPPLIER,300009437,50.00,
BEIS,The Insolvency Service,11/06/2019,Compensation/Disbursements,Business Service Division,SUNDRY SUPPLIER,300009445,100.00,
BEIS,The Insolvency Service,11/06/2019,Compensation/Disbursements,Business Service Division,SUNDRY SUPPLIER,300009447,50.00,
BEIS,The Insolvency Service,11/06/2019,Compensation/Disbursements,Business Service Division,SUNDRY SUPPLIER,300009449,100.00,
BEIS,The Insolvency Service,11/06/2019,Compensation/Disbursements,Business Service Division,SUNDRY SUPPLIER,300009450,100.00,
BEIS,The Insolvency Service,11/06/2019,Compensation/Disbursements,Business Service Division,SUNDRY SUPPLIER,300009462,236.24,
BEIS,The Insolvency Service,11/06/2019,Compensation/Disbursements,Business Service Division,SUNDRY SUPPLIER,300009718,25.00,
BEIS,The Insolvency Service,11/06/2019,HR,People & Capability,Duradiamond Healthcare Limited,300009552,3048.84,806426440
BEIS,The Insolvency Service,11/06/2019,HR,People & Capability,Smart Employee Eyecare,300009581,171.00,
BEIS,The Insolvency Service,11/06/2019,I&T,Information & Technology,SmartSourcing,300009498,3153.00,788507869
BEIS,The Insolvency Service,11/06/2019,I&T,Information & Technology,SmartSourcing,300009499,4110.00,788507869
BEIS,The Insolvency Service,11/06/2019,I&T,Information & Technology,SmartSourcing,300009501,2835.24,788507869
BEIS,The Insolvency Service,11/06/2019,I&T,Information & Technology,SmartSourcing,300009502,3000.00,788507869
BEIS,The Insolvency Service,11/06/2019,I&T,Information & Technology,SmartSourcing,300009504,2940.00,788507869
BEIS,The Insolvency Service,11/06/2019,I&T,Information & Technology,SmartSourcing,300009507,3408.72,788507869
BEIS,The Insolvency Service,11/06/2019,I&T,Information & Technology,SmartSourcing,300009633,5784.84,788507869
BEIS,The Insolvency Service,11/06/2019,I&T,Information & Technology,SmartSourcing,300009635,2480.00,788507869
BEIS,The Insolvency Service,11/06/2019,I&T,Information & Technology,SmartSourcing,300009636,2400.00,788507869
BEIS,The Insolvency Service,11/06/2019,I&T,Information & Technology,SmartSourcing,300009637,1250.00,788507869
BEIS,The Insolvency Service,11/06/2019,I&T,Information & Technology,SmartSourcing,300009638,2000.00,788507869
BEIS,The Insolvency Service,11/06/2019,I&T,Information & Technology,SmartSourcing,300009639,2880.00,788507869
BEIS,The Insolvency Service,11/06/2019,I&T,Information & Technology,SmartSourcing,300009640,5625.00,788507869
BEIS,The Insolvency Service,11/06/2019,I&T,Information & Technology,SmartSourcing,300009641,2102.00,788507869
BEIS,The Insolvency Service,11/06/2019,I&T,Information & Technology,SmartSourcing,300009642,2740.00,788507869
BEIS,The Insolvency Service,11/06/2019,I&T,Information & Technology,SmartSourcing,300009643,1971.20,788507869
BEIS,The Insolvency Service,11/06/2019,I&T,Information & Technology,SmartSourcing,300009644,2272.48,788507869
BEIS,The Insolvency Service,11/06/2019,I&T,Information & Technology,SmartSourcing,300009645,1210.00,788507869
BEIS,The Insolvency Service,11/06/2019,I&T,Information & Technology,SmartSourcing,300009646,2464.00,788507869
BEIS,The Insolvency Service,11/06/2019,Legal - Disqualifications,Legal Services Division,18 St John Street Chambers,300009576,330.00,826858289
BEIS,The Insolvency Service,11/06/2019,Legal - Disqualifications,Legal Services Division,18 St John Street Chambers,300009588,180.00,826858289
BEIS,The Insolvency Service,11/06/2019,Legal - Live Investigations,Legal Services Division,6 Kings Bench Walk,300009565,8220.00,782714411
BEIS,The Insolvency Service,11/06/2019,Legal - Disqualifications,Legal Services Division,South Square,300009593,729.60,843274916
BEIS,The Insolvency Service,11/06/2019,Legal - Disqualifications,Legal Services Division,South Square,300009593,40.00,843274916
BEIS,The Insolvency Service,11/06/2019,Travel & Subsistence,Investigations & Enforcement Services,Staff Payment,900009110,2.40,
BEIS,The Insolvency Service,11/06/2019,Travel & Subsistence,Investigations & Enforcement Services,Staff Payment,900008796,115.80,
BEIS,The Insolvency Service,11/06/2019,Travel & Subsistence,Official Receiver Services,Staff Payment,900009096,1.50,
BEIS,The Insolvency Service,11/06/2019,Travel & Subsistence,Official Receiver Services,Staff Payment,900009096,1.50,
BEIS,The Insolvency Service,11/06/2019,Travel & Subsistence,Official Receiver Services,Staff Payment,900009096,20.03,
BEIS,The Insolvency Service,11/06/2019,Travel & Subsistence,Official Receiver Services,Staff Payment,900009096,20.03,
BEIS,The Insolvency Service,11/06/2019,Travel & Subsistence,Official Receiver Services,Staff Payment,900009096,19.94,
BEIS,The Insolvency Service,11/06/2019,Travel & Subsistence,Official Receiver Services,Staff Payment,900009096,19.94,
BEIS,The Insolvency Service,11/06/2019,Travel & Subsistence,Official Receiver Services,Staff Payment,900009033,3.10,
BEIS,The Insolvency Service,11/06/2019,Travel & Subsistence,Official Receiver Services,Staff Payment,900009033,13.95,
BEIS,The Insolvency Service,11/06/2019,Travel & Subsistence,Official Receiver Services,Staff Payment,900009066,2.50,
BEIS,The Insolvency Service,11/06/2019,Travel & Subsistence,Official Receiver Services,Staff Payment,900009066,30.60,
BEIS,The Insolvency Service,11/06/2019,Travel & Subsistence,Official Receiver Services,Staff Payment,900009080,5.00,
BEIS,The Insolvency Service,11/06/2019,Travel & Subsistence,Official Receiver Services,Staff Payment,900009081,5.00,
BEIS,The Insolvency Service,11/06/2019,Travel & Subsistence,Investigations & Enforcement Services,Staff Payment,900009074,8.40,
BEIS,The Insolvency Service,11/06/2019,Travel & Subsistence,Investigations & Enforcement Services,Staff Payment,900009074,15.30,
BEIS,The Insolvency Service,11/06/2019,Travel & Subsistence,Investigations & Enforcement Services,Staff Payment,900009074,9.50,
BEIS,The Insolvency Service,11/06/2019,Travel & Subsistence,Investigations & Enforcement Services,Staff Payment,900009074,5.00,
BEIS,The Insolvency Service,11/06/2019,Travel & Subsistence,Investigations & Enforcement Services,Staff Payment,900009074,4.50,
BEIS,The Insolvency Service,11/06/2019,Travel & Subsistence,Investigations & Enforcement Services,Staff Payment,900009035,21.00,
BEIS,The Insolvency Service,11/06/2019,Travel & Subsistence,Strategy & Change,Staff Payment,900009089,4.50,
BEIS,The Insolvency Service,11/06/2019,Travel & Subsistence,Strategy & Change,Staff Payment,900009089,9.98,
BEIS,The Insolvency Service,11/06/2019,Travel & Subsistence,Strategy & Change,Staff Payment,900009089,4.50,
BEIS,The Insolvency Service,11/06/2019,Travel & Subsistence,Investigations & Enforcement Services,Staff Payment,900009039,1.50,
BEIS,The Insolvency Service,11/06/2019,Travel & Subsistence,Investigations & Enforcement Services,Staff Payment,900009039,2.80,
BEIS,The Insolvency Service,11/06/2019,Travel & Subsistence,Investigations & Enforcement Services,Staff Payment,900009039,2.80,
BEIS,The Insolvency Service,11/06/2019,Travel & Subsistence,Investigations & Enforcement Services,Staff Payment,900009039,2.40,
BEIS,The Insolvency Service,11/06/2019,Travel & Subsistence,Investigations & Enforcement Services,Staff Payment,900009039,2.40,
BEIS,The Insolvency Service,11/06/2019,Travel & Subsistence,Investigations & Enforcement Services,Staff Payment,900009039,2.40,
BEIS,The Insolvency Service,11/06/2019,Travel & Subsistence,Investigations & Enforcement Services,Staff Payment,900009039,0.70,
BEIS,The Insolvency Service,11/06/2019,Travel & Subsistence,Business Service Division,Staff Payment,900009117,1.70,
BEIS,The Insolvency Service,11/06/2019,Travel & Subsistence,Business Service Division,Staff Payment,900009117,36.78,
BEIS,The Insolvency Service,11/06/2019,Travel & Subsistence,Investigations & Enforcement Services,Staff Payment,900009060,9.50,
BEIS,The Insolvency Service,11/06/2019,Travel & Subsistence,Investigations & Enforcement Services,Staff Payment,900009060,7.00,
BEIS,The Insolvency Service,11/06/2019,Travel & Subsistence,Investigations & Enforcement Services,Staff Payment,900009060,9.00,
BEIS,The Insolvency Service,11/06/2019,Travel & Subsistence,Investigations & Enforcement Services,Staff Payment,900009060,36.00,
BEIS,The Insolvency Service,11/06/2019,Travel & Subsistence,Investigations & Enforcement Services,Staff Payment,900009060,2.75,
BEIS,The Insolvency Service,11/06/2019,Travel & Subsistence,Investigations & Enforcement Services,Staff Payment,900009060,28.45,
BEIS,The Insolvency Service,11/06/2019,Travel & Subsistence,Investigations & Enforcement Services,Staff Payment,900009060,14.00,
BEIS,The Insolvency Service,11/06/2019,Travel & Subsistence,Finance & Commercial,Staff Payment,900009041,5.20,
BEIS,The Insolvency Service,11/06/2019,Travel & Subsistence,Finance & Commercial,Staff Payment,900009041,7.98,
BEIS,The Insolvency Service,11/06/2019,Travel & Subsistence,Investigations & Enforcement Services,Staff Payment,900008789,14.50,
BEIS,The Insolvency Service,11/06/2019,Travel & Subsistence,Investigations & Enforcement Services,Staff Payment,900008789,5.00,
BEIS,The Insolvency Service,11/06/2019,Travel & Subsistence,Investigations & Enforcement Services,Staff Payment,900008789,40.95,
BEIS,The Insolvency Service,11/06/2019,Travel & Subsistence,Investigations & Enforcement Services,Staff Payment,900008789,12.80,
BEIS,The Insolvency Service,11/06/2019,Travel & Subsistence,Investigations & Enforcement Services,Staff Payment,900008789,6.25,
BEIS,The Insolvency Service,11/06/2019,Travel & Subsistence,Investigations & Enforcement Services,Staff Payment,900008789,49.05,
BEIS,The Insolvency Service,11/06/2019,Travel & Subsistence,Investigations & Enforcement Services,Staff Payment,900008789,115.20,
BEIS,The Insolvency Service,11/06/2019,Travel & Subsistence,Investigations & Enforcement Services,Staff Payment,900008789,49.50,
BEIS,The Insolvency Service,11/06/2019,Travel & Subsistence,Investigations & Enforcement Services,Staff Payment,900008789,106.65,
BEIS,The Insolvency Service,11/06/2019,Travel & Subsistence,Investigations & Enforcement Services,Staff Payment,900008789,8.00,
BEIS,The Insolvency Service,11/06/2019,Travel & Subsistence,Investigations & Enforcement Services,Staff Payment,900008789,7.00,
BEIS,The Insolvency Service,11/06/2019,Travel & Subsistence,Investigations & Enforcement Services,Staff Payment,900008789,20.00,
BEIS,The Insolvency Service,11/06/2019,Travel & Subsistence,Investigations & Enforcement Services,Staff Payment,900008789,17.50,
BEIS,The Insolvency Service,11/06/2019,Travel & Subsistence,Investigations & Enforcement Services,Staff Payment,900008794,6.00,
BEIS,The Insolvency Service,11/06/2019,Travel & Subsistence,Investigations & Enforcement Services,Staff Payment,900008794,5.00,
BEIS,The Insolvency Service,11/06/2019,Travel & Subsistence,Investigations & Enforcement Services,Staff Payment,900008794,63.00,
BEIS,The Insolvency Service,11/06/2019,Travel & Subsistence,Investigations & Enforcement Services,Staff Payment,900009062,22.60,
BEIS,The Insolvency Service,11/06/2019,Travel & Subsistence,Investigations & Enforcement Services,Staff Payment,900009062,22.60,
BEIS,The Insolvency Service,11/06/2019,Travel & Subsistence,Investigations & Enforcement Services,Staff Payment,900009062,38.70,
BEIS,The Insolvency Service,11/06/2019,Travel & Subsistence,Investigations & Enforcement Services,Staff Payment,900009062,11.25,
BEIS,The Insolvency Service,11/06/2019,Travel & Subsistence,Investigations & Enforcement Services,Staff Payment,900009062,62.55,
BEIS,The Insolvency Service,11/06/2019,Travel & Subsistence,Investigations & Enforcement Services,Staff Payment,900009062,47.25,
BEIS,The Insolvency Service,11/06/2019,Travel & Subsistence,Investigations & Enforcement Services,Staff Payment,900009062,25.20,
BEIS,The Insolvency Service,11/06/2019,Travel & Subsistence,Investigations & Enforcement Services,Staff Payment,900009062,6.30,
BEIS,The Insolvency Service,11/06/2019,Travel & Subsistence,Investigations & Enforcement Services,Staff Payment,900009062,6.30,
BEIS,The Insolvency Service,11/06/2019,Travel & Subsistence,Investigations & Enforcement Services,Staff Payment,900009062,11.25,
BEIS,The Insolvency Service,11/06/2019,Travel & Subsistence,Investigations & Enforcement Services,Staff Payment,900009062,7.80,
BEIS,The Insolvency Service,11/06/2019,Travel & Subsistence,Investigations & Enforcement Services,Staff Payment,900009062,14.10,
BEIS,The Insolvency Service,11/06/2019,Travel & Subsistence,Investigations & Enforcement Services,Staff Payment,900009062,6.00,
BEIS,The Insolvency Service,11/06/2019,Travel & Subsistence,Investigations & Enforcement Services,Staff Payment,900009062,6.00,
BEIS,The Insolvency Service,11/06/2019,Travel & Subsistence,Investigations & Enforcement Services,Staff Payment,900009062,4.00,
BEIS,The Insolvency Service,11/06/2019,Travel & Subsistence,Investigations & Enforcement Services,Staff Payment,900009062,11.25,
BEIS,The Insolvency Service,11/06/2019,Travel & Subsistence,Investigations & Enforcement Services,Staff Payment,900009062,7.80,
BEIS,The Insolvency Service,11/06/2019,Travel & Subsistence,Investigations & Enforcement Services,Staff Payment,900009062,7.80,
BEIS,The Insolvency Service,11/06/2019,Travel & Subsistence,Investigations & Enforcement Services,Staff Payment,900009062,5.00,
BEIS,The Insolvency Service,11/06/2019,Travel & Subsistence,Investigations & Enforcement Services,Staff Payment,900009062,7.80,
BEIS,The Insolvency Service,11/06/2019,Travel & Subsistence,Investigations & Enforcement Services,Staff Payment,900009062,7.80,
BEIS,The Insolvency Service,11/06/2019,Travel & Subsistence,Investigations & Enforcement Services,Staff Payment,900009062,7.80,
BEIS,The Insolvency Service,11/06/2019,Travel & Subsistence,Investigations & Enforcement Services,Staff Payment,900009062,7.00,
BEIS,The Insolvency Service,11/06/2019,Travel & Subsistence,Investigations & Enforcement Services,Staff Payment,900009062,6.00,
BEIS,The Insolvency Service,11/06/2019,Travel & Subsistence,Investigations & Enforcement Services,Staff Payment,900009062,4.80,
BEIS,The Insolvency Service,11/06/2019,Travel & Subsistence,Investigations & Enforcement Services,Staff Payment,900009062,5.00,
BEIS,The Insolvency Service,11/06/2019,Travel & Subsistence,Investigations & Enforcement Services,Staff Payment,900009062,5.00,
BEIS,The Insolvency Service,11/06/2019,Travel & Subsistence,Investigations & Enforcement Services,Staff Payment,900009062,5.00,
BEIS,The Insolvency Service,11/06/2019,Travel & Subsistence,Investigations & Enforcement Services,Staff Payment,900009062,5.00,
BEIS,The Insolvency Service,11/06/2019,Travel & Subsistence,Investigations & Enforcement Services,Staff Payment,900009062,4.05,
BEIS,The Insolvency Service,11/06/2019,Travel & Subsistence,Investigations & Enforcement Services,Staff Payment,900009062,5.00,
BEIS,The Insolvency Service,11/06/2019,Travel & Subsistence,Investigations & Enforcement Services,Staff Payment,900009062,3.60,
BEIS,The Insolvency Service,11/06/2019,Travel & Subsistence,Investigations & Enforcement Services,Staff Payment,900009062,22.60,
BEIS,The Insolvency Service,11/06/2019,Travel & Subsistence,Investigations & Enforcement Services,Staff Payment,900009062,22.60,
BEIS,The Insolvency Service,11/06/2019,Travel & Subsistence,Investigations & Enforcement Services,Staff Payment,900009062,5.00,
BEIS,The Insolvency Service,11/06/2019,Travel & Subsistence,Investigations & Enforcement Services,Staff Payment,900009062,3.25,
BEIS,The Insolvency Service,11/06/2019,Travel & Subsistence,Investigations & Enforcement Services,Staff Payment,900009116,10.00,
BEIS,The Insolvency Service,11/06/2019,Travel & Subsistence,Investigations & Enforcement Services,Staff Payment,900009116,5.00,
BEIS,The Insolvency Service,11/06/2019,Travel & Subsistence,Investigations & Enforcement Services,Staff Payment,900009116,15.00,
BEIS,The Insolvency Service,11/06/2019,Travel & Subsistence,Investigations & Enforcement Services,Staff Payment,900009116,31.45,
BEIS,The Insolvency Service,11/06/2019,Travel & Subsistence,Investigations & Enforcement Services,Staff Payment,900009116,27.45,
BEIS,The Insolvency Service,11/06/2019,Travel & Subsistence,Investigations & Enforcement Services,Staff Payment,900009116,74.70,
BEIS,The Insolvency Service,11/06/2019,Travel & Subsistence,Investigations & Enforcement Services,Staff Payment,900008597,21.06,
BEIS,The Insolvency Service,11/06/2019,Travel & Subsistence,Business Service Division,Staff Payment,900009069,10.00,
BEIS,The Insolvency Service,11/06/2019,Travel & Subsistence,Business Service Division,Staff Payment,900009069,5.00,
BEIS,The Insolvency Service,11/06/2019,Travel & Subsistence,Business Service Division,Staff Payment,900009069,30.00,
BEIS,The Insolvency Service,11/06/2019,Travel & Subsistence,Business Service Division,Staff Payment,900009069,10.00,
BEIS,The Insolvency Service,11/06/2019,Travel & Subsistence,Finance & Commercial,Staff Payment,900009083,8.60,
BEIS,The Insolvency Service,11/06/2019,Travel & Subsistence,Finance & Commercial,Staff Payment,900009092,37.00,
BEIS,The Insolvency Service,11/06/2019,Travel & Subsistence,Finance & Commercial,Staff Payment,900009092,4.55,
BEIS,The Insolvency Service,11/06/2019,Travel & Subsistence,Finance & Commercial,Staff Payment,900009092,4.25,
BEIS,The Insolvency Service,11/06/2019,Travel & Subsistence,Finance & Commercial,Staff Payment,900009092,1.35,
BEIS,The Insolvency Service,11/06/2019,Travel & Subsistence,Finance & Commercial,Staff Payment,900009092,11.50,
BEIS,The Insolvency Service,11/06/2019,Travel & Subsistence,Finance & Commercial,Staff Payment,900009092,18.00,
BEIS,The Insolvency Service,11/06/2019,Travel & Subsistence,Finance & Commercial,Staff Payment,900009092,8.00,
BEIS,The Insolvency Service,11/06/2019,Travel & Subsistence,Finance & Commercial,Staff Payment,900009092,15.00,
BEIS,The Insolvency Service,11/06/2019,Travel & Subsistence,Finance & Commercial,Staff Payment,900009092,4.50,
BEIS,The Insolvency Service,11/06/2019,Travel & Subsistence,Finance & Commercial,Staff Payment,900009092,17.00,
BEIS,The Insolvency Service,11/06/2019,Travel & Subsistence,Finance & Commercial,Staff Payment,900009092,4.70,
BEIS,The Insolvency Service,11/06/2019,Travel & Subsistence,Finance & Commercial,Staff Payment,900009092,10.00,
BEIS,The Insolvency Service,11/06/2019,Travel & Subsistence,Finance & Commercial,Staff Payment,900009092,4.99,
BEIS,The Insolvency Service,11/06/2019,Travel & Subsistence,Finance & Commercial,Staff Payment,900009092,5.00,
BEIS,The Insolvency Service,11/06/2019,Travel & Subsistence,Finance & Commercial,Staff Payment,900009092,3.56,
BEIS,The Insolvency Service,11/06/2019,Travel & Subsistence,Finance & Commercial,Staff Payment,900009092,5.00,
BEIS,The Insolvency Service,11/06/2019,Travel & Subsistence,Finance & Commercial,Staff Payment,900009092,3.00,
BEIS,The Insolvency Service,11/06/2019,Travel & Subsistence,Investigations & Enforcement Services,Staff Payment,900009100,3.49,
BEIS,The Insolvency Service,11/06/2019,Travel & Subsistence,Investigations & Enforcement Services,Staff Payment,900009101,2.80,
BEIS,The Insolvency Service,11/06/2019,Travel & Subsistence,Investigations & Enforcement Services,Staff Payment,900009101,5.00,
BEIS,The Insolvency Service,11/06/2019,Travel & Subsistence,Investigations & Enforcement Services,Staff Payment,900009101,5.85,
BEIS,The Insolvency Service,11/06/2019,Travel & Subsistence,Investigations & Enforcement Services,Staff Payment,900009102,4.79,
BEIS,The Insolvency Service,11/06/2019,Travel & Subsistence,Investigations & Enforcement Services,Staff Payment,900009102,7.47,
BEIS,The Insolvency Service,11/06/2019,Travel & Subsistence,Investigations & Enforcement Services,Staff Payment,900009102,5.00,
BEIS,The Insolvency Service,11/06/2019,Travel & Subsistence,Investigations & Enforcement Services,Staff Payment,900009103,4.95,
BEIS,The Insolvency Service,11/06/2019,Travel & Subsistence,Chief Executive Office,Staff Payment,900008949,5.00,
BEIS,The Insolvency Service,11/06/2019,Travel & Subsistence,Chief Executive Office,Staff Payment,900008949,4.50,
BEIS,The Insolvency Service,11/06/2019,Travel & Subsistence,Chief Executive Office,Staff Payment,900008949,9.49,
BEIS,The Insolvency Service,11/06/2019,Travel & Subsistence,Chief Executive Office,Staff Payment,900008976,13.00,
BEIS,The Insolvency Service,11/06/2019,Travel & Subsistence,Legal Services Division,Staff Payment,900008947,7.00,
BEIS,The Insolvency Service,11/06/2019,Travel & Subsistence,Finance & Commercial,Staff Payment,900009104,3.90,
BEIS,The Insolvency Service,11/06/2019,Travel & Subsistence,Finance & Commercial,Staff Payment,900009104,7.00,
BEIS,The Insolvency Service,11/06/2019,Travel & Subsistence,Finance & Commercial,Staff Payment,900009104,6.00,
BEIS,The Insolvency Service,11/06/2019,Travel & Subsistence,Finance & Commercial,Staff Payment,900009104,7.08,
BEIS,The Insolvency Service,11/06/2019,Travel & Subsistence,Finance & Commercial,Staff Payment,900009104,4.38,
BEIS,The Insolvency Service,11/06/2019,Travel & Subsistence,Finance & Commercial,Staff Payment,900009104,5.00,
BEIS,The Insolvency Service,11/06/2019,Travel & Subsistence,Finance & Commercial,Staff Payment,900009104,15.00,
BEIS,The Insolvency Service,11/06/2019,Travel & Subsistence,Finance & Commercial,Staff Payment,900009104,14.79,
BEIS,The Insolvency Service,11/06/2019,Travel & Subsistence,Finance & Commercial,Staff Payment,900009104,5.00,
BEIS,The Insolvency Service,11/06/2019,Travel & Subsistence,Finance & Commercial,Staff Payment,900009104,15.00,
BEIS,The Insolvency Service,11/06/2019,Travel & Subsistence,Finance & Commercial,Staff Payment,900009104,5.00,
BEIS,The Insolvency Service,11/06/2019,Travel & Subsistence,Finance & Commercial,Staff Payment,900009104,4.55,
BEIS,The Insolvency Service,11/06/2019,Travel & Subsistence,Finance & Commercial,Staff Payment,900009104,9.48,
BEIS,The Insolvency Service,11/06/2019,Travel & Subsistence,Finance & Commercial,Staff Payment,900009104,3.90,
BEIS,The Insolvency Service,11/06/2019,Travel & Subsistence,Finance & Commercial,Staff Payment,900009104,3.90,
BEIS,The Insolvency Service,12/06/2019,Legal - Live Investigations,Legal Services Division,SUNDRY SUPPLIER,300009781,115.05,
BEIS,The Insolvency Service,12/06/2019,Compensation/Disbursements,Official Receiver Services,The Stationery Office Ltd,300009465,154.20,662774703
BEIS,The Insolvency Service,12/06/2019,Compensation/Disbursements,Official Receiver Services,The Stationery Office Ltd,300009467,154.20,662774703
BEIS,The Insolvency Service,12/06/2019,Compensation/Disbursements,Official Receiver Services,The Stationery Office Ltd,300009468,154.20,662774703
BEIS,The Insolvency Service,12/06/2019,Compensation/Disbursements,Official Receiver Services,The Stationery Office Ltd,300009469,154.20,662774703
BEIS,The Insolvency Service,12/06/2019,Compensation/Disbursements,Official Receiver Services,The Stationery Office Ltd,300009470,77.10,662774703
BEIS,The Insolvency Service,12/06/2019,Compensation/Disbursements,Official Receiver Services,The Stationery Office Ltd,300009471,154.20,662774703
BEIS,The Insolvency Service,12/06/2019,Compensation/Disbursements,Official Receiver Services,The Stationery Office Ltd,300009472,77.10,662774703
BEIS,The Insolvency Service,12/06/2019,Compensation/Disbursements,Official Receiver Services,The Stationery Office Ltd,300009473,154.20,662774703
BEIS,The Insolvency Service,12/06/2019,Compensation/Disbursements,Official Receiver Services,The Stationery Office Ltd,300009474,154.20,662774703
BEIS,The Insolvency Service,12/06/2019,Compensation/Disbursements,Official Receiver Services,The Stationery Office Ltd,300009475,77.10,662774703
BEIS,The Insolvency Service,12/06/2019,Compensation/Disbursements,Official Receiver Services,The Stationery Office Ltd,300009476,77.10,662774703
BEIS,The Insolvency Service,12/06/2019,Compensation/Disbursements,Official Receiver Services,The Stationery Office Ltd,300009477,231.30,662774703
BEIS,The Insolvency Service,12/06/2019,Compensation/Disbursements,Official Receiver Services,The Stationery Office Ltd,300009478,77.10,662774703
BEIS,The Insolvency Service,12/06/2019,Compensation/Disbursements,Official Receiver Services,The Stationery Office Ltd,300009479,77.10,662774703
BEIS,The Insolvency Service,12/06/2019,Travel & Subsistence,Official Receiver Services,Staff Payment,900009146,5.00,
BEIS,The Insolvency Service,12/06/2019,Travel & Subsistence,Official Receiver Services,Staff Payment,900009146,7.70,
BEIS,The Insolvency Service,12/06/2019,Travel & Subsistence,Official Receiver Services,Staff Payment,900009146,56.70,
BEIS,The Insolvency Service,12/06/2019,Travel & Subsistence,Investigations & Enforcement Services,Staff Payment,900008337,7.00,
BEIS,The Insolvency Service,12/06/2019,Travel & Subsistence,Investigations & Enforcement Services,Staff Payment,900009036,20.00,
BEIS,The Insolvency Service,12/06/2019,Travel & Subsistence,Investigations & Enforcement Services,Staff Payment,900009036,9.95,
BEIS,The Insolvency Service,12/06/2019,Travel & Subsistence,Investigations & Enforcement Services,Staff Payment,900009036,5.00,
BEIS,The Insolvency Service,12/06/2019,Travel & Subsistence,Investigations & Enforcement Services,Staff Payment,900009036,10.00,
BEIS,The Insolvency Service,12/06/2019,Travel & Subsistence,Investigations & Enforcement Services,Staff Payment,900009037,7.00,
BEIS,The Insolvency Service,12/06/2019,Travel & Subsistence,Investigations & Enforcement Services,Staff Payment,900009046,7.00,
BEIS,The Insolvency Service,12/06/2019,Travel & Subsistence,Official Receiver Services,Staff Payment,900009147,5.00,
BEIS,The Insolvency Service,12/06/2019,Travel & Subsistence,Official Receiver Services,Staff Payment,900009147,5.00,
BEIS,The Insolvency Service,12/06/2019,Travel & Subsistence,Official Receiver Services,Staff Payment,900009108,5.00,
BEIS,The Insolvency Service,12/06/2019,Travel & Subsistence,Investigations & Enforcement Services,Staff Payment,900008981,4.20,
BEIS,The Insolvency Service,12/06/2019,Travel & Subsistence,Investigations & Enforcement Services,Staff Payment,900008981,3.40,
BEIS,The Insolvency Service,12/06/2019,Travel & Subsistence,Investigations & Enforcement Services,Staff Payment,900008981,3.40,
BEIS,The Insolvency Service,12/06/2019,Travel & Subsistence,Investigations & Enforcement Services,Staff Payment,900008981,20.30,
BEIS,The Insolvency Service,12/06/2019,Travel & Subsistence,Investigations & Enforcement Services,Staff Payment,900008981,7.40,
BEIS,The Insolvency Service,12/06/2019,Travel & Subsistence,Investigations & Enforcement Services,Staff Payment,900008981,13.00,
BEIS,The Insolvency Service,12/06/2019,Travel & Subsistence,Investigations & Enforcement Services,Staff Payment,900008981,5.00,
BEIS,The Insolvency Service,12/06/2019,Travel & Subsistence,Investigations & Enforcement Services,Staff Payment,900008981,4.05,
BEIS,The Insolvency Service,12/06/2019,Travel & Subsistence,Investigations & Enforcement Services,Staff Payment,900009139,15.00,
BEIS,The Insolvency Service,12/06/2019,Travel & Subsistence,Investigations & Enforcement Services,Staff Payment,900009139,5.00,
BEIS,The Insolvency Service,12/06/2019,Travel & Subsistence,Investigations & Enforcement Services,Staff Payment,900009139,1.95,
BEIS,The Insolvency Service,12/06/2019,Travel & Subsistence,Investigations & Enforcement Services,Staff Payment,900009139,2.80,
BEIS,The Insolvency Service,12/06/2019,Travel & Subsistence,Investigations & Enforcement Services,Staff Payment,900009139,9.00,
BEIS,The Insolvency Service,12/06/2019,Travel & Subsistence,Official Receiver Services,Staff Payment,900008483,3.05,
BEIS,The Insolvency Service,12/06/2019,Travel & Subsistence,Official Receiver Services,Staff Payment,900008483,3.05,
BEIS,The Insolvency Service,12/06/2019,Travel & Subsistence,Official Receiver Services,Staff Payment,900008483,5.00,
BEIS,The Insolvency Service,12/06/2019,Travel & Subsistence,Official Receiver Services,Staff Payment,900008483,5.00,
BEIS,The Insolvency Service,12/06/2019,Travel & Subsistence,Official Receiver Services,Staff Payment,900008483,19.58,
BEIS,The Insolvency Service,12/06/2019,Travel & Subsistence,Official Receiver Services,Staff Payment,900008483,15.00,
BEIS,The Insolvency Service,12/06/2019,Travel & Subsistence,Official Receiver Services,Staff Payment,900008483,5.00,
BEIS,The Insolvency Service,12/06/2019,Travel & Subsistence,Official Receiver Services,Staff Payment,900008600,5.00,
BEIS,The Insolvency Service,12/06/2019,Travel & Subsistence,Official Receiver Services,Staff Payment,900008600,5.00,
BEIS,The Insolvency Service,12/06/2019,Travel & Subsistence,Official Receiver Services,Staff Payment,900008922,9.38,
BEIS,The Insolvency Service,12/06/2019,Travel & Subsistence,Official Receiver Services,Staff Payment,900008922,5.00,
BEIS,The Insolvency Service,12/06/2019,Travel & Subsistence,Official Receiver Services,Staff Payment,900009138,4.80,
BEIS,The Insolvency Service,12/06/2019,Travel & Subsistence,Official Receiver Services,Staff Payment,900009138,3.10,
BEIS,The Insolvency Service,12/06/2019,Travel & Subsistence,Official Receiver Services,Staff Payment,900009138,3.20,
BEIS,The Insolvency Service,12/06/2019,Travel & Subsistence,Official Receiver Services,Staff Payment,900009138,21.00,
BEIS,The Insolvency Service,12/06/2019,Travel & Subsistence,Strategy & Change,Staff Payment,900009094,10.70,
BEIS,The Insolvency Service,12/06/2019,Travel & Subsistence,Investigations & Enforcement Services,Staff Payment,900009123,3.55,
BEIS,The Insolvency Service,12/06/2019,Travel & Subsistence,Investigations & Enforcement Services,Staff Payment,900009123,20.25,
BEIS,The Insolvency Service,12/06/2019,Travel & Subsistence,Investigations & Enforcement Services,Staff Payment,900009123,8.10,
BEIS,The Insolvency Service,12/06/2019,Travel & Subsistence,Investigations & Enforcement Services,Staff Payment,900009123,12.60,
BEIS,The Insolvency Service,12/06/2019,Travel & Subsistence,Official Receiver Services,Staff Payment,900009091,5.00,
BEIS,The Insolvency Service,12/06/2019,Travel & Subsistence,Official Receiver Services,Staff Payment,900009091,3.60,
BEIS,The Insolvency Service,12/06/2019,Travel & Subsistence,Official Receiver Services,Staff Payment,900009091,52.20,
BEIS,The Insolvency Service,12/06/2019,Travel & Subsistence,Investigations & Enforcement Services,Staff Payment,900009115,5.00,
BEIS,The Insolvency Service,12/06/2019,Travel & Subsistence,Official Receiver Services,Staff Payment,900008180,4.78,
BEIS,The Insolvency Service,12/06/2019,Travel & Subsistence,Official Receiver Services,Staff Payment,900008188,15.00,
BEIS,The Insolvency Service,12/06/2019,Travel & Subsistence,Official Receiver Services,Staff Payment,900008188,3.05,
BEIS,The Insolvency Service,12/06/2019,Travel & Subsistence,Official Receiver Services,Staff Payment,900008188,3.05,
BEIS,The Insolvency Service,12/06/2019,Travel & Subsistence,Official Receiver Services,Staff Payment,900008188,9.42,
BEIS,The Insolvency Service,12/06/2019,Travel & Subsistence,Official Receiver Services,Staff Payment,900008188,5.00,
BEIS,The Insolvency Service,12/06/2019,Travel & Subsistence,Official Receiver Services,Staff Payment,900008189,4.85,
BEIS,The Insolvency Service,12/06/2019,Travel & Subsistence,Investigations & Enforcement Services,Staff Payment,900009105,5.00,
BEIS,The Insolvency Service,12/06/2019,Travel & Subsistence,Investigations & Enforcement Services,Staff Payment,900009105,7.00,
BEIS,The Insolvency Service,12/06/2019,Travel & Subsistence,Official Receiver Services,Staff Payment,900009052,2.00,
BEIS,The Insolvency Service,12/06/2019,Travel & Subsistence,Official Receiver Services,Staff Payment,900009052,25.20,
BEIS,The Insolvency Service,12/06/2019,Travel & Subsistence,Official Receiver Services,Staff Payment,900009055,2.00,
BEIS,The Insolvency Service,12/06/2019,Travel & Subsistence,Official Receiver Services,Staff Payment,900009055,18.90,
BEIS,The Insolvency Service,12/06/2019,Travel & Subsistence,Official Receiver Services,Staff Payment,900009056,3.00,
BEIS,The Insolvency Service,12/06/2019,Travel & Subsistence,Official Receiver Services,Staff Payment,900009056,3.60,
BEIS,The Insolvency Service,12/06/2019,Travel & Subsistence,Official Receiver Services,Staff Payment,900009057,34.65,
BEIS,The Insolvency Service,12/06/2019,Travel & Subsistence,Official Receiver Services,Staff Payment,900009057,2.50,
BEIS,The Insolvency Service,12/06/2019,Travel & Subsistence,Finance & Commercial,Staff Payment,900009113,90.90,
BEIS,The Insolvency Service,12/06/2019,Travel & Subsistence,Finance & Commercial,Staff Payment,900009113,90.90,
BEIS,The Insolvency Service,12/06/2019,Travel & Subsistence,Finance & Commercial,Staff Payment,900009113,5.00,
BEIS,The Insolvency Service,12/06/2019,Travel & Subsistence,Investigations & Enforcement Services,Staff Payment,900009007,34.65,
BEIS,The Insolvency Service,12/06/2019,Travel & Subsistence,Investigations & Enforcement Services,Staff Payment,900009008,4.25,
BEIS,The Insolvency Service,12/06/2019,Travel & Subsistence,Investigations & Enforcement Services,Staff Payment,900009008,5.00,
BEIS,The Insolvency Service,12/06/2019,Travel & Subsistence,Finance & Commercial,Staff Payment,900009119,10.00,
BEIS,The Insolvency Service,12/06/2019,Travel & Subsistence,Finance & Commercial,Staff Payment,900009119,2.99,
BEIS,The Insolvency Service,12/06/2019,Travel & Subsistence,Investigations & Enforcement Services,Staff Payment,900009016,5.00,
BEIS,The Insolvency Service,13/06/2019,Estates - Property,Finance & Commercial,British Gas Business,300009738,566.59,684966762
BEIS,The Insolvency Service,13/06/2019,Telephone & Postage,Information & Technology,Gamma Business Communications Ltd,300009740,3050.74,823820344
BEIS,The Insolvency Service,13/06/2019,Estates - Property,Business Service Division,Posturite (Uk) Ltd.,300009655,95.62,583565114
BEIS,The Insolvency Service,13/06/2019,Estates - Property,Business Service Division,Posturite (Uk) Ltd.,300009760,17.02,583565114
BEIS,The Insolvency Service,13/06/2019,I&T,Information & Technology,Nine Telecom,300009712,735.00,886132113
BEIS,The Insolvency Service,13/06/2019,Legal - Live Investigations,Legal Services Division,18 Red Lion Court Chambers,300009756,768.00,766793665
BEIS,The Insolvency Service,13/06/2019,Legal - Live Investigations,Legal Services Division,18 Red Lion Court Chambers,300009761,240.00,766793665
BEIS,The Insolvency Service,13/06/2019,Legal - Live Investigations,Legal Services Division,18 Red Lion Court Chambers,300009765,153.96,766793665
BEIS,The Insolvency Service,13/06/2019,Legal - Live Investigations,Legal Services Division,18 Red Lion Court Chambers,300009767,302.40,766793665
BEIS,The Insolvency Service,13/06/2019,Legal - Live Investigations,Legal Services Division,18 Red Lion Court Chambers,300009769,485.76,766793665
BEIS,The Insolvency Service,13/06/2019,Legal - Live Investigations,Legal Services Division,Albion Chambers,300009755,360.00,822187438
BEIS,The Insolvency Service,13/06/2019,Legal - Live Investigations,Legal Services Division,New Park Court Chambers,300009754,312.00,157478863
BEIS,The Insolvency Service,13/06/2019,Estates - Property,Finance & Commercial,Avison Young,300009737,5025.60,894545868
BEIS,The Insolvency Service,13/06/2019,Travel & Subsistence,Finance & Commercial,Staff Payment,900009164,6.00,
BEIS,The Insolvency Service,13/06/2019,Travel & Subsistence,Investigations & Enforcement Services,Staff Payment,900008948,19.00,
BEIS,The Insolvency Service,13/06/2019,Travel & Subsistence,Investigations & Enforcement Services,Staff Payment,900008834,7.00,
BEIS,The Insolvency Service,13/06/2019,Travel & Subsistence,Investigations & Enforcement Services,Staff Payment,900009156,13.95,
BEIS,The Insolvency Service,13/06/2019,Travel & Subsistence,Investigations & Enforcement Services,Staff Payment,900009156,34.50,
BEIS,The Insolvency Service,13/06/2019,Travel & Subsistence,Investigations & Enforcement Services,Staff Payment,900009156,3.90,
BEIS,The Insolvency Service,13/06/2019,Travel & Subsistence,Investigations & Enforcement Services,Staff Payment,900009156,18.00,
BEIS,The Insolvency Service,13/06/2019,Travel & Subsistence,Investigations & Enforcement Services,Staff Payment,900009156,133.65,
BEIS,The Insolvency Service,13/06/2019,Travel & Subsistence,Investigations & Enforcement Services,Staff Payment,900009156,133.65,
BEIS,The Insolvency Service,13/06/2019,Travel & Subsistence,Investigations & Enforcement Services,Staff Payment,900009156,22.95,
BEIS,The Insolvency Service,13/06/2019,Travel & Subsistence,Investigations & Enforcement Services,Staff Payment,900009156,19.50,
BEIS,The Insolvency Service,13/06/2019,Travel & Subsistence,Investigations & Enforcement Services,Staff Payment,900009156,19.50,
BEIS,The Insolvency Service,13/06/2019,Travel & Subsistence,Chief Executive Office,Staff Payment,900009121,15.00,
BEIS,The Insolvency Service,13/06/2019,Travel & Subsistence,Chief Executive Office,Staff Payment,900009121,2.40,
BEIS,The Insolvency Service,13/06/2019,Travel & Subsistence,Strategy & Change,Staff Payment,900009158,4.99,
BEIS,The Insolvency Service,13/06/2019,Travel & Subsistence,Strategy & Change,Staff Payment,900009158,5.00,
BEIS,The Insolvency Service,13/06/2019,Travel & Subsistence,Business Service Division,Staff Payment,900009078,5.00,
BEIS,The Insolvency Service,13/06/2019,Travel & Subsistence,Business Service Division,Staff Payment,900009078,45.00,
BEIS,The Insolvency Service,13/06/2019,Travel & Subsistence,Strategy & Change,Staff Payment,900009098,5.00,
BEIS,The Insolvency Service,13/06/2019,Travel & Subsistence,Strategy & Change,Staff Payment,900009099,9.34,
BEIS,The Insolvency Service,13/06/2019,Travel & Subsistence,Strategy & Change,Staff Payment,900009099,15.00,
BEIS,The Insolvency Service,13/06/2019,Travel & Subsistence,Strategy & Change,Staff Payment,900009099,5.00,
BEIS,The Insolvency Service,13/06/2019,Travel & Subsistence,Chief Executive Office,Staff Payment,900009163,2.40,
BEIS,The Insolvency Service,13/06/2019,Travel & Subsistence,Chief Executive Office,Staff Payment,900009163,15.00,
BEIS,The Insolvency Service,13/06/2019,Travel & Subsistence,Chief Executive Office,Staff Payment,900009163,5.00,
BEIS,The Insolvency Service,13/06/2019,Travel & Subsistence,Chief Executive Office,Staff Payment,900009163,4.75,
BEIS,The Insolvency Service,13/06/2019,Travel & Subsistence,Investigations & Enforcement Services,Staff Payment,900009025,8.00,
BEIS,The Insolvency Service,13/06/2019,Travel & Subsistence,Investigations & Enforcement Services,Staff Payment,900009025,3.90,
BEIS,The Insolvency Service,13/06/2019,Travel & Subsistence,Investigations & Enforcement Services,Staff Payment,900009025,3.63,
BEIS,The Insolvency Service,13/06/2019,Travel & Subsistence,Investigations & Enforcement Services,Staff Payment,900009026,3.94,
BEIS,The Insolvency Service,13/06/2019,Travel & Subsistence,Investigations & Enforcement Services,Staff Payment,900009026,8.00,
BEIS,The Insolvency Service,13/06/2019,Travel & Subsistence,Investigations & Enforcement Services,Staff Payment,900009128,8.00,
BEIS,The Insolvency Service,13/06/2019,Travel & Subsistence,Investigations & Enforcement Services,Staff Payment,900009128,8.00,
BEIS,The Insolvency Service,13/06/2019,Travel & Subsistence,Investigations & Enforcement Services,Staff Payment,900009128,5.00,
BEIS,The Insolvency Service,13/06/2019,Travel & Subsistence,Investigations & Enforcement Services,Staff Payment,900009129,5.00,
BEIS,The Insolvency Service,13/06/2019,Travel & Subsistence,Investigations & Enforcement Services,Staff Payment,900009129,8.00,
BEIS,The Insolvency Service,13/06/2019,Travel & Subsistence,Investigations & Enforcement Services,Staff Payment,900009129,8.00,
BEIS,The Insolvency Service,13/06/2019,Travel & Subsistence,Investigations & Enforcement Services,Staff Payment,900009130,3.25,
BEIS,The Insolvency Service,13/06/2019,Travel & Subsistence,Investigations & Enforcement Services,Staff Payment,900009131,8.00,
BEIS,The Insolvency Service,13/06/2019,Travel & Subsistence,Investigations & Enforcement Services,Staff Payment,900009131,8.00,
BEIS,The Insolvency Service,13/06/2019,Travel & Subsistence,Investigations & Enforcement Services,Staff Payment,900009131,5.00,
BEIS,The Insolvency Service,13/06/2019,Travel & Subsistence,Investigations & Enforcement Services,Staff Payment,900009133,13.20,
BEIS,The Insolvency Service,13/06/2019,Travel & Subsistence,Investigations & Enforcement Services,Staff Payment,900009133,5.00,
BEIS,The Insolvency Service,13/06/2019,Travel & Subsistence,Investigations & Enforcement Services,Staff Payment,900009134,7.70,
BEIS,The Insolvency Service,13/06/2019,Travel & Subsistence,Investigations & Enforcement Services,Staff Payment,900009134,5.00,
BEIS,The Insolvency Service,13/06/2019,Travel & Subsistence,Official Receiver Services,Staff Payment,900009023,77.50,
BEIS,The Insolvency Service,13/06/2019,Travel & Subsistence,Chief Executive Office,Staff Payment,900009132,5.00,
BEIS,The Insolvency Service,13/06/2019,Travel & Subsistence,Chief Executive Office,Staff Payment,900009132,5.00,
BEIS,The Insolvency Service,13/06/2019,Travel & Subsistence,Chief Executive Office,Staff Payment,900009132,2.40,
BEIS,The Insolvency Service,13/06/2019,Travel & Subsistence,Chief Executive Office,Staff Payment,900009132,2.40,
BEIS,The Insolvency Service,13/06/2019,Travel & Subsistence,Chief Executive Office,Staff Payment,900009132,15.00,
BEIS,The Insolvency Service,13/06/2019,Travel & Subsistence,Investigations & Enforcement Services,Staff Payment,900008515,4.80,
BEIS,The Insolvency Service,13/06/2019,Travel & Subsistence,Investigations & Enforcement Services,Staff Payment,900008515,4.80,
BEIS,The Insolvency Service,13/06/2019,Travel & Subsistence,Investigations & Enforcement Services,Staff Payment,900009029,4.80,
BEIS,The Insolvency Service,13/06/2019,Travel & Subsistence,Investigations & Enforcement Services,Staff Payment,900009029,4.80,
BEIS,The Insolvency Service,13/06/2019,Travel & Subsistence,Chief Executive Office,Staff Payment,900009165,5.00,
BEIS,The Insolvency Service,13/06/2019,Travel & Subsistence,Chief Executive Office,Staff Payment,900009165,15.00,
BEIS,The Insolvency Service,13/06/2019,Travel & Subsistence,Chief Executive Office,Staff Payment,900009165,15.00,
BEIS,The Insolvency Service,13/06/2019,Travel & Subsistence,Chief Executive Office,Staff Payment,900009165,5.00,
BEIS,The Insolvency Service,13/06/2019,Travel & Subsistence,Chief Executive Office,Staff Payment,900009165,5.00,
BEIS,The Insolvency Service,13/06/2019,Travel & Subsistence,Chief Executive Office,Staff Payment,900009165,15.00,
BEIS,The Insolvency Service,13/06/2019,Travel & Subsistence,Chief Executive Office,Staff Payment,900009165,5.00,
BEIS,The Insolvency Service,13/06/2019,Travel & Subsistence,Chief Executive Office,Staff Payment,900009165,6.00,
BEIS,The Insolvency Service,13/06/2019,Travel & Subsistence,Chief Executive Office,Staff Payment,900009165,11.00,
BEIS,The Insolvency Service,13/06/2019,Travel & Subsistence,Finance & Commercial,Staff Payment,900009135,108.00,
BEIS,The Insolvency Service,13/06/2019,Travel & Subsistence,Investigations & Enforcement Services,Staff Payment,900009017,20.69,
BEIS,The Insolvency Service,13/06/2019,Travel & Subsistence,Investigations & Enforcement Services,Staff Payment,900009017,5.00,
BEIS,The Insolvency Service,13/06/2019,Travel & Subsistence,Investigations & Enforcement Services,Staff Payment,900009017,3.75,
BEIS,The Insolvency Service,13/06/2019,Travel & Subsistence,Investigations & Enforcement Services,Staff Payment,900009017,15.00,
BEIS,The Insolvency Service,13/06/2019,Travel & Subsistence,Investigations & Enforcement Services,Staff Payment,900009018,3.00,
BEIS,The Insolvency Service,13/06/2019,Travel & Subsistence,Investigations & Enforcement Services,Staff Payment,900009018,4.95,
BEIS,The Insolvency Service,13/06/2019,Travel & Subsistence,Investigations & Enforcement Services,Staff Payment,900009018,15.00,
BEIS,The Insolvency Service,13/06/2019,Travel & Subsistence,Investigations & Enforcement Services,Staff Payment,900009018,17.99,
BEIS,The Insolvency Service,13/06/2019,Travel & Subsistence,Investigations & Enforcement Services,Staff Payment,900009154,21.59,
BEIS,The Insolvency Service,13/06/2019,Travel & Subsistence,Investigations & Enforcement Services,Staff Payment,900009154,4.90,
BEIS,The Insolvency Service,13/06/2019,Travel & Subsistence,Investigations & Enforcement Services,Staff Payment,900009154,15.00,
BEIS,The Insolvency Service,13/06/2019,Travel & Subsistence,Investigations & Enforcement Services,Staff Payment,900009154,4.49,
BEIS,The Insolvency Service,13/06/2019,Travel & Subsistence,Official Receiver Services,Staff Payment,900009137,13.00,
BEIS,The Insolvency Service,13/06/2019,Travel & Subsistence,Official Receiver Services,Staff Payment,900009137,17.00,
BEIS,The Insolvency Service,13/06/2019,Travel & Subsistence,Official Receiver Services,Staff Payment,900009137,29.00,
BEIS,The Insolvency Service,13/06/2019,Travel & Subsistence,Business Service Division,Staff Payment,900009090,11.00,
BEIS,The Insolvency Service,13/06/2019,Travel & Subsistence,Business Service Division,Staff Payment,900009090,10.00,
BEIS,The Insolvency Service,13/06/2019,Travel & Subsistence,Business Service Division,Staff Payment,900009090,4.19,
BEIS,The Insolvency Service,13/06/2019,Travel & Subsistence,Business Service Division,Staff Payment,900009090,15.00,
BEIS,The Insolvency Service,13/06/2019,Travel & Subsistence,Business Service Division,Staff Payment,900009090,5.00,
BEIS,The Insolvency Service,13/06/2019,Travel & Subsistence,Official Receiver Services,Staff Payment,900009058,5.00,
BEIS,The Insolvency Service,13/06/2019,Travel & Subsistence,Official Receiver Services,Staff Payment,900009058,28.40,
BEIS,The Insolvency Service,13/06/2019,Travel & Subsistence,Official Receiver Services,Staff Payment,900009058,28.40,
BEIS,The Insolvency Service,13/06/2019,Travel & Subsistence,Official Receiver Services,Staff Payment,900009058,5.00,
BEIS,The Insolvency Service,13/06/2019,Travel & Subsistence,Official Receiver Services,Staff Payment,900009058,28.40,
BEIS,The Insolvency Service,13/06/2019,Travel & Subsistence,Official Receiver Services,Staff Payment,900009058,28.40,
BEIS,The Insolvency Service,13/06/2019,Travel & Subsistence,Investigations & Enforcement Services,Staff Payment,900008688,24.00,
BEIS,The Insolvency Service,13/06/2019,Travel & Subsistence,Investigations & Enforcement Services,Staff Payment,900008688,20.00,
BEIS,The Insolvency Service,13/06/2019,Travel & Subsistence,Investigations & Enforcement Services,Staff Payment,900008688,24.40,
BEIS,The Insolvency Service,14/06/2019,Estates - Property,Business Service Division,Posturite (Uk) Ltd.,300010115,144.65,583565114
BEIS,The Insolvency Service,14/06/2019,I&T,Information & Technology,Smartcomms Sc Ltd,300009741,187.93,
BEIS,The Insolvency Service,14/06/2019,Telephone & Postage,Official Receiver Services,Kcom Group Plc,300009258,72.00,647235137
BEIS,The Insolvency Service,14/06/2019,Estates - Property,Finance & Commercial,Kingston (Senate) Ltd,300009749,41625.60,140357635
BEIS,The Insolvency Service,14/06/2019,Telephone & Postage,Information & Technology,Ee Ltd,300009739,1200.00,771592016
BEIS,The Insolvency Service,14/06/2019,Legal - Live Investigations,Legal Services Division,5 St Andrews Hill,300009792,1983.00,703074472
BEIS,The Insolvency Service,14/06/2019,Legal - Live Investigations,Legal Services Division,5 St Andrews Hill,300009794,576.00,703074472
BEIS,The Insolvency Service,14/06/2019,Legal - Live Investigations,Legal Services Division,18 Red Lion Court Chambers,300009784,4693.00,766793665
BEIS,The Insolvency Service,14/06/2019,Training,People & Capability,"Premier People Solutions Ltd, T/A Premier Partnership",300009762,570.00,
BEIS,The Insolvency Service,14/06/2019,Legal - Live Investigations,Legal Services Division,Park Square Barristers,300009782,876.00,875308991
BEIS,The Insolvency Service,14/06/2019,Compensation/Disbursements,Official Receiver Services,SUNDRY SUPPLIER,300009786,50.00,
BEIS,The Insolvency Service,14/06/2019,I&T,Information & Technology,SmartSourcing,300009634,1960.00,788507869
BEIS,The Insolvency Service,14/06/2019,I&T,Information & Technology,SmartSourcing,300009674,636.00,788507869
BEIS,The Insolvency Service,14/06/2019,I&T,Information & Technology,SmartSourcing,300009675,2268.19,788507869
BEIS,The Insolvency Service,14/06/2019,Estates - Property,Finance & Commercial,Avison Young formerly GVA,300009748,218721.90,894545868
BEIS,The Insolvency Service,14/06/2019,Travel & Subsistence,Finance & Commercial,Proud Public Relations,300009549,125.30,
BEIS,The Insolvency Service,14/06/2019,Travel & Subsistence,Business Service Division,Staff Payment,900008526,25.20,
BEIS,The Insolvency Service,14/06/2019,Travel & Subsistence,Business Service Division,Staff Payment,900008526,9.05,
BEIS,The Insolvency Service,14/06/2019,Travel & Subsistence,Business Service Division,Staff Payment,900008795,15.00,
BEIS,The Insolvency Service,14/06/2019,Travel & Subsistence,Finance & Commercial,Staff Payment,900009162,26.50,
BEIS,The Insolvency Service,14/06/2019,Travel & Subsistence,Finance & Commercial,Staff Payment,900009162,5.00,
BEIS,The Insolvency Service,14/06/2019,Travel & Subsistence,Finance & Commercial,Staff Payment,900009162,5.00,
BEIS,The Insolvency Service,14/06/2019,Travel & Subsistence,Finance & Commercial,Staff Payment,900009162,5.00,
BEIS,The Insolvency Service,14/06/2019,Travel & Subsistence,Finance & Commercial,Staff Payment,900009162,28.40,
BEIS,The Insolvency Service,14/06/2019,Travel & Subsistence,Business Service Division,Staff Payment,900008498,13.25,
BEIS,The Insolvency Service,14/06/2019,Travel & Subsistence,Business Service Division,Staff Payment,900008498,5.00,
BEIS,The Insolvency Service,14/06/2019,Travel & Subsistence,Official Receiver Services,Staff Payment,900009155,7.65,
BEIS,The Insolvency Service,14/06/2019,Travel & Subsistence,Strategy & Change,Staff Payment,900008962,12.96,
BEIS,The Insolvency Service,14/06/2019,Travel & Subsistence,Strategy & Change,Staff Payment,900008962,5.00,
BEIS,The Insolvency Service,14/06/2019,Travel & Subsistence,Strategy & Change,Staff Payment,900008962,5.00,
BEIS,The Insolvency Service,14/06/2019,Travel & Subsistence,Strategy & Change,Staff Payment,900008962,4.99,
BEIS,The Insolvency Service,14/06/2019,Travel & Subsistence,Strategy & Change,Staff Payment,900008963,5.00,
BEIS,The Insolvency Service,14/06/2019,Travel & Subsistence,Strategy & Change,Staff Payment,900008963,5.00,
BEIS,The Insolvency Service,14/06/2019,Travel & Subsistence,Strategy & Change,Staff Payment,900008963,5.00,
BEIS,The Insolvency Service,14/06/2019,Travel & Subsistence,Strategy & Change,Staff Payment,900008963,13.95,
BEIS,The Insolvency Service,14/06/2019,Travel & Subsistence,Strategy & Change,Staff Payment,900008964,5.00,
BEIS,The Insolvency Service,14/06/2019,Travel & Subsistence,Strategy & Change,Staff Payment,900008964,5.00,
BEIS,The Insolvency Service,14/06/2019,Travel & Subsistence,Strategy & Change,Staff Payment,900008964,5.00,
BEIS,The Insolvency Service,14/06/2019,Travel & Subsistence,Strategy & Change,Staff Payment,900008966,12.00,
BEIS,The Insolvency Service,14/06/2019,Travel & Subsistence,Strategy & Change,Staff Payment,900008966,5.00,
BEIS,The Insolvency Service,14/06/2019,Travel & Subsistence,Strategy & Change,Staff Payment,900008966,5.00,
BEIS,The Insolvency Service,14/06/2019,Travel & Subsistence,Strategy & Change,Staff Payment,900008967,5.00,
BEIS,The Insolvency Service,14/06/2019,Travel & Subsistence,Strategy & Change,Staff Payment,900008967,5.00,
BEIS,The Insolvency Service,14/06/2019,Travel & Subsistence,Strategy & Change,Staff Payment,900008967,8.78,
BEIS,The Insolvency Service,14/06/2019,Travel & Subsistence,Strategy & Change,Staff Payment,900008967,5.00,
BEIS,The Insolvency Service,14/06/2019,Travel & Subsistence,Strategy & Change,Staff Payment,900008968,4.90,
BEIS,The Insolvency Service,14/06/2019,Travel & Subsistence,Strategy & Change,Staff Payment,900008968,14.31,
BEIS,The Insolvency Service,14/06/2019,Travel & Subsistence,Strategy & Change,Staff Payment,900008968,5.00,
BEIS,The Insolvency Service,14/06/2019,Travel & Subsistence,Strategy & Change,Staff Payment,900008969,5.00,
BEIS,The Insolvency Service,14/06/2019,Travel & Subsistence,Strategy & Change,Staff Payment,900008969,13.40,
BEIS,The Insolvency Service,14/06/2019,Travel & Subsistence,Strategy & Change,Staff Payment,900008969,5.00,
BEIS,The Insolvency Service,14/06/2019,Travel & Subsistence,Strategy & Change,Staff Payment,900008969,4.50,
BEIS,The Insolvency Service,14/06/2019,Travel & Subsistence,Strategy & Change,Staff Payment,900008970,5.00,
BEIS,The Insolvency Service,14/06/2019,Travel & Subsistence,Strategy & Change,Staff Payment,900008970,15.00,
BEIS,The Insolvency Service,14/06/2019,Travel & Subsistence,Strategy & Change,Staff Payment,900008970,5.00,
BEIS,The Insolvency Service,14/06/2019,Travel & Subsistence,Strategy & Change,Staff Payment,900008970,4.95,
BEIS,The Insolvency Service,14/06/2019,Travel & Subsistence,Strategy & Change,Staff Payment,900008971,5.00,
BEIS,The Insolvency Service,14/06/2019,Travel & Subsistence,Strategy & Change,Staff Payment,900008971,6.92,
BEIS,The Insolvency Service,14/06/2019,Travel & Subsistence,Strategy & Change,Staff Payment,900008971,5.00,
BEIS,The Insolvency Service,14/06/2019,Travel & Subsistence,Strategy & Change,Staff Payment,900008971,5.00,
BEIS,The Insolvency Service,14/06/2019,Travel & Subsistence,Strategy & Change,Staff Payment,900008971,5.00,
BEIS,The Insolvency Service,14/06/2019,Travel & Subsistence,Strategy & Change,Staff Payment,900008972,21.60,
BEIS,The Insolvency Service,14/06/2019,Travel & Subsistence,Strategy & Change,Staff Payment,900008974,21.60,
BEIS,The Insolvency Service,14/06/2019,Travel & Subsistence,Strategy & Change,Staff Payment,900008975,7.20,
BEIS,The Insolvency Service,14/06/2019,Travel & Subsistence,Official Receiver Services,Staff Payment,900009112,2.80,
BEIS,The Insolvency Service,14/06/2019,Travel & Subsistence,Official Receiver Services,Staff Payment,900009112,39.60,
BEIS,The Insolvency Service,14/06/2019,Travel & Subsistence,Strategy & Change,Staff Payment,900009086,87.30,
BEIS,The Insolvency Service,14/06/2019,Travel & Subsistence,Strategy & Change,Staff Payment,900009086,5.00,
BEIS,The Insolvency Service,14/06/2019,Travel & Subsistence,Official Receiver Services,Staff Payment,900008984,5.00,
BEIS,The Insolvency Service,14/06/2019,Travel & Subsistence,Information & Technology,Staff Payment,900008884,11.70,
BEIS,The Insolvency Service,14/06/2019,Travel & Subsistence,Information & Technology,Staff Payment,900008884,11.00,
BEIS,The Insolvency Service,14/06/2019,Travel & Subsistence,Information & Technology,Staff Payment,900008884,19.35,
BEIS,The Insolvency Service,14/06/2019,Travel & Subsistence,Information & Technology,Staff Payment,900008884,64.50,
BEIS,The Insolvency Service,14/06/2019,Travel & Subsistence,Information & Technology,Staff Payment,900008884,5.00,
BEIS,The Insolvency Service,14/06/2019,Travel & Subsistence,Information & Technology,Staff Payment,900008885,33.00,
BEIS,The Insolvency Service,14/06/2019,Travel & Subsistence,Information & Technology,Staff Payment,900008885,4.55,
BEIS,The Insolvency Service,14/06/2019,Travel & Subsistence,Information & Technology,Staff Payment,900008885,12.99,
BEIS,The Insolvency Service,14/06/2019,Travel & Subsistence,Information & Technology,Staff Payment,900008885,5.00,
BEIS,The Insolvency Service,14/06/2019,Travel & Subsistence,Information & Technology,Staff Payment,900008886,18.00,
BEIS,The Insolvency Service,14/06/2019,Travel & Subsistence,Information & Technology,Staff Payment,900008886,82.00,
BEIS,The Insolvency Service,14/06/2019,Travel & Subsistence,Information & Technology,Staff Payment,900008886,19.35,
BEIS,The Insolvency Service,14/06/2019,Travel & Subsistence,Information & Technology,Staff Payment,900008886,5.00,
BEIS,The Insolvency Service,14/06/2019,Travel & Subsistence,Finance & Commercial,Staff Payment,900009167,67.50,
BEIS,The Insolvency Service,14/06/2019,Travel & Subsistence,Finance & Commercial,Staff Payment,900009167,5.00,
BEIS,The Insolvency Service,14/06/2019,Travel & Subsistence,Finance & Commercial,Staff Payment,900009167,15.00,
BEIS,The Insolvency Service,14/06/2019,Travel & Subsistence,Finance & Commercial,Staff Payment,900009167,5.00,
BEIS,The Insolvency Service,14/06/2019,Travel & Subsistence,Finance & Commercial,Staff Payment,900009167,12.00,
BEIS,The Insolvency Service,14/06/2019,Travel & Subsistence,Finance & Commercial,Staff Payment,900009167,21.60,
BEIS,The Insolvency Service,14/06/2019,Travel & Subsistence,Finance & Commercial,Staff Payment,900009168,5.00,
BEIS,The Insolvency Service,14/06/2019,Travel & Subsistence,Finance & Commercial,Staff Payment,900009168,5.50,
BEIS,The Insolvency Service,14/06/2019,Travel & Subsistence,Finance & Commercial,Staff Payment,900009168,3.99,
BEIS,The Insolvency Service,14/06/2019,Travel & Subsistence,Finance & Commercial,Staff Payment,900009168,8.55,
BEIS,The Insolvency Service,14/06/2019,Travel & Subsistence,Finance & Commercial,Staff Payment,900009168,5.00,
BEIS,The Insolvency Service,14/06/2019,Travel & Subsistence,Finance & Commercial,Staff Payment,900009168,3.00,
BEIS,The Insolvency Service,14/06/2019,Travel & Subsistence,Finance & Commercial,Staff Payment,900009168,9.75,
BEIS,The Insolvency Service,14/06/2019,Travel & Subsistence,Finance & Commercial,Staff Payment,900009168,10.70,
BEIS,The Insolvency Service,14/06/2019,Travel & Subsistence,Finance & Commercial,Staff Payment,900009171,6.25,
BEIS,The Insolvency Service,14/06/2019,Travel & Subsistence,Finance & Commercial,Staff Payment,900009171,6.80,
BEIS,The Insolvency Service,14/06/2019,Travel & Subsistence,People & Capability,Staff Payment,900009184,190.00,
BEIS,The Insolvency Service,17/06/2019,Legal - Other,Finance & Commercial,Government Legal Department,300009763,2361.84,888823066
BEIS,The Insolvency Service,17/06/2019,Estates - Property,Finance & Commercial,Acenes House Ltd,300010247,34819.20,182696958
BEIS,The Insolvency Service,17/06/2019,Telephone & Postage,Information & Technology,Vodafone - Cable & Wireless Communications,300009773,945.36,569953277
BEIS,The Insolvency Service,17/06/2019,Telephone & Postage,Information & Technology,Vodafone - Cable & Wireless Communications,300009787,240.00,569953277
BEIS,The Insolvency Service,17/06/2019,Telephone & Postage,Information & Technology,Vodafone - Cable & Wireless Communications,300009788,240.00,569953277
BEIS,The Insolvency Service,17/06/2019,I&T,Information & Technology,Experian Qas Ltd,300009514,2702.93,887133593
BEIS,The Insolvency Service,17/06/2019,I&T,Information & Technology,Experian Qas Ltd,300009515,9783.60,887133593
BEIS,The Insolvency Service,17/06/2019,I&T,Information & Technology,Experian Qas Ltd,300009516,2733.60,887133593
BEIS,The Insolvency Service,17/06/2019,I&T,Information & Technology,Experian Qas Ltd,300009517,9783.60,887133593
BEIS,The Insolvency Service,17/06/2019,Estates - Property,Business Service Division,Posturite (Uk) Ltd.,300010015,124.32,583565114
BEIS,The Insolvency Service,17/06/2019,Estates - Property,Business Service Division,Posturite (Uk) Ltd.,300010016,588.07,583565114
BEIS,The Insolvency Service,17/06/2019,I&T,Information & Technology,Kofax Northern Ireland Limited,300009553,87723.17,681590219
BEIS,The Insolvency Service,17/06/2019,Telephone & Postage,Official Receiver Services,Kcom Group Plc,300009594,72.00,647235137
BEIS,The Insolvency Service,17/06/2019,Telephone & Postage,Official Receiver Services,Kcom Group Plc,300009594,20.00,647235137
BEIS,The Insolvency Service,17/06/2019,Telephone & Postage,Business Service Division,City Sprint Uk Ltd,300009657,118.45,997327364
BEIS,The Insolvency Service,17/06/2019,Legal - Other,Official Receiver Services,K International Plc,300009833,1221.00,600413800
BEIS,The Insolvency Service,17/06/2019,Legal - Other,Official Receiver Services,K International Plc,300009836,408.00,600413800
BEIS,The Insolvency Service,17/06/2019,Legal - Live Investigations,Legal Services Division,5 Paper Buildings Chambers,300009630,120.00,677825187
BEIS,The Insolvency Service,17/06/2019,Legal - Live Investigations,Legal Services Division,Citadel Chambers,300009820,180.00,241217250
BEIS,The Insolvency Service,17/06/2019,Staff Costs - Non-Perms,Finance & Commercial,SF RECRUITMENT LTD,300008082,2493.60,141965992
BEIS,The Insolvency Service,17/06/2019,Staff Costs - Non-Perms,Finance & Commercial,SF RECRUITMENT LTD,300009123,2493.60,141965992
BEIS,The Insolvency Service,17/06/2019,I&T,Strategy & Change,Netcompany,300009564,69524.40,171809009
BEIS,The Insolvency Service,17/06/2019,Estates - Storage,Official Receiver Services,Purdie Worldwide,300009837,930.69,208569880
BEIS,The Insolvency Service,17/06/2019,Training,Finance & Commercial,Proud Public Relations,300009548,1300.00,
BEIS,The Insolvency Service,17/06/2019,Travel & Subsistence,Business Service Division,Staff Payment,900009097,5.00,
BEIS,The Insolvency Service,17/06/2019,Travel & Subsistence,Business Service Division,Staff Payment,900009097,5.20,
BEIS,The Insolvency Service,17/06/2019,Travel & Subsistence,Business Service Division,Staff Payment,900009097,3.59,
BEIS,The Insolvency Service,17/06/2019,Travel & Subsistence,Business Service Division,Staff Payment,900009097,39.15,
BEIS,The Insolvency Service,17/06/2019,Travel & Subsistence,Business Service Division,Staff Payment,900009097,39.15,
BEIS,The Insolvency Service,17/06/2019,Travel & Subsistence,Business Service Division,Staff Payment,900009097,15.00,
BEIS,The Insolvency Service,17/06/2019,Travel & Subsistence,Business Service Division,Staff Payment,900009097,5.00,
BEIS,The Insolvency Service,17/06/2019,Travel & Subsistence,Official Receiver Services,Staff Payment,900009211,1.50,
BEIS,The Insolvency Service,17/06/2019,Travel & Subsistence,Official Receiver Services,Staff Payment,900009211,20.03,
BEIS,The Insolvency Service,17/06/2019,Travel & Subsistence,Official Receiver Services,Staff Payment,900009211,19.94,
BEIS,The Insolvency Service,17/06/2019,Travel & Subsistence,Official Receiver Services,Staff Payment,900009211,1.50,
BEIS,The Insolvency Service,17/06/2019,Travel & Subsistence,Official Receiver Services,Staff Payment,900009211,20.03,
BEIS,The Insolvency Service,17/06/2019,Travel & Subsistence,Official Receiver Services,Staff Payment,900009211,19.94,
BEIS,The Insolvency Service,17/06/2019,Travel & Subsistence,People & Capability,Staff Payment,900009212,41.95,
BEIS,The Insolvency Service,17/06/2019,Travel & Subsistence,People & Capability,Staff Payment,900009212,4.68,
BEIS,The Insolvency Service,17/06/2019,Travel & Subsistence,Business Service Division,Staff Payment,900009185,15.00,
BEIS,The Insolvency Service,17/06/2019,Travel & Subsistence,Business Service Division,Staff Payment,900009186,11.00,
BEIS,The Insolvency Service,17/06/2019,Travel & Subsistence,Business Service Division,Staff Payment,900009187,4.34,
BEIS,The Insolvency Service,17/06/2019,Travel & Subsistence,Business Service Division,Staff Payment,900009188,5.00,
BEIS,The Insolvency Service,17/06/2019,Travel & Subsistence,Business Service Division,Staff Payment,900009188,5.00,
BEIS,The Insolvency Service,17/06/2019,Travel & Subsistence,Business Service Division,Staff Payment,900009189,5.00,
BEIS,The Insolvency Service,17/06/2019,Travel & Subsistence,Business Service Division,Staff Payment,900009190,7.49,
BEIS,The Insolvency Service,17/06/2019,Travel & Subsistence,Business Service Division,Staff Payment,900009190,5.00,
BEIS,The Insolvency Service,17/06/2019,Travel & Subsistence,Business Service Division,Staff Payment,900009191,5.00,
BEIS,The Insolvency Service,17/06/2019,Travel & Subsistence,People & Capability,Staff Payment,900009182,7.50,
BEIS,The Insolvency Service,17/06/2019,Travel & Subsistence,People & Capability,Staff Payment,900009182,3.00,
BEIS,The Insolvency Service,17/06/2019,Travel & Subsistence,People & Capability,Staff Payment,900009182,8.55,
BEIS,The Insolvency Service,17/06/2019,Travel & Subsistence,People & Capability,Staff Payment,900009182,5.00,
BEIS,The Insolvency Service,17/06/2019,Travel & Subsistence,Chief Executive Office,Staff Payment,900009198,5.00,
BEIS,The Insolvency Service,17/06/2019,Travel & Subsistence,Chief Executive Office,Staff Payment,900009198,15.00,
BEIS,The Insolvency Service,17/06/2019,Travel & Subsistence,Chief Executive Office,Staff Payment,900009198,15.00,
BEIS,The Insolvency Service,17/06/2019,Travel & Subsistence,Chief Executive Office,Staff Payment,900009198,5.00,
BEIS,The Insolvency Service,17/06/2019,Travel & Subsistence,Chief Executive Office,Staff Payment,900009198,15.00,
BEIS,The Insolvency Service,17/06/2019,Travel & Subsistence,Chief Executive Office,Staff Payment,900009198,4.35,
BEIS,The Insolvency Service,17/06/2019,Travel & Subsistence,Chief Executive Office,Staff Payment,900009198,12.05,
BEIS,The Insolvency Service,17/06/2019,Travel & Subsistence,Official Receiver Services,Staff Payment,900009216,9.00,
BEIS,The Insolvency Service,17/06/2019,Travel & Subsistence,Official Receiver Services,Staff Payment,900009217,50.40,
BEIS,The Insolvency Service,17/06/2019,Travel & Subsistence,Official Receiver Services,Staff Payment,900009140,2.70,
BEIS,The Insolvency Service,17/06/2019,Travel & Subsistence,Official Receiver Services,Staff Payment,900009140,11.70,
BEIS,The Insolvency Service,17/06/2019,Travel & Subsistence,Official Receiver Services,Staff Payment,900009140,11.70,
BEIS,The Insolvency Service,17/06/2019,Travel & Subsistence,Official Receiver Services,Staff Payment,900009140,32.40,
BEIS,The Insolvency Service,17/06/2019,Travel & Subsistence,Official Receiver Services,Staff Payment,900009140,2.60,
BEIS,The Insolvency Service,17/06/2019,Travel & Subsistence,Official Receiver Services,Staff Payment,900009140,2.00,
BEIS,The Insolvency Service,17/06/2019,Travel & Subsistence,Official Receiver Services,Staff Payment,900009140,12.00,
BEIS,The Insolvency Service,17/06/2019,Travel & Subsistence,Official Receiver Services,Staff Payment,900009140,12.00,
BEIS,The Insolvency Service,17/06/2019,Travel & Subsistence,Official Receiver Services,Staff Payment,900009140,3.00,
BEIS,The Insolvency Service,17/06/2019,Travel & Subsistence,Official Receiver Services,Staff Payment,900009140,37.80,
BEIS,The Insolvency Service,17/06/2019,Travel & Subsistence,Official Receiver Services,Staff Payment,900009140,5.00,
BEIS,The Insolvency Service,17/06/2019,Travel & Subsistence,Official Receiver Services,Staff Payment,900009140,5.00,
BEIS,The Insolvency Service,17/06/2019,Travel & Subsistence,Official Receiver Services,Staff Payment,900009140,29.70,
BEIS,The Insolvency Service,17/06/2019,Travel & Subsistence,Official Receiver Services,Staff Payment,900009140,2.00,
BEIS,The Insolvency Service,17/06/2019,Travel & Subsistence,Official Receiver Services,Staff Payment,900009140,2.00,
BEIS,The Insolvency Service,17/06/2019,Travel & Subsistence,Official Receiver Services,Staff Payment,900008469,51.75,
BEIS,The Insolvency Service,17/06/2019,Travel & Subsistence,Official Receiver Services,Staff Payment,900008469,4.40,
BEIS,The Insolvency Service,17/06/2019,Travel & Subsistence,Official Receiver Services,Staff Payment,900008469,3.60,
BEIS,The Insolvency Service,17/06/2019,Travel & Subsistence,Official Receiver Services,Staff Payment,900008469,3.79,
BEIS,The Insolvency Service,17/06/2019,Travel & Subsistence,Official Receiver Services,Staff Payment,900008469,5.00,
BEIS,The Insolvency Service,17/06/2019,Travel & Subsistence,Official Receiver Services,Staff Payment,900008470,4.50,
BEIS,The Insolvency Service,17/06/2019,Travel & Subsistence,Official Receiver Services,Staff Payment,900008470,3.60,
BEIS,The Insolvency Service,17/06/2019,Travel & Subsistence,Official Receiver Services,Staff Payment,900008470,1.00,
BEIS,The Insolvency Service,17/06/2019,Travel & Subsistence,Official Receiver Services,Staff Payment,900008470,68.40,
BEIS,The Insolvency Service,17/06/2019,Travel & Subsistence,Official Receiver Services,Staff Payment,900008470,51.75,
BEIS,The Insolvency Service,17/06/2019,Travel & Subsistence,Official Receiver Services,Staff Payment,900008470,27.45,
BEIS,The Insolvency Service,17/06/2019,Travel & Subsistence,Official Receiver Services,Staff Payment,900008470,5.00,
BEIS,The Insolvency Service,17/06/2019,Travel & Subsistence,Official Receiver Services,Staff Payment,900009166,1.00,
BEIS,The Insolvency Service,17/06/2019,Travel & Subsistence,Official Receiver Services,Staff Payment,900009166,13.50,
BEIS,The Insolvency Service,17/06/2019,Travel & Subsistence,Official Receiver Services,Staff Payment,900009193,13.00,
BEIS,The Insolvency Service,17/06/2019,Travel & Subsistence,Official Receiver Services,Staff Payment,900009193,10.00,
BEIS,The Insolvency Service,17/06/2019,Travel & Subsistence,Strategy & Change,Staff Payment,900009076,29.48,
BEIS,The Insolvency Service,17/06/2019,Travel & Subsistence,Strategy & Change,Staff Payment,900009076,5.50,
BEIS,The Insolvency Service,17/06/2019,Travel & Subsistence,Investigations & Enforcement Services,Staff Payment,900009169,36.00,
BEIS,The Insolvency Service,17/06/2019,Travel & Subsistence,Investigations & Enforcement Services,Staff Payment,900009169,9.00,
BEIS,The Insolvency Service,17/06/2019,Travel & Subsistence,Investigations & Enforcement Services,Staff Payment,900009169,5.00,
BEIS,The Insolvency Service,17/06/2019,Travel & Subsistence,Investigations & Enforcement Services,Staff Payment,900009169,4.70,
BEIS,The Insolvency Service,17/06/2019,Travel & Subsistence,Investigations & Enforcement Services,Staff Payment,900009169,41.85,
BEIS,The Insolvency Service,17/06/2019,Travel & Subsistence,Investigations & Enforcement Services,Staff Payment,900009169,8.37,
BEIS,The Insolvency Service,17/06/2019,Travel & Subsistence,Official Receiver Services,Staff Payment,900009173,30.00,
BEIS,The Insolvency Service,17/06/2019,Travel & Subsistence,Official Receiver Services,Staff Payment,900009173,10.00,
BEIS,The Insolvency Service,17/06/2019,Travel & Subsistence,Official Receiver Services,Staff Payment,900009173,5.00,
BEIS,The Insolvency Service,17/06/2019,Travel & Subsistence,Official Receiver Services,Staff Payment,900009173,5.00,
BEIS,The Insolvency Service,17/06/2019,Travel & Subsistence,Information & Technology,Staff Payment,900009194,26.55,
BEIS,The Insolvency Service,17/06/2019,Travel & Subsistence,Information & Technology,Staff Payment,900009194,5.00,
BEIS,The Insolvency Service,17/06/2019,Travel & Subsistence,Information & Technology,Staff Payment,900009195,2.00,
BEIS,The Insolvency Service,17/06/2019,Travel & Subsistence,Information & Technology,Staff Payment,900009196,12.00,
BEIS,The Insolvency Service,17/06/2019,Travel & Subsistence,Information & Technology,Staff Payment,900009197,12.00,
BEIS,The Insolvency Service,17/06/2019,Travel & Subsistence,Information & Technology,Staff Payment,900009197,30.15,
BEIS,The Insolvency Service,17/06/2019,Travel & Subsistence,Chief Executive Office,Staff Payment,900009067,3.39,
BEIS,The Insolvency Service,17/06/2019,Travel & Subsistence,Chief Executive Office,Staff Payment,900009067,5.58,
BEIS,The Insolvency Service,17/06/2019,Travel & Subsistence,Chief Executive Office,Staff Payment,900009067,5.00,
BEIS,The Insolvency Service,17/06/2019,Travel & Subsistence,Chief Executive Office,Staff Payment,900009084,3.39,
BEIS,The Insolvency Service,17/06/2019,Travel & Subsistence,Chief Executive Office,Staff Payment,900009084,5.00,
BEIS,The Insolvency Service,17/06/2019,Travel & Subsistence,Chief Executive Office,Staff Payment,900009084,8.30,
BEIS,The Insolvency Service,17/06/2019,Travel & Subsistence,Chief Executive Office,Staff Payment,900009202,3.39,
BEIS,The Insolvency Service,17/06/2019,Travel & Subsistence,Chief Executive Office,Staff Payment,900009141,5.00,
BEIS,The Insolvency Service,17/06/2019,Travel & Subsistence,Chief Executive Office,Staff Payment,900009141,15.00,
BEIS,The Insolvency Service,17/06/2019,Travel & Subsistence,Chief Executive Office,Staff Payment,900009141,5.00,
BEIS,The Insolvency Service,17/06/2019,Travel & Subsistence,Chief Executive Office,Staff Payment,900009199,2.90,
BEIS,The Insolvency Service,17/06/2019,Travel & Subsistence,Chief Executive Office,Staff Payment,900009199,2.40,
BEIS,The Insolvency Service,17/06/2019,Travel & Subsistence,Chief Executive Office,Staff Payment,900009199,5.00,
BEIS,The Insolvency Service,17/06/2019,Travel & Subsistence,Chief Executive Office,Staff Payment,900009199,17.00,
BEIS,The Insolvency Service,17/06/2019,Travel & Subsistence,Chief Executive Office,Staff Payment,900009199,8.00,
BEIS,The Insolvency Service,17/06/2019,Travel & Subsistence,Chief Executive Office,Staff Payment,900009199,23.00,
BEIS,The Insolvency Service,17/06/2019,Travel & Subsistence,Chief Executive Office,Staff Payment,900009199,15.00,
BEIS,The Insolvency Service,17/06/2019,Travel & Subsistence,Chief Executive Office,Staff Payment,900009199,5.00,
BEIS,The Insolvency Service,17/06/2019,Travel & Subsistence,Chief Executive Office,Staff Payment,900009199,3.95,
BEIS,The Insolvency Service,17/06/2019,Travel & Subsistence,Chief Executive Office,Staff Payment,900009205,5.00,
BEIS,The Insolvency Service,17/06/2019,Travel & Subsistence,Chief Executive Office,Staff Payment,900009205,10.00,
BEIS,The Insolvency Service,17/06/2019,Travel & Subsistence,Chief Executive Office,Staff Payment,900009205,15.00,
BEIS,The Insolvency Service,17/06/2019,Travel & Subsistence,Finance & Commercial,Staff Payment,900009203,15.00,
BEIS,The Insolvency Service,17/06/2019,Travel & Subsistence,Finance & Commercial,Staff Payment,900009204,7.80,
BEIS,The Insolvency Service,17/06/2019,Travel & Subsistence,Finance & Commercial,Staff Payment,900009204,7.76,
BEIS,The Insolvency Service,17/06/2019,Travel & Subsistence,Finance & Commercial,Staff Payment,900009204,6.58,
BEIS,The Insolvency Service,17/06/2019,Travel & Subsistence,Finance & Commercial,Staff Payment,900009206,3.65,
BEIS,The Insolvency Service,17/06/2019,Travel & Subsistence,Finance & Commercial,Staff Payment,900009206,8.40,
BEIS,The Insolvency Service,17/06/2019,Travel & Subsistence,Finance & Commercial,Staff Payment,900009206,3.90,
BEIS,The Insolvency Service,17/06/2019,Travel & Subsistence,Finance & Commercial,Staff Payment,900009206,2.00,
BEIS,The Insolvency Service,17/06/2019,Travel & Subsistence,Finance & Commercial,Staff Payment,900009208,1.70,
BEIS,The Insolvency Service,17/06/2019,Travel & Subsistence,Finance & Commercial,Staff Payment,900009208,2.80,
BEIS,The Insolvency Service,17/06/2019,Travel & Subsistence,Finance & Commercial,Staff Payment,900009208,3.10,
BEIS,The Insolvency Service,17/06/2019,Travel & Subsistence,Finance & Commercial,Staff Payment,900009208,2.80,
BEIS,The Insolvency Service,17/06/2019,Travel & Subsistence,Finance & Commercial,Staff Payment,900009208,32.00,
BEIS,The Insolvency Service,17/06/2019,Travel & Subsistence,Finance & Commercial,Staff Payment,900009208,5.00,
BEIS,The Insolvency Service,17/06/2019,Travel & Subsistence,Finance & Commercial,Staff Payment,900009210,3.30,
BEIS,The Insolvency Service,17/06/2019,Travel & Subsistence,Finance & Commercial,Staff Payment,900009210,2.80,
BEIS,The Insolvency Service,17/06/2019,Travel & Subsistence,Finance & Commercial,Staff Payment,900009210,32.00,
BEIS,The Insolvency Service,17/06/2019,Travel & Subsistence,Finance & Commercial,Staff Payment,900009210,32.00,
BEIS,The Insolvency Service,17/06/2019,Travel & Subsistence,Finance & Commercial,Staff Payment,900009210,5.00,
BEIS,The Insolvency Service,17/06/2019,Travel & Subsistence,Finance & Commercial,Staff Payment,900009210,5.00,
BEIS,The Insolvency Service,17/06/2019,Travel & Subsistence,Legal Services Division,Staff Payment,900009174,66.60,
BEIS,The Insolvency Service,18/06/2019,Estates - Property,Finance & Commercial,Companies House,300009886,26620.45,GD255
BEIS,The Insolvency Service,18/06/2019,Legal - Other,Finance & Commercial,Government Legal Department,300009125,590.50,
BEIS,The Insolvency Service,18/06/2019,Estates - Property,Finance & Commercial,Government Legal Department,300009877,66.72,888823066
BEIS,The Insolvency Service,18/06/2019,Telephone & Postage,Information & Technology,Vodafone - Cable & Wireless Communications,300009846,7637.71,569953277
BEIS,The Insolvency Service,18/06/2019,Telephone & Postage,Business Service Division,Dx Network Services Ltd,300009899,1084.49,849741385
BEIS,The Insolvency Service,18/06/2019,Estates - Storage,Business Service Division,Iron Mountain (Uk) Ltd,300009799,36071.17,607937516
BEIS,The Insolvency Service,18/06/2019,Telephone & Postage,Business Service Division,Tnt Uk Ltd,300009840,47.02,354715057
BEIS,The Insolvency Service,18/06/2019,Compensation/Disbursements,Official Receiver Services,Frank G. Bowen Ltd,300009731,85.00,238504366
BEIS,The Insolvency Service,18/06/2019,Compensation/Disbursements,Official Receiver Services,Frank G. Bowen Ltd,300009777,250.00,238504366
BEIS,The Insolvency Service,18/06/2019,Estates - Property,Business Service Division,Restore Datashred,300009671,480.24,240193143
BEIS,The Insolvency Service,18/06/2019,Legal - Other,Strategy & Change,Agilisys Ltd,300009831,24619.20,791711713
BEIS,The Insolvency Service,18/06/2019,Legal - Other,Strategy & Change,Agilisys Ltd,300009832,49238.40,791711713
BEIS,The Insolvency Service,18/06/2019,Legal - Other,Strategy & Change,Agilisys Ltd,300009835,37327.50,791711713
BEIS,The Insolvency Service,18/06/2019,HR,People & Capability,Stonewall Equality Ltd,300009764,3000.00,862906405
BEIS,The Insolvency Service,18/06/2019,I&T,Chief Executive Office,Nla Media Access Limited,300009900,33557.84,
BEIS,The Insolvency Service,18/06/2019,Estates - Property,Finance & Commercial,Edf Energy,300009795,946.97,523041202
BEIS,The Insolvency Service,18/06/2019,I&T,Strategy & Change,Thales Uk Ltd,300009902,3589.20,198955680
BEIS,The Insolvency Service,18/06/2019,Training,People & Capability,KPMG LLP,300009774,249.00,791788859
BEIS,The Insolvency Service,18/06/2019,Legal - Live Investigations,Investigations & Enforcement Services,Mendip Media Group Ltd (Now Trading As Appen) ,300009904,348.85,609546425
BEIS,The Insolvency Service,18/06/2019,Staff Costs - Non-Perms,Finance & Commercial,ALEXANDER MANN SOLUTIONS,300009878,51524.38,7444926120
BEIS,The Insolvency Service,18/06/2019,Estates - Storage,Official Receiver Services,File Centre,300009905,300.90,885439474
BEIS,The Insolvency Service,18/06/2019,Training,Information & Technology,Continuity Shop,300009124,2900.00,845029527
BEIS,The Insolvency Service,18/06/2019,Training,Information & Technology,Continuity Shop,300009124,40.00,845029527
BEIS,The Insolvency Service,18/06/2019,Travel & Subsistence,Strategy & Change,Staff Payment,900009192,5.30,
BEIS,The Insolvency Service,18/06/2019,Travel & Subsistence,Strategy & Change,Staff Payment,900009192,4.80,
BEIS,The Insolvency Service,18/06/2019,Travel & Subsistence,Strategy & Change,Staff Payment,900009192,12.00,
BEIS,The Insolvency Service,18/06/2019,Travel & Subsistence,Strategy & Change,Staff Payment,900009192,4.30,
BEIS,The Insolvency Service,18/06/2019,Travel & Subsistence,Strategy & Change,Staff Payment,900009192,3.00,
BEIS,The Insolvency Service,18/06/2019,Travel & Subsistence,Strategy & Change,Staff Payment,900009192,35.00,
BEIS,The Insolvency Service,18/06/2019,Travel & Subsistence,Strategy & Change,Staff Payment,900009192,49.34,
BEIS,The Insolvency Service,18/06/2019,Travel & Subsistence,Strategy & Change,Staff Payment,900009192,30.00,
BEIS,The Insolvency Service,18/06/2019,Travel & Subsistence,Strategy & Change,Staff Payment,900009192,5.30,
BEIS,The Insolvency Service,18/06/2019,Travel & Subsistence,Strategy & Change,Staff Payment,900009192,4.80,
BEIS,The Insolvency Service,18/06/2019,Travel & Subsistence,Strategy & Change,Staff Payment,900009192,15.90,
BEIS,The Insolvency Service,18/06/2019,Travel & Subsistence,Strategy & Change,Staff Payment,900009192,4.80,
BEIS,The Insolvency Service,18/06/2019,Travel & Subsistence,Investigations & Enforcement Services,Staff Payment,900009228,12.60,
BEIS,The Insolvency Service,18/06/2019,Travel & Subsistence,Investigations & Enforcement Services,Staff Payment,900009228,4.50,
BEIS,The Insolvency Service,18/06/2019,Travel & Subsistence,Investigations & Enforcement Services,Staff Payment,900009228,5.00,
BEIS,The Insolvency Service,18/06/2019,Travel & Subsistence,Investigations & Enforcement Services,Staff Payment,900009228,4.85,
BEIS,The Insolvency Service,18/06/2019,Travel & Subsistence,Investigations & Enforcement Services,Staff Payment,900009142,4.74,
BEIS,The Insolvency Service,18/06/2019,Travel & Subsistence,Investigations & Enforcement Services,Staff Payment,900009143,7.00,
BEIS,The Insolvency Service,18/06/2019,Travel & Subsistence,Investigations & Enforcement Services,Staff Payment,900009145,17.00,
BEIS,The Insolvency Service,18/06/2019,Travel & Subsistence,Investigations & Enforcement Services,Staff Payment,900009145,3.50,
BEIS,The Insolvency Service,18/06/2019,Travel & Subsistence,Investigations & Enforcement Services,Staff Payment,900009145,8.00,
BEIS,The Insolvency Service,18/06/2019,Travel & Subsistence,Investigations & Enforcement Services,Staff Payment,900009148,12.00,
BEIS,The Insolvency Service,18/06/2019,Travel & Subsistence,Investigations & Enforcement Services,Staff Payment,900009148,5.00,
BEIS,The Insolvency Service,18/06/2019,Travel & Subsistence,Investigations & Enforcement Services,Staff Payment,900009150,3.00,
BEIS,The Insolvency Service,18/06/2019,Travel & Subsistence,Official Receiver Services,Staff Payment,900009172,5.00,
BEIS,The Insolvency Service,18/06/2019,Travel & Subsistence,Official Receiver Services,Staff Payment,900009172,5.00,
BEIS,The Insolvency Service,18/06/2019,Travel & Subsistence,Official Receiver Services,Staff Payment,900009172,4.93,
BEIS,The Insolvency Service,18/06/2019,Travel & Subsistence,Official Receiver Services,Staff Payment,900009172,15.00,
BEIS,The Insolvency Service,18/06/2019,Travel & Subsistence,Investigations & Enforcement Services,Staff Payment,900009180,54.00,
BEIS,The Insolvency Service,18/06/2019,Travel & Subsistence,Business Service Division,Staff Payment,900009225,9.44,
BEIS,The Insolvency Service,18/06/2019,Travel & Subsistence,Business Service Division,Staff Payment,900009225,20.00,
BEIS,The Insolvency Service,18/06/2019,Travel & Subsistence,Business Service Division,Staff Payment,900009225,5.00,
BEIS,The Insolvency Service,18/06/2019,Travel & Subsistence,Business Service Division,Staff Payment,900009226,3.50,
BEIS,The Insolvency Service,18/06/2019,Travel & Subsistence,Business Service Division,Staff Payment,900009226,4.20,
BEIS,The Insolvency Service,18/06/2019,Travel & Subsistence,Business Service Division,Staff Payment,900009226,4.20,
BEIS,The Insolvency Service,18/06/2019,Travel & Subsistence,Business Service Division,Staff Payment,900009226,1.00,
BEIS,The Insolvency Service,18/06/2019,Travel & Subsistence,Business Service Division,Staff Payment,900009226,42.00,
BEIS,The Insolvency Service,18/06/2019,Travel & Subsistence,Business Service Division,Staff Payment,900009226,42.00,
BEIS,The Insolvency Service,18/06/2019,Travel & Subsistence,Business Service Division,Staff Payment,900009226,1.00,
BEIS,The Insolvency Service,18/06/2019,Travel & Subsistence,Business Service Division,Staff Payment,900009226,13.45,
BEIS,The Insolvency Service,18/06/2019,Travel & Subsistence,Business Service Division,Staff Payment,900009226,41.74,
BEIS,The Insolvency Service,18/06/2019,Travel & Subsistence,Business Service Division,Staff Payment,900009226,10.00,
BEIS,The Insolvency Service,18/06/2019,Travel & Subsistence,Strategy & Change,Staff Payment,900009214,63.20,
BEIS,The Insolvency Service,18/06/2019,Travel & Subsistence,Investigations & Enforcement Services,Staff Payment,900009229,8.00,
BEIS,The Insolvency Service,18/06/2019,Travel & Subsistence,Investigations & Enforcement Services,Staff Payment,900009229,3.00,
BEIS,The Insolvency Service,18/06/2019,Travel & Subsistence,Investigations & Enforcement Services,Staff Payment,900009229,5.00,
BEIS,The Insolvency Service,18/06/2019,Travel & Subsistence,Strategy & Change,Staff Payment,900008739,4.80,
BEIS,The Insolvency Service,18/06/2019,Travel & Subsistence,Strategy & Change,Staff Payment,900008739,4.85,
BEIS,The Insolvency Service,19/06/2019,Printing & Stationary,Business Service Division,Companies House,300009768,9.00,GD255
BEIS,The Insolvency Service,19/06/2019,Printing & Stationary,Business Service Division,Companies House,300009770,8.00,GD255
BEIS,The Insolvency Service,19/06/2019,Compensation/Disbursements,Business Service Division,Equifax Ltd,300009928,78.00,565629213
BEIS,The Insolvency Service,19/06/2019,Estates - Property,Finance & Commercial,Jones Lang Lasalle,300009907,10285.06,244155576
BEIS,The Insolvency Service,19/06/2019,Printing & Stationary,Business Service Division,Banner Business Services Ltd,300009654,7652.47,731860439
BEIS,The Insolvency Service,19/06/2019,Telephone & Postage,Business Service Division,Dx Network Services Ltd,300009894,900.00,849741385
BEIS,The Insolvency Service,19/06/2019,Printing & Stationary,Business Service Division,Neopost Limited,300009929,181.18,
BEIS,The Insolvency Service,19/06/2019,Printing & Stationary,Business Service Division,Neopost Limited,300009930,219.59,
BEIS,The Insolvency Service,19/06/2019,Telephone & Postage,Business Service Division,Neopost Limited,300009615,73.49,
BEIS,The Insolvency Service,19/06/2019,Telephone & Postage,Business Service Division,Neopost Limited,300009842,229.98,
BEIS,The Insolvency Service,19/06/2019,Telephone & Postage,Business Service Division,Neopost Limited,300009843,229.98,
BEIS,The Insolvency Service,19/06/2019,Telephone & Postage,Business Service Division,Neopost Limited,300009844,229.98,
BEIS,The Insolvency Service,19/06/2019,Telephone & Postage,Business Service Division,Neopost Limited,300009845,229.98,
BEIS,The Insolvency Service,19/06/2019,Telephone & Postage,Business Service Division,Parcelforce Worldwide,300009689,283.52,243170002
BEIS,The Insolvency Service,19/06/2019,Telephone & Postage,Business Service Division,Royal Mail Group Ltd,300009681,19.50,243170002
BEIS,The Insolvency Service,19/06/2019,Telephone & Postage,Business Service Division,Royal Mail Group Ltd,300009682,11.00,243170002
BEIS,The Insolvency Service,19/06/2019,Telephone & Postage,Business Service Division,Royal Mail Group Ltd,300009683,53.99,243170002
BEIS,The Insolvency Service,19/06/2019,Telephone & Postage,Business Service Division,Royal Mail Group Ltd,300009684,206.98,243170002
BEIS,The Insolvency Service,19/06/2019,Telephone & Postage,Business Service Division,Royal Mail Group Ltd,300009686,52.10,243170002
BEIS,The Insolvency Service,19/06/2019,Telephone & Postage,Business Service Division,Royal Mail Group Ltd,300009687,99.00,243170002
BEIS,The Insolvency Service,19/06/2019,Telephone & Postage,Business Service Division,Royal Mail Group Ltd,300009688,50.11,243170002
BEIS,The Insolvency Service,19/06/2019,Telephone & Postage,Business Service Division,Royal Mail Group Ltd,300009915,14.64,243170002
BEIS,The Insolvency Service,19/06/2019,Telephone & Postage,Business Service Division,Royal Mail Group Ltd,300009916,75.46,243170002
BEIS,The Insolvency Service,19/06/2019,Telephone & Postage,Business Service Division,Royal Mail Group Ltd,300009918,58.92,243170002
BEIS,The Insolvency Service,19/06/2019,Telephone & Postage,Business Service Division,Royal Mail Group Ltd,300009927,32.45,243170002
BEIS,The Insolvency Service,19/06/2019,Telephone & Postage,Business Service Division,Tnt Uk Ltd,300009879,8.99,354715057
BEIS,The Insolvency Service,19/06/2019,Telephone & Postage,Business Service Division,Tnt Uk Ltd,300009887,3.50,354715057
BEIS,The Insolvency Service,19/06/2019,Telephone & Postage,Business Service Division,Tnt Uk Ltd,300009887,61.24,354715057
BEIS,The Insolvency Service,19/06/2019,I&T,Information & Technology,Trustmarque Solutions Ltd,300009890,2950.86,727348615
BEIS,The Insolvency Service,19/06/2019,I&T,Strategy & Change,Trustmarque Solutions Ltd,300009891,2676.24,727348615
BEIS,The Insolvency Service,19/06/2019,I&T,Information & Technology,Trustmarque Solutions Ltd,300009892,2178.97,727348615
BEIS,The Insolvency Service,19/06/2019,I&T,Information & Technology,Trustmarque Solutions Ltd,300009893,486.20,727348615
BEIS,The Insolvency Service,19/06/2019,Estates - Property,Business Service Division,Restore Datashred,300009658,32.00,240193143
BEIS,The Insolvency Service,19/06/2019,Estates - Property,Business Service Division,Restore Datashred,300009659,96.00,240193143
BEIS,The Insolvency Service,19/06/2019,Estates - Property,Business Service Division,Restore Datashred,300009660,74.10,240193143
BEIS,The Insolvency Service,19/06/2019,Estates - Property,Business Service Division,Restore Datashred,300009661,71.45,240193143
BEIS,The Insolvency Service,19/06/2019,Estates - Property,Business Service Division,Restore Datashred,300009662,160.00,240193143
BEIS,The Insolvency Service,19/06/2019,Estates - Property,Business Service Division,Restore Datashred,300009663,85.80,240193143
BEIS,The Insolvency Service,19/06/2019,Estates - Property,Business Service Division,Restore Datashred,300009664,96.00,240193143
BEIS,The Insolvency Service,19/06/2019,Estates - Property,Business Service Division,Restore Datashred,300009665,32.00,240193143
BEIS,The Insolvency Service,19/06/2019,Estates - Property,Business Service Division,Restore Datashred,300009666,32.00,240193143
BEIS,The Insolvency Service,19/06/2019,Estates - Property,Business Service Division,Restore Datashred,300009667,32.00,240193143
BEIS,The Insolvency Service,19/06/2019,Estates - Property,Business Service Division,Restore Datashred,300009668,151.90,240193143
BEIS,The Insolvency Service,19/06/2019,Estates - Property,Business Service Division,Restore Datashred,300009669,39.75,240193143
BEIS,The Insolvency Service,19/06/2019,Estates - Property,Business Service Division,Restore Datashred,300009670,64.00,240193143
BEIS,The Insolvency Service,19/06/2019,Estates - Property,Business Service Division,Restore Datashred,300009715,7166.39,240193143
BEIS,The Insolvency Service,19/06/2019,Training,People & Capability,Capita Business Services Limited,300009911,3701.92,618184140
BEIS,The Insolvency Service,19/06/2019,Estates - Property,Finance & Commercial,Colliers International Property Consultants Ltd,300009838,106977.58,
BEIS,The Insolvency Service,19/06/2019,I&T,Information & Technology,Ukcloud Ltd,300009938,9243.86,172647982
BEIS,The Insolvency Service,19/06/2019,Telephone & Postage,Business Service Division,Syntec Ltd,300009797,3846.57,264618586
BEIS,The Insolvency Service,19/06/2019,Legal - Disqualifications,Legal Services Division,Trinity Barristers,300010296,561.00,744811039
BEIS,The Insolvency Service,19/06/2019,Compensation/Disbursements,Business Service Division,SUNDRY SUPPLIER,300009732,175.00,
BEIS,The Insolvency Service,19/06/2019,Compensation/Disbursements,Business Service Division,SUNDRY SUPPLIER,300009808,100.00,
BEIS,The Insolvency Service,19/06/2019,Compensation/Disbursements,Business Service Division,SUNDRY SUPPLIER,300009889,50.00,
BEIS,The Insolvency Service,19/06/2019,Compensation/Disbursements,Business Service Division,SUNDRY SUPPLIER,300009912,100.00,
BEIS,The Insolvency Service,19/06/2019,Printing & Stationary,People & Capability,Charles Alexander Distribution Limited,300009550,6576.00,991307996
BEIS,The Insolvency Service,19/06/2019,Travel & Subsistence,People & Capability,Staff Payment,900009247,10.00,
BEIS,The Insolvency Service,19/06/2019,Travel & Subsistence,Investigations & Enforcement Services,Staff Payment,900009170,3.75,
BEIS,The Insolvency Service,19/06/2019,Travel & Subsistence,Investigations & Enforcement Services,Staff Payment,900009170,3.00,
BEIS,The Insolvency Service,19/06/2019,Travel & Subsistence,Investigations & Enforcement Services,Staff Payment,900009170,14.00,
BEIS,The Insolvency Service,19/06/2019,Travel & Subsistence,People & Capability,Staff Payment,900009239,163.00,
BEIS,The Insolvency Service,19/06/2019,Travel & Subsistence,Investigations & Enforcement Services,Staff Payment,900009231,5.00,
BEIS,The Insolvency Service,19/06/2019,Travel & Subsistence,Investigations & Enforcement Services,Staff Payment,900009231,5.00,
BEIS,The Insolvency Service,19/06/2019,Travel & Subsistence,Investigations & Enforcement Services,Staff Payment,900009231,41.85,
BEIS,The Insolvency Service,19/06/2019,Travel & Subsistence,Investigations & Enforcement Services,Staff Payment,900009231,41.85,
BEIS,The Insolvency Service,19/06/2019,Travel & Subsistence,Investigations & Enforcement Services,Staff Payment,900009231,2.55,
BEIS,The Insolvency Service,19/06/2019,Travel & Subsistence,Investigations & Enforcement Services,Staff Payment,900009252,4.80,
BEIS,The Insolvency Service,19/06/2019,Travel & Subsistence,Investigations & Enforcement Services,Staff Payment,900009252,4.80,
BEIS,The Insolvency Service,19/06/2019,Travel & Subsistence,Investigations & Enforcement Services,Staff Payment,900009252,4.80,
BEIS,The Insolvency Service,19/06/2019,Travel & Subsistence,Investigations & Enforcement Services,Staff Payment,900009252,4.80,
BEIS,The Insolvency Service,19/06/2019,Travel & Subsistence,Finance & Commercial,Staff Payment,900009249,15.00,
BEIS,The Insolvency Service,19/06/2019,Travel & Subsistence,Finance & Commercial,Staff Payment,900009249,11.50,
BEIS,The Insolvency Service,19/06/2019,Travel & Subsistence,Finance & Commercial,Staff Payment,900009249,6.00,
BEIS,The Insolvency Service,19/06/2019,Travel & Subsistence,Finance & Commercial,Staff Payment,900009249,7.00,
BEIS,The Insolvency Service,19/06/2019,Travel & Subsistence,Finance & Commercial,Staff Payment,900009249,8.10,
BEIS,The Insolvency Service,19/06/2019,Travel & Subsistence,Finance & Commercial,Staff Payment,900009249,5.20,
BEIS,The Insolvency Service,19/06/2019,Travel & Subsistence,Finance & Commercial,Staff Payment,900009249,9.80,
BEIS,The Insolvency Service,19/06/2019,Travel & Subsistence,Investigations & Enforcement Services,Staff Payment,900009246,10.00,
BEIS,The Insolvency Service,19/06/2019,Travel & Subsistence,Investigations & Enforcement Services,Staff Payment,900009246,11.70,
BEIS,The Insolvency Service,19/06/2019,Travel & Subsistence,Investigations & Enforcement Services,Staff Payment,900009246,25.00,
BEIS,The Insolvency Service,19/06/2019,Travel & Subsistence,Investigations & Enforcement Services,Staff Payment,900009246,27.00,
BEIS,The Insolvency Service,19/06/2019,Travel & Subsistence,Investigations & Enforcement Services,Staff Payment,900009246,25.00,
BEIS,The Insolvency Service,19/06/2019,Travel & Subsistence,Investigations & Enforcement Services,Staff Payment,900009246,25.00,
BEIS,The Insolvency Service,19/06/2019,Travel & Subsistence,Investigations & Enforcement Services,Staff Payment,900009246,5.00,
BEIS,The Insolvency Service,19/06/2019,Travel & Subsistence,Investigations & Enforcement Services,Staff Payment,900009242,12.50,
BEIS,The Insolvency Service,19/06/2019,Travel & Subsistence,Investigations & Enforcement Services,Staff Payment,900009242,13.50,
BEIS,The Insolvency Service,19/06/2019,Travel & Subsistence,Investigations & Enforcement Services,Staff Payment,900009245,11.40,
BEIS,The Insolvency Service,20/06/2019,Printing & Stationary,Business Service Division,Banner Business Services Ltd,300009083,6008.98,731860439
BEIS,The Insolvency Service,20/06/2019,Printing & Stationary,Business Service Division,Banner Business Services Ltd,300009083,9.31,731860439
BEIS,The Insolvency Service,20/06/2019,Training,Official Receiver Services,KPMG,300005996,199.00,
BEIS,The Insolvency Service,20/06/2019,Compensation/Disbursements,Official Receiver Services,SUNDRY SUPPLIER,300010012,50.00,
BEIS,The Insolvency Service,20/06/2019,Legal - Disqualifications,Legal Services Division,Enterprise Chambers,300010250,630.00,938136900
BEIS,The Insolvency Service,20/06/2019,Travel & Subsistence,Investigations & Enforcement Services,Staff Payment,900009070,5.00,
BEIS,The Insolvency Service,20/06/2019,Travel & Subsistence,Investigations & Enforcement Services,Staff Payment,900009070,5.00,
BEIS,The Insolvency Service,20/06/2019,Travel & Subsistence,Investigations & Enforcement Services,Staff Payment,900009070,3.40,
BEIS,The Insolvency Service,20/06/2019,Travel & Subsistence,Investigations & Enforcement Services,Staff Payment,900009071,1.80,
BEIS,The Insolvency Service,20/06/2019,Travel & Subsistence,Investigations & Enforcement Services,Staff Payment,900009071,12.00,
BEIS,The Insolvency Service,20/06/2019,Travel & Subsistence,Investigations & Enforcement Services,Staff Payment,900009071,7.40,
BEIS,The Insolvency Service,20/06/2019,Travel & Subsistence,Investigations & Enforcement Services,Staff Payment,900009071,0.80,
BEIS,The Insolvency Service,20/06/2019,Travel & Subsistence,Business Service Division,Staff Payment,900009250,4.55,
BEIS,The Insolvency Service,20/06/2019,Travel & Subsistence,Business Service Division,Staff Payment,900009250,24.00,
BEIS,The Insolvency Service,20/06/2019,Travel & Subsistence,Business Service Division,Staff Payment,900009250,135.00,
BEIS,The Insolvency Service,20/06/2019,Travel & Subsistence,Business Service Division,Staff Payment,900009250,5.00,
BEIS,The Insolvency Service,20/06/2019,Travel & Subsistence,Business Service Division,Staff Payment,900009250,0.00,
BEIS,The Insolvency Service,20/06/2019,Travel & Subsistence,Official Receiver Services,Staff Payment,900009258,5.00,
BEIS,The Insolvency Service,20/06/2019,Travel & Subsistence,Official Receiver Services,Staff Payment,900009258,2.00,
BEIS,The Insolvency Service,20/06/2019,Travel & Subsistence,Official Receiver Services,Staff Payment,900009258,1.80,
BEIS,The Insolvency Service,20/06/2019,Travel & Subsistence,Official Receiver Services,Staff Payment,900009278,22.50,
BEIS,The Insolvency Service,20/06/2019,Travel & Subsistence,Official Receiver Services,Staff Payment,900009278,9.90,
BEIS,The Insolvency Service,20/06/2019,Travel & Subsistence,Investigations & Enforcement Services,Staff Payment,900009243,60.75,
BEIS,The Insolvency Service,20/06/2019,Travel & Subsistence,Investigations & Enforcement Services,Staff Payment,900009243,1.00,
BEIS,The Insolvency Service,20/06/2019,Travel & Subsistence,Investigations & Enforcement Services,Staff Payment,900009243,81.00,
BEIS,The Insolvency Service,20/06/2019,Travel & Subsistence,Investigations & Enforcement Services,Staff Payment,900009243,28.35,
BEIS,The Insolvency Service,20/06/2019,Travel & Subsistence,Investigations & Enforcement Services,Staff Payment,900009243,5.00,
BEIS,The Insolvency Service,20/06/2019,Travel & Subsistence,Investigations & Enforcement Services,Staff Payment,900009243,5.00,
BEIS,The Insolvency Service,20/06/2019,Travel & Subsistence,Official Receiver Services,Staff Payment,900009072,5.00,
BEIS,The Insolvency Service,20/06/2019,Travel & Subsistence,Finance & Commercial,Staff Payment,900008954,18.40,
BEIS,The Insolvency Service,20/06/2019,Travel & Subsistence,Finance & Commercial,Staff Payment,900008954,9.85,
BEIS,The Insolvency Service,20/06/2019,Travel & Subsistence,Finance & Commercial,Staff Payment,900008954,5.00,
BEIS,The Insolvency Service,20/06/2019,Travel & Subsistence,Business Service Division,Staff Payment,900009279,15.00,
BEIS,The Insolvency Service,20/06/2019,Travel & Subsistence,Strategy & Change,Staff Payment,900009157,4.80,
BEIS,The Insolvency Service,20/06/2019,Travel & Subsistence,Strategy & Change,Staff Payment,900009157,24.00,
BEIS,The Insolvency Service,20/06/2019,Travel & Subsistence,Strategy & Change,Staff Payment,900009157,14.40,
BEIS,The Insolvency Service,20/06/2019,Travel & Subsistence,Strategy & Change,Staff Payment,900009157,14.40,
BEIS,The Insolvency Service,20/06/2019,Travel & Subsistence,Strategy & Change,Staff Payment,900009157,14.40,
BEIS,The Insolvency Service,20/06/2019,Travel & Subsistence,Official Receiver Services,Staff Payment,900009157,2.70,
BEIS,The Insolvency Service,20/06/2019,Travel & Subsistence,Strategy & Change,Staff Payment,900009157,12.00,
BEIS,The Insolvency Service,20/06/2019,Travel & Subsistence,Strategy & Change,Staff Payment,900009157,4.91,
BEIS,The Insolvency Service,20/06/2019,Travel & Subsistence,Strategy & Change,Staff Payment,900009157,3.14,
BEIS,The Insolvency Service,20/06/2019,Travel & Subsistence,Strategy & Change,Staff Payment,900009157,5.00,
BEIS,The Insolvency Service,20/06/2019,Travel & Subsistence,Strategy & Change,Staff Payment,900009157,10.00,
BEIS,The Insolvency Service,20/06/2019,Travel & Subsistence,Strategy & Change,Staff Payment,900009157,4.97,
BEIS,The Insolvency Service,20/06/2019,Travel & Subsistence,Investigations & Enforcement Services,Staff Payment,900009267,6.80,
BEIS,The Insolvency Service,20/06/2019,Travel & Subsistence,Chief Executive Office,Staff Payment,900009120,22.80,
BEIS,The Insolvency Service,20/06/2019,Travel & Subsistence,Chief Executive Office,Staff Payment,900009120,4.80,
BEIS,The Insolvency Service,20/06/2019,Travel & Subsistence,Chief Executive Office,Staff Payment,900009120,5.00,
BEIS,The Insolvency Service,20/06/2019,Travel & Subsistence,Chief Executive Office,Staff Payment,900009120,11.05,
BEIS,The Insolvency Service,20/06/2019,Travel & Subsistence,Chief Executive Office,Staff Payment,900009120,5.00,
BEIS,The Insolvency Service,20/06/2019,Travel & Subsistence,Chief Executive Office,Staff Payment,900009120,5.00,
BEIS,The Insolvency Service,20/06/2019,Travel & Subsistence,Chief Executive Office,Staff Payment,900009120,4.55,
BEIS,The Insolvency Service,20/06/2019,Travel & Subsistence,Chief Executive Office,Staff Payment,900009120,5.00,
BEIS,The Insolvency Service,20/06/2019,Travel & Subsistence,Chief Executive Office,Staff Payment,900009120,4.55,
BEIS,The Insolvency Service,20/06/2019,Travel & Subsistence,Chief Executive Office,Staff Payment,900009120,9.80,
BEIS,The Insolvency Service,20/06/2019,Travel & Subsistence,Chief Executive Office,Staff Payment,900009120,5.00,
BEIS,The Insolvency Service,20/06/2019,Travel & Subsistence,Chief Executive Office,Staff Payment,900009120,6.30,
BEIS,The Insolvency Service,20/06/2019,Travel & Subsistence,Chief Executive Office,Staff Payment,900009120,4.15,
BEIS,The Insolvency Service,20/06/2019,Travel & Subsistence,Chief Executive Office,Staff Payment,900009120,3.35,
BEIS,The Insolvency Service,20/06/2019,Travel & Subsistence,Chief Executive Office,Staff Payment,900009120,3.35,
BEIS,The Insolvency Service,20/06/2019,Travel & Subsistence,Chief Executive Office,Staff Payment,900009120,3.05,
BEIS,The Insolvency Service,20/06/2019,Travel & Subsistence,Chief Executive Office,Staff Payment,900009120,3.35,
BEIS,The Insolvency Service,20/06/2019,Travel & Subsistence,Chief Executive Office,Staff Payment,900009120,13.90,
BEIS,The Insolvency Service,20/06/2019,Travel & Subsistence,Chief Executive Office,Staff Payment,900009120,15.00,
BEIS,The Insolvency Service,20/06/2019,Travel & Subsistence,Chief Executive Office,Staff Payment,900009120,13.00,
BEIS,The Insolvency Service,20/06/2019,Travel & Subsistence,Chief Executive Office,Staff Payment,900009120,5.00,
BEIS,The Insolvency Service,20/06/2019,Travel & Subsistence,Chief Executive Office,Staff Payment,900009120,5.00,
BEIS,The Insolvency Service,20/06/2019,Travel & Subsistence,Chief Executive Office,Staff Payment,900009120,5.00,
BEIS,The Insolvency Service,20/06/2019,Travel & Subsistence,Chief Executive Office,Staff Payment,900009233,4.80,
BEIS,The Insolvency Service,20/06/2019,Travel & Subsistence,Chief Executive Office,Staff Payment,900009233,5.00,
BEIS,The Insolvency Service,20/06/2019,Travel & Subsistence,Chief Executive Office,Staff Payment,900009234,5.00,
BEIS,The Insolvency Service,20/06/2019,Travel & Subsistence,Chief Executive Office,Staff Payment,900009235,5.00,
BEIS,The Insolvency Service,20/06/2019,Travel & Subsistence,Official Receiver Services,Staff Payment,900009260,5.00,
BEIS,The Insolvency Service,20/06/2019,Travel & Subsistence,Official Receiver Services,Staff Payment,900009260,3.50,
BEIS,The Insolvency Service,20/06/2019,Travel & Subsistence,Official Receiver Services,Staff Payment,900009261,2.75,
BEIS,The Insolvency Service,20/06/2019,Travel & Subsistence,Official Receiver Services,Staff Payment,900009261,5.00,
BEIS,The Insolvency Service,20/06/2019,Travel & Subsistence,Official Receiver Services,Staff Payment,900009223,19.60,
BEIS,The Insolvency Service,20/06/2019,Travel & Subsistence,Official Receiver Services,Staff Payment,900009223,5.00,
BEIS,The Insolvency Service,20/06/2019,Travel & Subsistence,People & Capability,Staff Payment,900009215,2.10,
BEIS,The Insolvency Service,20/06/2019,Travel & Subsistence,People & Capability,Staff Payment,900009218,75.10,
BEIS,The Insolvency Service,20/06/2019,Travel & Subsistence,People & Capability,Staff Payment,900009219,9.30,
BEIS,The Insolvency Service,20/06/2019,Travel & Subsistence,People & Capability,Staff Payment,900009219,3.75,
BEIS,The Insolvency Service,20/06/2019,Travel & Subsistence,Business Service Division,Staff Payment,900009283,5.00,
BEIS,The Insolvency Service,20/06/2019,Travel & Subsistence,Business Service Division,Staff Payment,900009283,5.00,
BEIS,The Insolvency Service,20/06/2019,Travel & Subsistence,Business Service Division,Staff Payment,900009283,5.00,
BEIS,The Insolvency Service,20/06/2019,Travel & Subsistence,Business Service Division,Staff Payment,900009283,5.00,
BEIS,The Insolvency Service,20/06/2019,Travel & Subsistence,Business Service Division,Staff Payment,900009283,15.00,
BEIS,The Insolvency Service,20/06/2019,Travel & Subsistence,Business Service Division,Staff Payment,900009283,5.00,
BEIS,The Insolvency Service,20/06/2019,Travel & Subsistence,Business Service Division,Staff Payment,900009291,4.90,
BEIS,The Insolvency Service,20/06/2019,Travel & Subsistence,Strategy & Change,Staff Payment,900009082,5.60,
BEIS,The Insolvency Service,20/06/2019,Travel & Subsistence,Official Receiver Services,Staff Payment,900009082,15.00,
BEIS,The Insolvency Service,20/06/2019,Travel & Subsistence,Official Receiver Services,Staff Payment,900009082,5.00,
BEIS,The Insolvency Service,20/06/2019,Travel & Subsistence,Official Receiver Services,Staff Payment,900009082,5.00,
BEIS,The Insolvency Service,20/06/2019,Travel & Subsistence,Strategy & Change,Staff Payment,900009082,5.35,
BEIS,The Insolvency Service,20/06/2019,Travel & Subsistence,Strategy & Change,Staff Payment,900009082,5.00,
BEIS,The Insolvency Service,20/06/2019,Travel & Subsistence,Strategy & Change,Staff Payment,900009082,8.20,
BEIS,The Insolvency Service,20/06/2019,Travel & Subsistence,Strategy & Change,Staff Payment,900009082,5.00,
BEIS,The Insolvency Service,20/06/2019,Travel & Subsistence,Investigations & Enforcement Services,Staff Payment,900009270,5.00,
BEIS,The Insolvency Service,20/06/2019,Travel & Subsistence,Investigations & Enforcement Services,Staff Payment,900009270,18.09,
BEIS,The Insolvency Service,20/06/2019,Travel & Subsistence,Investigations & Enforcement Services,Staff Payment,900009270,47.93,
BEIS,The Insolvency Service,20/06/2019,Travel & Subsistence,Investigations & Enforcement Services,Staff Payment,900009270,4.35,
BEIS,The Insolvency Service,20/06/2019,Travel & Subsistence,Investigations & Enforcement Services,Staff Payment,900009270,4.90,
BEIS,The Insolvency Service,20/06/2019,Travel & Subsistence,Finance & Commercial,Staff Payment,900009175,5.00,
BEIS,The Insolvency Service,20/06/2019,Travel & Subsistence,Finance & Commercial,Staff Payment,900009175,12.00,
BEIS,The Insolvency Service,20/06/2019,Travel & Subsistence,Finance & Commercial,Staff Payment,900009177,22.00,
BEIS,The Insolvency Service,20/06/2019,Travel & Subsistence,Finance & Commercial,Staff Payment,900009177,8.50,
BEIS,The Insolvency Service,20/06/2019,Travel & Subsistence,Finance & Commercial,Staff Payment,900009179,36.00,
BEIS,The Insolvency Service,20/06/2019,Travel & Subsistence,Finance & Commercial,Staff Payment,900009179,11.20,
BEIS,The Insolvency Service,20/06/2019,Travel & Subsistence,Finance & Commercial,Staff Payment,900009179,10.00,
BEIS,The Insolvency Service,20/06/2019,Travel & Subsistence,Finance & Commercial,Staff Payment,900009179,5.00,
BEIS,The Insolvency Service,20/06/2019,Travel & Subsistence,Finance & Commercial,Staff Payment,900009179,15.00,
BEIS,The Insolvency Service,20/06/2019,Travel & Subsistence,Finance & Commercial,Staff Payment,900009179,4.50,
BEIS,The Insolvency Service,21/06/2019,Telephone & Postage,Information & Technology,Vodafone - Cable & Wireless Communications,300009919,1972.46,569953277
BEIS,The Insolvency Service,21/06/2019,Telephone & Postage,Information & Technology,Vodafone - Cable & Wireless Communications,300009934,6517.51,569953277
BEIS,The Insolvency Service,21/06/2019,Telephone & Postage,Information & Technology,Vodafone - Cable & Wireless Communications,300009935,3997.82,569953277
BEIS,The Insolvency Service,21/06/2019,Telephone & Postage,Information & Technology,Vodafone - Cable & Wireless Communications,300009936,3909.90,569953277
BEIS,The Insolvency Service,21/06/2019,Estates - Property,Finance & Commercial,Leeds City Council,300009963,86378.89,
BEIS,The Insolvency Service,21/06/2019,Telephone & Postage,Business Service Division,Royal Mail Group Ltd,300009925,19412.00,243170002
BEIS,The Insolvency Service,21/06/2019,Estates - Property,Finance & Commercial,Vickery Holman,300010152,6599.02,
BEIS,The Insolvency Service,21/06/2019,Printing & Stationary,Official Receiver Services,Sirs (Europe) Ltd,300009819,22958.16,990834974
BEIS,The Insolvency Service,21/06/2019,Telephone & Postage,Information & Technology,Ee Ltd,300009885,6.00,771592016
BEIS,The Insolvency Service,21/06/2019,Telephone & Postage,Information & Technology,Ee Ltd,300009888,918.00,771592016
BEIS,The Insolvency Service,21/06/2019,I&T,Information & Technology,SmartSourcing,300009865,2295.00,788507869
BEIS,The Insolvency Service,21/06/2019,Estates - Property,Finance & Commercial,HMCTS,300009931,234893.57,888818055
BEIS,The Insolvency Service,21/06/2019,Travel & Subsistence,Strategy & Change,Staff Payment,900009289,4.99,
BEIS,The Insolvency Service,21/06/2019,Travel & Subsistence,Official Receiver Services,Staff Payment,900009280,5.50,
BEIS,The Insolvency Service,21/06/2019,Travel & Subsistence,Official Receiver Services,Staff Payment,900009280,16.20,
BEIS,The Insolvency Service,21/06/2019,Travel & Subsistence,Official Receiver Services,Staff Payment,900009272,5.00,
BEIS,The Insolvency Service,21/06/2019,Travel & Subsistence,Official Receiver Services,Staff Payment,900009272,22.68,
BEIS,The Insolvency Service,21/06/2019,Travel & Subsistence,Official Receiver Services,Staff Payment,900009272,22.68,
BEIS,The Insolvency Service,21/06/2019,Travel & Subsistence,Investigations & Enforcement Services,Staff Payment,900009294,44.55,
BEIS,The Insolvency Service,21/06/2019,Travel & Subsistence,Investigations & Enforcement Services,Staff Payment,900009294,17.10,
BEIS,The Insolvency Service,21/06/2019,Travel & Subsistence,Investigations & Enforcement Services,Staff Payment,900009294,5.00,
BEIS,The Insolvency Service,21/06/2019,Travel & Subsistence,Investigations & Enforcement Services,Staff Payment,900009294,16.00,
BEIS,The Insolvency Service,21/06/2019,Travel & Subsistence,Investigations & Enforcement Services,Staff Payment,900009294,58.95,
BEIS,The Insolvency Service,21/06/2019,Travel & Subsistence,Investigations & Enforcement Services,Staff Payment,900009294,69.30,
BEIS,The Insolvency Service,21/06/2019,Travel & Subsistence,Investigations & Enforcement Services,Staff Payment,900009294,17.10,
BEIS,The Insolvency Service,21/06/2019,Travel & Subsistence,Investigations & Enforcement Services,Staff Payment,900009297,12.95,
BEIS,The Insolvency Service,21/06/2019,Travel & Subsistence,Investigations & Enforcement Services,Staff Payment,900009297,5.00,
BEIS,The Insolvency Service,21/06/2019,Travel & Subsistence,Official Receiver Services,Staff Payment,900009284,29.70,
BEIS,The Insolvency Service,21/06/2019,Travel & Subsistence,Official Receiver Services,Staff Payment,900009284,8.00,
BEIS,The Insolvency Service,21/06/2019,Travel & Subsistence,Finance & Commercial,Staff Payment,900008955,9.85,
BEIS,The Insolvency Service,21/06/2019,Travel & Subsistence,Finance & Commercial,Staff Payment,900008955,15.00,
BEIS,The Insolvency Service,21/06/2019,Travel & Subsistence,Investigations & Enforcement Services,Staff Payment,900008965,10.50,
BEIS,The Insolvency Service,21/06/2019,Travel & Subsistence,Official Receiver Services,Staff Payment,900009277,6.00,
BEIS,The Insolvency Service,21/06/2019,Travel & Subsistence,Official Receiver Services,Staff Payment,900009277,36.45,
BEIS,The Insolvency Service,21/06/2019,Travel & Subsistence,Official Receiver Services,Staff Payment,900009277,5.00,
BEIS,The Insolvency Service,21/06/2019,Travel & Subsistence,Chief Executive Office,Staff Payment,900009236,58.90,
BEIS,The Insolvency Service,21/06/2019,Travel & Subsistence,Chief Executive Office,Staff Payment,900009236,5.00,
BEIS,The Insolvency Service,21/06/2019,Travel & Subsistence,People & Capability,Staff Payment,900009220,10.00,
BEIS,The Insolvency Service,21/06/2019,Travel & Subsistence,People & Capability,Staff Payment,900009220,15.00,
BEIS,The Insolvency Service,21/06/2019,Travel & Subsistence,People & Capability,Staff Payment,900009221,5.00,
BEIS,The Insolvency Service,21/06/2019,Travel & Subsistence,People & Capability,Staff Payment,900009221,2.00,
BEIS,The Insolvency Service,21/06/2019,Travel & Subsistence,People & Capability,Staff Payment,900009221,13.00,
BEIS,The Insolvency Service,21/06/2019,Travel & Subsistence,People & Capability,Staff Payment,900009221,3.85,
BEIS,The Insolvency Service,21/06/2019,Travel & Subsistence,People & Capability,Staff Payment,900009222,15.00,
BEIS,The Insolvency Service,21/06/2019,Travel & Subsistence,People & Capability,Staff Payment,900009222,39.64,
BEIS,The Insolvency Service,21/06/2019,Travel & Subsistence,People & Capability,Staff Payment,900009222,83.24,
BEIS,The Insolvency Service,21/06/2019,Travel & Subsistence,People & Capability,Staff Payment,900009222,22.00,
BEIS,The Insolvency Service,21/06/2019,Travel & Subsistence,People & Capability,Staff Payment,900009222,5.00,
BEIS,The Insolvency Service,21/06/2019,Travel & Subsistence,People & Capability,Staff Payment,900009222,5.00,
BEIS,The Insolvency Service,21/06/2019,Travel & Subsistence,People & Capability,Staff Payment,900009222,6.09,
BEIS,The Insolvency Service,21/06/2019,Travel & Subsistence,Investigations & Enforcement Services,Staff Payment,900009302,12.80,
BEIS,The Insolvency Service,21/06/2019,Travel & Subsistence,Investigations & Enforcement Services,Staff Payment,900009302,2.70,
BEIS,The Insolvency Service,21/06/2019,Travel & Subsistence,Investigations & Enforcement Services,Staff Payment,900009302,58.50,
BEIS,The Insolvency Service,21/06/2019,Travel & Subsistence,Investigations & Enforcement Services,Staff Payment,900009302,16.20,
BEIS,The Insolvency Service,21/06/2019,Travel & Subsistence,Investigations & Enforcement Services,Staff Payment,900009302,68.40,
BEIS,The Insolvency Service,21/06/2019,Travel & Subsistence,Investigations & Enforcement Services,Staff Payment,900009302,30.60,
BEIS,The Insolvency Service,21/06/2019,Travel & Subsistence,Investigations & Enforcement Services,Staff Payment,900009302,54.00,
BEIS,The Insolvency Service,21/06/2019,Travel & Subsistence,Investigations & Enforcement Services,Staff Payment,900009302,58.50,
BEIS,The Insolvency Service,21/06/2019,Travel & Subsistence,Investigations & Enforcement Services,Staff Payment,900009302,12.60,
BEIS,The Insolvency Service,21/06/2019,Travel & Subsistence,Investigations & Enforcement Services,Staff Payment,900009302,6.00,
BEIS,The Insolvency Service,21/06/2019,Travel & Subsistence,Investigations & Enforcement Services,Staff Payment,900009302,4.00,
BEIS,The Insolvency Service,21/06/2019,Travel & Subsistence,Investigations & Enforcement Services,Staff Payment,900009302,5.00,
BEIS,The Insolvency Service,21/06/2019,Travel & Subsistence,Investigations & Enforcement Services,Staff Payment,900009302,3.99,
BEIS,The Insolvency Service,21/06/2019,Travel & Subsistence,Investigations & Enforcement Services,Staff Payment,900009302,2.25,
BEIS,The Insolvency Service,21/06/2019,Travel & Subsistence,Investigations & Enforcement Services,Staff Payment,900009302,3.99,
BEIS,The Insolvency Service,21/06/2019,Travel & Subsistence,Investigations & Enforcement Services,Staff Payment,900009302,5.00,
BEIS,The Insolvency Service,21/06/2019,Travel & Subsistence,Investigations & Enforcement Services,Staff Payment,900009302,8.00,
BEIS,The Insolvency Service,21/06/2019,Travel & Subsistence,Investigations & Enforcement Services,Staff Payment,900009302,15.00,
BEIS,The Insolvency Service,21/06/2019,Travel & Subsistence,Official Receiver Services,Staff Payment,900009232,5.00,
BEIS,The Insolvency Service,21/06/2019,Travel & Subsistence,Official Receiver Services,Staff Payment,900009232,15.00,
BEIS,The Insolvency Service,21/06/2019,Travel & Subsistence,Official Receiver Services,Staff Payment,900009232,9.20,
BEIS,The Insolvency Service,21/06/2019,Travel & Subsistence,Official Receiver Services,Staff Payment,900009209,39.60,
BEIS,The Insolvency Service,21/06/2019,Travel & Subsistence,Official Receiver Services,Staff Payment,900009244,12.00,
BEIS,The Insolvency Service,21/06/2019,Travel & Subsistence,Official Receiver Services,Staff Payment,900009244,39.60,
BEIS,The Insolvency Service,21/06/2019,Travel & Subsistence,Finance & Commercial,Staff Payment,900009183,43.30,
BEIS,The Insolvency Service,21/06/2019,Travel & Subsistence,Finance & Commercial,Staff Payment,900009183,10.20,
BEIS,The Insolvency Service,24/06/2019,Compensation/Disbursements,Official Receiver Services,Insolvency Service,300010043,243.00,
BEIS,The Insolvency Service,24/06/2019,Estates - Property,Finance & Commercial,HM Land Registry,300010036,745.02,
BEIS,The Insolvency Service,24/06/2019,Estates - Property,Finance & Commercial,Jones Lang Lasalle ,300010033,7020.00,245894718
BEIS,The Insolvency Service,24/06/2019,Estates - Property,Finance & Commercial,Blackpool Borough Council,300009884,987.45,
BEIS,The Insolvency Service,24/06/2019,Telephone & Postage,Information & Technology,Vodafone - Cable & Wireless Communications,300009939,240.00,569953277
BEIS,The Insolvency Service,24/06/2019,Telephone & Postage,Information & Technology,Vodafone - Cable & Wireless Communications,300009940,240.00,569953277
BEIS,The Insolvency Service,24/06/2019,Telephone & Postage,Information & Technology,Vodafone - Cable & Wireless Communications,300009941,240.00,569953277
BEIS,The Insolvency Service,24/06/2019,Telephone & Postage,Information & Technology,Vodafone - Cable & Wireless Communications,300009942,240.00,569953277
BEIS,The Insolvency Service,24/06/2019,Telephone & Postage,Information & Technology,Vodafone - Cable & Wireless Communications,300009943,240.00,569953277
BEIS,The Insolvency Service,24/06/2019,Telephone & Postage,Information & Technology,Vodafone - Cable & Wireless Communications,300010037,3538.54,569953277
BEIS,The Insolvency Service,24/06/2019,Telephone & Postage,Information & Technology,Vodafone - Cable & Wireless Communications,300010038,3226.43,569953277
BEIS,The Insolvency Service,24/06/2019,Estates - Property,Finance & Commercial,Leeds City Council,300009961,2946.00,
BEIS,The Insolvency Service,24/06/2019,Estates - Property,Finance & Commercial,Leeds City Council,300009965,5155.50,
BEIS,The Insolvency Service,24/06/2019,Legal - Other,Strategy & Change,Agilisys Ltd,300009834,1680.00,791711713
BEIS,The Insolvency Service,24/06/2019,I&T,Information & Technology,Atos It Services Uk Ltd,300010034,856525.00,232327983
BEIS,The Insolvency Service,24/06/2019,Legal - Live Investigations,Legal Services Division,Exchange Chambers,300009766,11293.50,
BEIS,The Insolvency Service,24/06/2019,Telephone & Postage,Information & Technology,Maintel,300009954,80.40,
BEIS,The Insolvency Service,24/06/2019,Telephone & Postage,Information & Technology,Maintel,300010017,4941.68,
BEIS,The Insolvency Service,24/06/2019,Legal - Live Investigations,Legal Services Division,18 Red Lion Court Chambers,300010039,1875.00,766793665
BEIS,The Insolvency Service,24/06/2019,Legal - Live Investigations,Investigations & Enforcement Services,Mendip Media Group Ltd (Now Trading As Appen),300009953,217.93,609546425
BEIS,The Insolvency Service,24/06/2019,I&T,Information & Technology,Geoff Smith Associates Ltd,300009775,20514.71,813047166
BEIS,The Insolvency Service,24/06/2019,Legal - Live Investigations,Legal Services Division,STERNBERG REED SOLICITORS,300010042,1261.74,283942233
BEIS,The Insolvency Service,24/06/2019,I&T,Information & Technology,SmartSourcing,300009858,3630.00,788507869
BEIS,The Insolvency Service,24/06/2019,I&T,Information & Technology,SmartSourcing,300009861,3720.00,788507869
BEIS,The Insolvency Service,24/06/2019,I&T,Information & Technology,SmartSourcing,300009862,3000.00,788507869
BEIS,The Insolvency Service,24/06/2019,I&T,Information & Technology,SmartSourcing,300009863,3000.00,788507869
BEIS,The Insolvency Service,24/06/2019,I&T,Information & Technology,SmartSourcing,300009874,3750.00,788507869
BEIS,The Insolvency Service,24/06/2019,Legal - Live Investigations,Legal Services Division,Oriel Chambers,300010041,600.00,817645118
BEIS,The Insolvency Service,24/06/2019,Travel & Subsistence,Investigations & Enforcement Services,Staff Payment,900008931,39.60,
BEIS,The Insolvency Service,24/06/2019,Travel & Subsistence,Investigations & Enforcement Services,Staff Payment,900009322,5.00,
BEIS,The Insolvency Service,24/06/2019,Travel & Subsistence,Investigations & Enforcement Services,Staff Payment,900009322,3.33,
BEIS,The Insolvency Service,24/06/2019,Travel & Subsistence,Investigations & Enforcement Services,Staff Payment,900009322,3.80,
BEIS,The Insolvency Service,24/06/2019,Travel & Subsistence,Business Service Division,Staff Payment,900009263,16.00,
BEIS,The Insolvency Service,24/06/2019,Travel & Subsistence,Business Service Division,Staff Payment,900009263,8.40,
BEIS,The Insolvency Service,24/06/2019,Travel & Subsistence,Business Service Division,Staff Payment,900009263,15.00,
BEIS,The Insolvency Service,24/06/2019,Travel & Subsistence,Business Service Division,Staff Payment,900009263,5.00,
BEIS,The Insolvency Service,24/06/2019,Travel & Subsistence,Business Service Division,Staff Payment,900009264,5.00,
BEIS,The Insolvency Service,24/06/2019,Travel & Subsistence,Business Service Division,Staff Payment,900009264,29.95,
BEIS,The Insolvency Service,24/06/2019,Travel & Subsistence,Business Service Division,Staff Payment,900009264,10.00,
BEIS,The Insolvency Service,24/06/2019,Travel & Subsistence,Business Service Division,Staff Payment,900009264,10.00,
BEIS,The Insolvency Service,24/06/2019,Travel & Subsistence,Business Service Division,Staff Payment,900009265,13.40,
BEIS,The Insolvency Service,24/06/2019,Travel & Subsistence,Business Service Division,Staff Payment,900009265,22.20,
BEIS,The Insolvency Service,24/06/2019,Travel & Subsistence,Business Service Division,Staff Payment,900009265,10.00,
BEIS,The Insolvency Service,24/06/2019,Travel & Subsistence,Business Service Division,Staff Payment,900009314,7.40,
BEIS,The Insolvency Service,24/06/2019,Travel & Subsistence,Business Service Division,Staff Payment,900009314,3.40,
BEIS,The Insolvency Service,24/06/2019,Travel & Subsistence,Business Service Division,Staff Payment,900009314,4.00,
BEIS,The Insolvency Service,24/06/2019,Travel & Subsistence,Business Service Division,Staff Payment,900009314,5.30,
BEIS,The Insolvency Service,24/06/2019,Travel & Subsistence,Business Service Division,Staff Payment,900009314,5.50,
BEIS,The Insolvency Service,24/06/2019,Travel & Subsistence,Business Service Division,Staff Payment,900009314,20.00,
BEIS,The Insolvency Service,24/06/2019,Travel & Subsistence,Business Service Division,Staff Payment,900009314,15.77,
BEIS,The Insolvency Service,24/06/2019,Travel & Subsistence,Business Service Division,Staff Payment,900009314,52.10,
BEIS,The Insolvency Service,24/06/2019,Travel & Subsistence,Business Service Division,Staff Payment,900009296,5.00,
BEIS,The Insolvency Service,24/06/2019,Travel & Subsistence,Business Service Division,Staff Payment,900009296,15.00,
BEIS,The Insolvency Service,24/06/2019,Travel & Subsistence,Business Service Division,Staff Payment,900009296,5.00,
BEIS,The Insolvency Service,24/06/2019,Travel & Subsistence,Business Service Division,Staff Payment,900009296,5.00,
BEIS,The Insolvency Service,24/06/2019,Travel & Subsistence,Investigations & Enforcement Services,Staff Payment,900009311,4.04,
BEIS,The Insolvency Service,24/06/2019,Travel & Subsistence,Investigations & Enforcement Services,Staff Payment,900009305,5.00,
BEIS,The Insolvency Service,24/06/2019,Travel & Subsistence,Investigations & Enforcement Services,Staff Payment,900009305,8.00,
BEIS,The Insolvency Service,24/06/2019,Travel & Subsistence,Investigations & Enforcement Services,Staff Payment,900009305,3.00,
BEIS,The Insolvency Service,24/06/2019,Travel & Subsistence,Official Receiver Services,Staff Payment,900008926,79.00,
BEIS,The Insolvency Service,24/06/2019,Travel & Subsistence,Official Receiver Services,Staff Payment,900009054,16.50,
BEIS,The Insolvency Service,24/06/2019,Travel & Subsistence,Business Service Division,Staff Payment,900009238,72.90,
BEIS,The Insolvency Service,24/06/2019,Travel & Subsistence,Business Service Division,Staff Payment,900009238,72.90,
BEIS,The Insolvency Service,24/06/2019,Travel & Subsistence,Business Service Division,Staff Payment,900009238,14.75,
BEIS,The Insolvency Service,24/06/2019,Travel & Subsistence,Business Service Division,Staff Payment,900009238,5.00,
BEIS,The Insolvency Service,24/06/2019,Travel & Subsistence,Official Receiver Services,Staff Payment,900009315,5.00,
BEIS,The Insolvency Service,24/06/2019,Travel & Subsistence,Official Receiver Services,Staff Payment,900009315,15.00,
BEIS,The Insolvency Service,24/06/2019,Travel & Subsistence,Business Service Division,Staff Payment,900009330,40.95,
BEIS,The Insolvency Service,24/06/2019,Travel & Subsistence,Business Service Division,Staff Payment,900009330,5.00,
BEIS,The Insolvency Service,24/06/2019,Travel & Subsistence,Official Receiver Services,Staff Payment,900009304,2.00,
BEIS,The Insolvency Service,24/06/2019,Travel & Subsistence,Official Receiver Services,Staff Payment,900009304,8.10,
BEIS,The Insolvency Service,24/06/2019,Travel & Subsistence,Official Receiver Services,Staff Payment,900009306,9.63,
BEIS,The Insolvency Service,24/06/2019,Travel & Subsistence,Investigations & Enforcement Services,Staff Payment,900009200,14.00,
BEIS,The Insolvency Service,24/06/2019,Travel & Subsistence,Investigations & Enforcement Services,Staff Payment,900009200,7.00,
BEIS,The Insolvency Service,24/06/2019,Travel & Subsistence,Legal Services Division,Staff Payment,900009151,19.75,
BEIS,The Insolvency Service,24/06/2019,Travel & Subsistence,Legal Services Division,Staff Payment,900009151,6.00,
BEIS,The Insolvency Service,24/06/2019,Travel & Subsistence,Legal Services Division,Staff Payment,900009151,10.00,
BEIS,The Insolvency Service,24/06/2019,Travel & Subsistence,Legal Services Division,Staff Payment,900009151,10.00,
BEIS,The Insolvency Service,24/06/2019,Travel & Subsistence,Investigations & Enforcement Services,Staff Payment,900009012,12.00,
BEIS,The Insolvency Service,24/06/2019,Travel & Subsistence,Investigations & Enforcement Services,Staff Payment,900009012,8.10,
BEIS,The Insolvency Service,24/06/2019,Travel & Subsistence,Investigations & Enforcement Services,Staff Payment,900009012,12.00,
BEIS,The Insolvency Service,24/06/2019,Travel & Subsistence,Investigations & Enforcement Services,Staff Payment,900009012,3.00,
BEIS,The Insolvency Service,24/06/2019,Travel & Subsistence,Investigations & Enforcement Services,Staff Payment,900009012,5.00,
BEIS,The Insolvency Service,24/06/2019,Travel & Subsistence,Investigations & Enforcement Services,Staff Payment,900009012,4.10,
BEIS,The Insolvency Service,24/06/2019,Travel & Subsistence,Investigations & Enforcement Services,Staff Payment,900009012,5.00,
BEIS,The Insolvency Service,24/06/2019,Travel & Subsistence,Investigations & Enforcement Services,Staff Payment,900009012,5.00,
BEIS,The Insolvency Service,24/06/2019,Travel & Subsistence,Investigations & Enforcement Services,Staff Payment,900009012,4.95,
BEIS,The Insolvency Service,24/06/2019,Travel & Subsistence,Investigations & Enforcement Services,Staff Payment,900009012,3.95,
BEIS,The Insolvency Service,24/06/2019,Travel & Subsistence,Investigations & Enforcement Services,Staff Payment,900009012,16.00,
BEIS,The Insolvency Service,24/06/2019,Travel & Subsistence,Investigations & Enforcement Services,Staff Payment,900008497,5.00,
BEIS,The Insolvency Service,24/06/2019,Travel & Subsistence,Investigations & Enforcement Services,Staff Payment,900008497,8.50,
BEIS,The Insolvency Service,24/06/2019,Travel & Subsistence,Investigations & Enforcement Services,Staff Payment,900008497,4.50,
BEIS,The Insolvency Service,24/06/2019,Travel & Subsistence,Investigations & Enforcement Services,Staff Payment,900008497,97.20,
BEIS,The Insolvency Service,24/06/2019,Travel & Subsistence,Investigations & Enforcement Services,Staff Payment,900008497,97.20,
BEIS,The Insolvency Service,24/06/2019,Travel & Subsistence,Investigations & Enforcement Services,Staff Payment,900008497,6.30,
